Business Unit Description,Expense Code,Expense Code Description,GL Date,Document No,Invoice No,Invoiced Value,Supplier Name,Address Book No.,Proclass Details Level 1,Thomson Classification Description
LICENSING                     ,8270,SUBSCRIPTIONS                 ,01/10/2012,3337397,ERS INVOICE72948         ,500,DVLA                                    ,364794,Unclassified Non Trade,CENTRAL GOVERNMENT            
CLAIMS                        ,8740,PUBLIC LIABILITY              ,01/10/2012,3337399,ERS INVOICE72950         ,"18,500.00",RUSSELL WORTH SOLICITORS                ,570211,Legal Services,SOLICITORS MARKETING SERVICES 
LEP BUSINESS PLAN - W4        ,1194,OTHER FEES                    ,01/10/2012,3336112,1024,"5,532.12",SHEFFIELD LEP LTD                       ,482230,Unclassified Non Trade,LOCAL GOVERNMENT              
VS - BUILDING COHESION        ,8180,GRANTS                        ,01/10/2012,3337400,ERS INVOICE72951         ,"2,000.00",MENTAL HEALTH ACTION GROUP SHEFFIELD    ,332590,Unclassified Non Trade,CHARITIES & VOLUNTARY ORGANISA
VS - BUILDING COHESION        ,8180,GRANTS                        ,01/10/2012,3337401,ERS INVOICE72952         ,"1,667.00",SHEFFIELD CHINESE SCHOOL                ,325468,Unclassified Non Trade,CHARITIES & VOLUNTARY ORGANISA
VS - BUILDING COHESION        ,8180,GRANTS                        ,01/10/2012,3337402,ERS INVOICE72953         ,"2,222.00",SHEFFIELD WOMEN'S AID                   ,321447,Unclassified Non Trade,CHARITIES & VOLUNTARY ORGANISA
VS - BUILDING COHESION        ,8180,GRANTS                        ,01/10/2012,3337403,ERS INVOICE72954         ,"2,222.00",HAVEN HOUSE PROJECT                     ,301587,Medical ,COUNSELLING & ADVICE SERVICES 
DISABLED GRANTS               ,1165,NC&A OTHER                    ,01/10/2012,3337405,ERS INVOICE72956         ,"2,918.70",PRISM MEDICAL UK WESTHOLME DIVISION     ,209483,Medical ,DISABILITY EQUIPMENT - MNFRS &
DISABLED GRANTS               ,1165,NC&A OTHER                    ,01/10/2012,3337406,ERS INVOICE72957         ,"5,638.34",CLARK & PARTNERS LTD                    ,203928,Medical ,DISABILITY EQUIPMENT - MNFRS &
DISABLED GRANTS               ,1165,NC&A OTHER                    ,01/10/2012,3337407,ERS INVOICE72958         ,"4,302.00",STANNAH LIFT SERVICES LTD.              ,208625,Social Community Care,STAIRLIFTS - MNFRS & INSTALLER
DISABLED GRANTS               ,1165,NC&A OTHER                    ,01/10/2012,3337408,ERS INVOICE72959         ,"3,365.00",ABBEYDALE SHOWERS                       ,302256,Construction,ELECTRICIANS & ELECTRICAL CONT
VS - INFRASTRUCTURE SUPPORT   ,8180,GRANTS                        ,01/10/2012,3337411,ERS INVOICE72965         ,"2,222.00",REDACTED PERSONAL DATA,503588,Social Community Care,HOME CARE SERVICES            
VS - INFRASTRUCTURE SUPPORT   ,8180,GRANTS                        ,01/10/2012,3337412,ERS INVOICE72966         ,"1,667.00",BUSINESS IN THE COMMUNITY               ,304358,Human Resources,BUSINESS & TRADE ORGANISATIONS
DSG MANAGEMENT REVIEWS        ,8460,CONSULTANTS FEES              ,01/10/2012,3337420,ERS INVOICE72976         ,"5,055.20",MR TONY DESSENT                         ,524993,Unclassified Non Trade,LOCAL GOVERNMENT              
STATUTORY VALUATION           ,4390,OTHER RENT INCOME             ,01/10/2012,3337537,ERS INVOICE72994         ,"2,125.00",OUGHTIBRIDGE PRIMARY SCHOOL             ,506704,Unclassified Non Trade,SCHOOLS - LOCAL AUTHORITY     
COMMERCIAL ESTATE             ,6210,RENTS                         ,01/10/2012,3337538,ERS INVOICE72995         ,"2,210.00",H M REVENUE & CUSTOMS STAMP DUTY        ,528263,Unclassified Non Trade,CENTRAL GOVERNMENT            
CLAIMS                        ,8740,PUBLIC LIABILITY              ,01/10/2012,3337541,ERS INVOICE72998         ,"12,000.00",REDACTED PERSONAL DATA,562294,Unclassified Non Trade,OUT OF SCOPE FOR SIC MONITORIN
COMMUNITY ASSEMBLY EAST       ,9120,OTHER AGENCIES                ,01/10/2012,3337542,ERS INVOICE72999         ,500,HEELEY CITY FARM                        ,301277,Unclassified Non Trade,CHARITIES & VOLUNTARY ORGANISA
COMMUNITY ASSEMBLY EAST       ,9120,OTHER AGENCIES                ,01/10/2012,3337543,ERS INVOICE73000         ,"1,000.00",MANOR BOXING CLUB                       ,573024,Leisure Services,SPORTS CLUBS & ASSOCIATIONS   
VSP DELIVER                   ,9140,PRIVATE CONTRACTORS           ,01/10/2012,3337548,ERS INVOICE73006         ,"6,762.75",SPRINT TRAINING LTD                     ,375572,Human Resources,TRAINING SERVICES             
COMPLEX NEEDS                 ,5010,GENERAL BASIC PAY             ,01/10/2012,3309541,2100072830,"1,437.18",SHEFFIELD HEALTH AND SOCIAL CARE        ,336425,Unclassified Non Trade,HEALTH AUTHORITIES            
COMPLEX NEEDS                 ,5010,GENERAL BASIC PAY             ,01/10/2012,3309545,2100072831,"1,437.18",SHEFFIELD HEALTH AND SOCIAL CARE        ,336425,Unclassified Non Trade,HEALTH AUTHORITIES            
COMPLEX NEEDS                 ,5010,GENERAL BASIC PAY             ,01/10/2012,3309547,2100072828,"1,437.18",SHEFFIELD HEALTH AND SOCIAL CARE        ,336425,Unclassified Non Trade,HEALTH AUTHORITIES            
COMPLEX NEEDS                 ,5010,GENERAL BASIC PAY             ,01/10/2012,3309550,2100072829,"1,437.18",SHEFFIELD HEALTH AND SOCIAL CARE        ,336425,Unclassified Non Trade,HEALTH AUTHORITIES            
PURCHASING                    ,9170,ASYLUM & IMMIGRATION          ,01/10/2012,3316500,3009031,"18,439.18",METROPOLITAN SUPPORT TRUST LTD          ,492530,Unclassified Non Trade,"HOUSING ASSOCIATIONS, SOCIETIE"
COMPLEX NEEDS                 ,5010,GENERAL BASIC PAY             ,01/10/2012,3322226,2100073212,"1,538.45",SHEFFIELD HEALTH AND SOCIAL CARE        ,336425,Unclassified Non Trade,HEALTH AUTHORITIES            
SGMT (MUSEUMS SHEFFIELD)      ,8180,GRANTS                        ,01/10/2012,3322573,SIN001964                ,"141,666.67",MUSEUMS SHEFFIELD                       ,380579,Leisure Services,MUSEUMS                       
CRYSTAL PEAKS                 ,6270,SERVICE / PFI UNITARY CHARGE  ,01/10/2012,3323240,500771/005402            ,"22,762.00",BRITEL FUND TRUSTEES LTD                ,566694,Unclassified Trade,LETTING AGENTS                
PERFORMANCE & ANALYSIS        ,8440,FEE EXPENSES                  ,01/10/2012,3323518,20278,"20,040.00",CAREER VISION LIMITED                   ,533129,Consultancy,COMPUTER SYSTEMS & SOFTWARE (D
CITY WIDE CONTRACTS           ,8440,FEE EXPENSES                  ,01/10/2012,3325966,2100145368,"80,000.00",SHEFFIELD CHILDRENS NHS FOUNDATION TRUST,449452,Unclassified Non Trade,HOSPITALS                     
GRAVES PARK - ANIMAL FARM INC ,8060,MATERIALS AND SUPPLIES GENERAL,01/10/2012,3329895,204100,608.05,ARGO FEEDS LTD                          ,203028,Unclassified Trade,PET FOODS & ANIMAL FEEDS      
ROLL OUT                      ,8550,OTHER SERVICES                ,01/10/2012,3330757,6682,"6,164.00",GETMAPPING PLC                          ,566286,Facilities Management,AERIAL SURVEYS & PHOTOGRAPHERS
CYCLE TRAINING                ,8440,FEE EXPENSES                  ,01/10/2012,3330765,1111,"3,685.00",PEDAL READY CO-OPERATIVE LIMITED        ,404979,Leisure Services,SPORTS CLUBS & ASSOCIATIONS   
CYCLE TRAINING                ,8440,FEE EXPENSES                  ,01/10/2012,3330767,1112,"1,842.50",PEDAL READY CO-OPERATIVE LIMITED        ,404979,Leisure Services,SPORTS CLUBS & ASSOCIATIONS   
NEW MARKET DEVELOPMENT        ,1193,CONSULTANTS FEES              ,01/10/2012,3331842,64589,"2,062.35",RIDER LEVETT BUCKNALL UK LIMITED        ,393685,Consultancy,BUILDING CONSULTANTS          
NEW MARKET DEVELOPMENT        ,1193,CONSULTANTS FEES              ,01/10/2012,3331865,11033192,"5,000.00",HOARE LEA & PARTNERS                    ,554140,Construction,ENGINEERING SERVICES          
CITY WIDE CONTRACTS           ,8440,FEE EXPENSES                  ,01/10/2012,3332232,12/133                   ,"71,025.00",COMMUNITY LEGAL ADVICE SERVICE          ,472004,Legal Services,LEGAL SERVICES                
SHEFFIELD HOMES MANAGEMENT COS,8350,MISCELLANEOUS EXPENSES        ,01/10/2012,3333964,643,"20,372.84",SHEFFIELD HOMES LTD                     ,503889,Unclassified Non Trade,"HOUSING ASSOCIATIONS, SOCIETIE"
CREATIVE SERVICES             ,9120,OTHER AGENCIES                ,01/10/2012,3334201,87743,"5,546.00",RATCLIFF & ROPER (PRINTERS) LTD         ,501626,Facilities Management,PRINTERS                      
PLAYGROUND MAINTENANCE & INSPE,8010,EQUIPMENT PURCHASE AND REPAIR ,01/10/2012,3335079,3733,678.8,DURA-SPORT LTD                          ,372165,Construction,TENNIS COURTS & SPORTS SURFACE
HEALTH & SAFETY + LICENSING   ,8350,MISCELLANEOUS EXPENSES        ,01/10/2012,3335480,78920,850,HABIA                                   ,572335,Unclassified Non Trade,LOCAL GOVERNMENT              
PREV & EARLY INTERV. STRATEGY ,9120,OTHER AGENCIES                ,01/10/2012,3335490,3182,"3,995.36",PROGRESSIVE CARE LTD                    ,343548,Social Community Care,CHILDREN'S HOMES              
GRNI NO LIABILITY VAL / OHEAD ,8060,MATERIALS AND SUPPLIES GENERAL,01/10/2012,3335589,519,"2,618.50",M L SHEPHERD                            ,501200,Vehicles Not Buses,CAR & TRUCK LEASING & CONTRACT
SF GRNI LIABILITY TAKEN       ,8060,MATERIALS AND SUPPLIES GENERAL,01/10/2012,3335589,519,958.75,M L SHEPHERD                            ,501200,Vehicles Not Buses,CAR & TRUCK LEASING & CONTRACT
GRNI NO LIABILITY NOT OHEAD   ,8060,MATERIALS AND SUPPLIES GENERAL,01/10/2012,3335589,519,"2,819.25",M L SHEPHERD                            ,501200,Vehicles Not Buses,CAR & TRUCK LEASING & CONTRACT
CREATIVE SERVICES             ,9120,OTHER AGENCIES                ,01/10/2012,3335614,61642,531,PRINT AND DESIGN FACTORY LTD.           ,207663,Facilities Management,PRINTERS                      
CREATIVE SERVICES             ,9120,OTHER AGENCIES                ,01/10/2012,3335615,203249,711,B AND B PRESS (PARKGATE) LTD            ,203168,Facilities Management,PRINTERS                      
PLAYGROUND MAINTENANCE & INSPE,8010,EQUIPMENT PURCHASE AND REPAIR ,01/10/2012,3335677,025105/1                 ,"2,462.00",EARTH ANCHORS LTD                       ,204563,Highway Equipment and Materials,SEATING MANUFACTURERS         
ECOLOGY                       ,8010,EQUIPMENT PURCHASE AND REPAIR ,01/10/2012,3335687,111657,994.44,ENVISAGE WILDCARE LTD                   ,542898,Consultancy,ENVIRONMENTAL CONSULTANTS     
AGENCY STAFF                  ,5610,AGENCY STAFF - INVOICE        ,01/10/2012,3336032,CE0224167090D1           ,"160,989.75",REED                                    ,341818,Human Resources,EMPLOYMENT & RECRUITMENT AGENC
SNIPS                         ,8180,GRANTS                        ,01/10/2012,3336037,1151,"6,239.07",CROSSROADS CARE ATTENDANT S.            ,361857,Unclassified Non Trade,CHARITIES & VOLUNTARY ORGANISA
MINOR ADAPTATIONS             ,6020,REPAIRS AND MTCE - PROGRAMMED ,01/10/2012,3336038,1846/12                  ,744,PIKE JOINERY LIMITED                    ,453858,Construction,CARPENTERS & JOINERS          
MINOR ADAPTATIONS             ,6020,REPAIRS AND MTCE - PROGRAMMED ,01/10/2012,3336040,1850/12                  ,773,PIKE JOINERY LIMITED                    ,453858,Construction,CARPENTERS & JOINERS          
MINOR ADAPTATIONS             ,6030,REPAIRS AND MTCE - RESPONSIVE ,01/10/2012,3336042,1849/12                  ,647,PIKE JOINERY LIMITED                    ,453858,Construction,CARPENTERS & JOINERS          
LEP BUSINESS PLAN - W4        ,1194,OTHER FEES                    ,01/10/2012,3336108,1023,"4,528.56",SHEFFIELD LEP LTD                       ,482230,Unclassified Non Trade,LOCAL GOVERNMENT              
SCC INTERNAL PROG. COSTS - W4 ,1161,NC&A MAIN CONTRACT            ,01/10/2012,3336109,1033,"16,200.00",SHEFFIELD LEP LTD                       ,482230,Unclassified Non Trade,LOCAL GOVERNMENT              
OWLER BROOK PCP               ,1194,OTHER FEES                    ,01/10/2012,3336110,740,"5,000.00",PYRAMID SCHOOLS (SHEFFIELD) LTD         ,324404,Financial Services,LEASING SERVICES              
BUSINESS SUPPORT              ,8390,STATIONERY                    ,01/10/2012,3336218,SINV00236278             ,657.66,R A ROBERTS (OFFICE EQUIPMENT) LTD      ,207777,Furniture,OFFICE FURNITURE & EQUIPMENT  
CREATIVE SERVICES             ,9120,OTHER AGENCIES                ,01/10/2012,3336239,INV155559                ,630,A PINDER LTD                            ,202627,Facilities Management,COPYING & DUPLICATING SERVICES
CREATIVE SERVICES             ,9120,OTHER AGENCIES                ,01/10/2012,3336241,INV155560                ,"3,000.00",A PINDER LTD                            ,202627,Facilities Management,COPYING & DUPLICATING SERVICES
STATUTORY ADVERTISING         ,8420,ADVERTISING AND PUBL-INVOICED ,01/10/2012,3336383,9370935,771.36,SHEFFIELD NEWSPAPERS LTD                ,208391,Education,NEWSPAPER & MAGAZINE PUBLISHER
TREE TEAM                     ,6370,GROUNDS MTCE AND ARBORICULTURE,01/10/2012,3336450,877,580,SHEFFIELD TREE CARE                     ,462546,Environmental Services,TREE WORK & FORESTRY SERVICES 
STATUTORY ADVERTISING         ,8420,ADVERTISING AND PUBL-INVOICED ,01/10/2012,3336554,9362133,514.24,SHEFFIELD NEWSPAPERS LTD                ,208391,Education,NEWSPAPER & MAGAZINE PUBLISHER
STATUTORY ADVERTISING         ,8420,ADVERTISING AND PUBL-INVOICED ,01/10/2012,3336558,9351965,578.52,SHEFFIELD NEWSPAPERS LTD                ,208391,Education,NEWSPAPER & MAGAZINE PUBLISHER
STATUTORY ADVERTISING         ,8420,ADVERTISING AND PUBL-INVOICED ,01/10/2012,3336561,9352446,659.26,SHEFFIELD NEWSPAPERS LTD                ,208391,Education,NEWSPAPER & MAGAZINE PUBLISHER
STATUTORY ADVERTISING         ,8420,ADVERTISING AND PUBL-INVOICED ,01/10/2012,3336563,9361835,642.8,SHEFFIELD NEWSPAPERS LTD                ,208391,Education,NEWSPAPER & MAGAZINE PUBLISHER
STATUTORY ADVERTISING         ,8420,ADVERTISING AND PUBL-INVOICED ,01/10/2012,3336566,9352048,"1,542.72",SHEFFIELD NEWSPAPERS LTD                ,208391,Education,NEWSPAPER & MAGAZINE PUBLISHER
GRAVES PARK - ANIMAL FARM INC ,8060,MATERIALS AND SUPPLIES GENERAL,01/10/2012,3336594,205039,557.45,ARGO FEEDS LTD                          ,203028,Unclassified Trade,PET FOODS & ANIMAL FEEDS      
CITY WIDE CHILD CARE CONTRACT ,8440,FEE EXPENSES                  ,01/10/2012,3336639,4255,"17,676.00",STEP DEVELOPMENT TRUST                  ,386227,Unclassified Non Trade,CHARITIES & VOLUNTARY ORGANISA
INSULATION                    ,1161,NC&A MAIN CONTRACT            ,01/10/2012,3336966,NH02431A/6               ,"177,700.00",CARILLION HOME SERVICES LTD             ,512915,Construction,INSULATION INSTALLERS         
CIQ PUBLIC REALM              ,1161,NC&A MAIN CONTRACT            ,01/10/2012,3336969,EX03484/5                ,"172,200.00",P CASEY (LAND RECLAMATION) LTD          ,466698,Construction,BUILDERS                      
LOWFIELD U-MIX FACILITY       ,1161,NC&A MAIN CONTRACT            ,01/10/2012,3336970,ED02748/23               ,"1,600.00",WILLIAM BIRCH & SONS LTD                ,306953,Building Construction Materials,TOOL & EQUIPMENT HIRE         
ESTATE & ENVIRONMENTAL SERVICE,9120,OTHER AGENCIES                ,01/10/2012,3337210,3147484,"1,358.70",WM MORRISON SUPERMARKETS PLC            ,209577,Catering,SUPERMARKETS                  
SGMT (MUSEUMS SHEFFIELD)      ,8180,GRANTS                        ,01/10/2012,3337219,SIN001969                ,"510,928.00",MUSEUMS SHEFFIELD                       ,380579,Leisure Services,MUSEUMS                       
CUSTOMER FIRST PROGRAMME      ,8550,OTHER SERVICES                ,01/10/2012,3337251,INV0006                  ,"1,200.00",SOCITM LIMITED                          ,374354,Human Resources,INSTITUTES - PROFESSIONAL     
INTELLIGENT TRANSPORT SYSTEMS ,6390,NETWORK COMMUNICATIONS        ,01/10/2012,3337199,147952,"7,582.64",POWER INTERNET LTD                      ,391741,ICT,INTERNET SERVICE PROVIDERS    
RED TAPE CENTRAL              ,6150,ELECTRICITY                   ,01/10/2012,3337212,27140751,"3,479.80",NPOWER NORTHERN LTD                     ,207191,Utilities,ELECTRICITY COMPANIES         
ELECTORAL REGISTRATION        ,8570,POSTAGE & DELIVERY            ,01/10/2012,3337223,9040318769,"1,053.29",ROYAL MAIL GROUP LTD                    ,295326,Mail Services,DELIVERY SERVICES             
WEST MAST                     ,8370,PRINTING                      ,01/10/2012,3337225,1104775206,"1,171.94",KONICA MINOLTA BUSINESS SOLUTIONS EAST  ,206267,ICT,OFFICE EQUIPMENT MNFRS & DISTR
NORBURY                       ,6150,ELECTRICITY                   ,01/10/2012,3337230,27140704,839.1,NPOWER NORTHERN LTD                     ,207191,Utilities,ELECTRICITY COMPANIES         
PURCHASING LEARNING DISABILITI,9180,RESPITE                       ,01/10/2012,3337038,J531144 230912           ,594.66,REDACTED PERSONAL DATA,329204,Social Community Care,HOME CARE SERVICES            
PURCHASING LEARNING DISABILITI,9180,RESPITE                       ,01/10/2012,3337053,J528327 160912           ,"1,084.38",REDACTED PERSONAL DATA,329204,Social Community Care,HOME CARE SERVICES            
PURCHASING LEARNING DISABILITI,9180,OTHER CLIENT EXPENDITURE      ,01/10/2012,3337101,J529154 300912           ,649.68,REDACTED PERSONAL DATA,328070,Social Community Care,HOME CARE SERVICES            
HOMELESS INTERIM ACCOMM       ,6210,BED & BREAKFAST PAYMENTS      ,01/10/2012,3337371,276,"1,595.00",BURNGREAVE B & B                        ,466986,Facilities Management,GUEST HOUSES                  
ADULT SOCIAL CARE PURCHASING  ,9190,DIRECT PAYMENTS               ,01/10/2012,3337149,J531159                  ,557.56,REDACTED PERSONAL DATA,420033,Social Community Care,CAREFIRST DIRECT PAYMENTS     
ADULT SOCIAL CARE PURCHASING  ,9190,DIRECT PAYMENTS               ,01/10/2012,3337150,J531159                  ,535.73,REDACTED PERSONAL DATA,513156,Social Community Care,CAREFIRST DIRECT PAYMENTS     
ADULT SOCIAL CARE PURCHASING  ,9190,DIRECT PAYMENTS               ,01/10/2012,3337151,J531159                  ,"1,802.76",REDACTED PERSONAL DATA,558848,Social Community Care,CAREFIRST DIRECT PAYMENTS     
ADULT SOCIAL CARE PURCHASING  ,9190,DIRECT PAYMENTS               ,01/10/2012,3337152,J531159                  ,"5,288.33",REDACTED PERSONAL DATA,562178,Social Community Care,CAREFIRST DIRECT PAYMENTS     
PURCHASING LEARNING DISABILITI,9190,DIRECT PAYMENTS               ,01/10/2012,3337152,J531159                  ,"3,681.54",REDACTED PERSONAL DATA,562178,Social Community Care,CAREFIRST DIRECT PAYMENTS     
ADULT SOCIAL CARE PURCHASING  ,9190,DIRECT PAYMENTS               ,01/10/2012,3337153,J531159                  ,"2,499.71",REDACTED PERSONAL DATA,568571,Social Community Care,HOME SUPPORT SERVICES         
PURCHASING LEARNING DISABILITI,9250,INDEPENDENT DAY CARE          ,01/10/2012,3337155,13485,"1,440.00",PACES SHEFFIELD                         ,376410,Unclassified Non Trade,SCHOOLS - SPECIAL             
PURCHASING LEARNING DISABILITI,9250,INDEPENDENT DAY CARE          ,01/10/2012,3337158,3677,834.68,CAMPHILL VILLAGE TRUST                  ,361868,Unclassified Non Trade,CHARITIES & VOLUNTARY ORGANISA
LEAVING CARE                  ,9270,CARELEAVERS ACCOMMODATION     ,01/10/2012,3337144,37033,633.85,GUINNESS NORTHERN COUNTIES HOUSING      ,504343,Unclassified Non Trade,"HOUSING ASSOCIATIONS, SOCIETIE"
ASYLUM SEEKER CONTRACT        ,6210,RENTS                         ,01/10/2012,3337259,MPA20121001142 15        ,779.2,PROPERTY PARTNERS                       ,535657,Financial Services,PROPERTY INVESTMENTS          
ASYLUM SEEKER CONTRACT        ,6210,RENTS                         ,01/10/2012,3337262,MPA20121001142 18        ,562.5,MR T JEFFCOATE                          ,516245,Unclassified Trade,LETTING AGENTS                
ASYLUM SEEKER CONTRACT        ,6210,RENTS                         ,01/10/2012,3337269,MPA20121001142 24        ,"1,110.00",CAPITAL PROPERTIES                      ,478220,Unclassified Trade,LETTING AGENTS                
REFUGEE GATEWAY PROGRAMME     ,6210,RENTS                         ,01/10/2012,3337279,MPA20121001142 9         ,650,EXCELL LETTINGS & MANAGEMENT LTD        ,547611,Unclassified Trade,LETTING AGENTS                
VS- LUNCH CLUB GRANT          ,8180,GRANTS                        ,01/10/2012,3337293,MPA20121001143 1         ,768.5,BANNER CROSS LUNCHEON & FRIENDSHIP CLUB ,326250,Unclassified Non Trade,PLACES OF WORSHIP             
VS- LUNCH CLUB GRANT          ,8180,GRANTS                        ,01/10/2012,3337295,MPA20121001143 11        ,576.5,ADLINGTON LUNCHEON CLUB                 ,295201,Unclassified Non Trade,CHARITIES & VOLUNTARY ORGANISA
VS- LUNCH CLUB GRANT          ,8180,GRANTS                        ,01/10/2012,3337296,MPA20121001143 12        ,"1,054.75",DARNALL LUNCH CLUB                      ,295216,Unclassified Non Trade,CHARITIES & VOLUNTARY ORGANISA
VS- LUNCH CLUB GRANT          ,8180,GRANTS                        ,01/10/2012,3337298,MPA20121001143 14        ,597.25,GLEADLESS VALLEY LUNCHEON CLUB          ,295224,Unclassified Non Trade,CHARITIES & VOLUNTARY ORGANISA
VS- LUNCH CLUB GRANT          ,8180,GRANTS                        ,01/10/2012,3337299,MPA20121001143 15        ,652.75,DUKE STREET COMMUNITY CENTRE            ,375030,Unclassified Non Trade,COMMUNITY CENTRES             
VS- LUNCH CLUB GRANT          ,8180,GRANTS                        ,01/10/2012,3337300,MPA20121001143 16        ,"1,559.75",ST OSWALDS LUNCHEON CLUB                ,385325,Unclassified Non Trade,CHARITIES & VOLUNTARY ORGANISA
VS- LUNCH CLUB GRANT          ,8180,GRANTS                        ,01/10/2012,3337302,MPA20121001143 18        ,733,BIRLEY SPA MONDAY CLUB                  ,295206,Unclassified Non Trade,CHARITIES & VOLUNTARY ORGANISA
VS- LUNCH CLUB GRANT          ,8180,GRANTS                        ,01/10/2012,3337303,MPA20121001143 19        ,868.75,BIRLEY SPA WEDNESDAY CLUB               ,295210,Unclassified Non Trade,CHARITIES & VOLUNTARY ORGANISA
VS- LUNCH CLUB GRANT          ,8180,GRANTS                        ,01/10/2012,3337304,MPA20121001143 2         ,637,CHRIST CHURCH PITSMOOR LUNCH CLUB       ,321910,Unclassified Non Trade,CHARITIES & VOLUNTARY ORGANISA
VS- LUNCH CLUB GRANT          ,8180,GRANTS                        ,01/10/2012,3337306,MPA20121001143 21        ,684,ST SWITHUNS LUNCH CLUB                  ,295166,Unclassified Non Trade,CHARITIES & VOLUNTARY ORGANISA
VS- LUNCH CLUB GRANT          ,8180,GRANTS                        ,01/10/2012,3337308,MPA20121001143 23        ,684.5,ST JOHN'S ABBEYDALE LUNCH CLUB          ,385324,Unclassified Non Trade,CHARITIES & VOLUNTARY ORGANISA
VS- LUNCH CLUB GRANT          ,8180,GRANTS                        ,01/10/2012,3337309,MPA20121001143 24        ,509.5,GRAPEVINE CENTRE LUNCHEON CLUB          ,295190,Unclassified Non Trade,CHARITIES & VOLUNTARY ORGANISA
VS- LUNCH CLUB GRANT          ,8180,GRANTS                        ,01/10/2012,3337310,MPA20121001143 25        ,"1,575.25",PITSMOOR LUNCH CLUB                     ,295194,Unclassified Non Trade,CHARITIES & VOLUNTARY ORGANISA
VS- LUNCH CLUB GRANT          ,8180,GRANTS                        ,01/10/2012,3337311,MPA20121001143 26        ,"1,064.75",THE SALVATION ARMY SHEFFIELD CASTLE     ,327783,Unclassified Non Trade,"HOUSING ASSOCIATIONS, SOCIETIE"
VS- LUNCH CLUB GRANT          ,8180,GRANTS                        ,01/10/2012,3337313,MPA20121001143 28        ,528.5,ANNE BAILEY                             ,295167,Unclassified Non Trade,CHARITIES & VOLUNTARY ORGANISA
VS- LUNCH CLUB GRANT          ,8180,GRANTS                        ,01/10/2012,3337314,MPA20121001143 29        ,611.75,LOUND TOP LUNCH CLUB                    ,295188,Unclassified Non Trade,CHARITIES & VOLUNTARY ORGANISA
VS- LUNCH CLUB GRANT          ,8180,GRANTS                        ,01/10/2012,3337315,MPA20121001143 3         ,"1,016.50",CROSSPOOL LUNCH CLUB                    ,321911,Unclassified Non Trade,CHARITIES & VOLUNTARY ORGANISA
VS- LUNCH CLUB GRANT          ,8180,GRANTS                        ,01/10/2012,3337317,MPA20121001143 31        ,897.5,SHIREGREEN UNITED REFORMED CHURCH       ,295203,Unclassified Non Trade,PLACES OF WORSHIP             
VS- LUNCH CLUB GRANT          ,8180,GRANTS                        ,01/10/2012,3337318,MPA20121001143 32        ,517.75,ST TIMOTHY'S LUNCH CLUB                 ,295163,Unclassified Non Trade,CHARITIES & VOLUNTARY ORGANISA
VS- LUNCH CLUB GRANT          ,8180,GRANTS                        ,01/10/2012,3337319,MPA20121001143 33        ,783,MEERSBROOK PARK LUNCH CLUB              ,363027,Unclassified Non Trade,CHARITIES & VOLUNTARY ORGANISA
VS- LUNCH CLUB GRANT          ,8180,GRANTS                        ,01/10/2012,3337320,MPA20121001143 34        ,878.25,ST BARTHOLOMEWS LUNCH CLUB              ,384447,Unclassified Non Trade,CHARITIES & VOLUNTARY ORGANISA
VS- LUNCH CLUB GRANT          ,8180,GRANTS                        ,01/10/2012,3337322,MPA20121001143 36        ,782.25,ST LEONARD'S LUNCH CLUB                 ,296991,Unclassified Non Trade,CHARITIES & VOLUNTARY ORGANISA
VS- LUNCH CLUB GRANT          ,8180,GRANTS                        ,01/10/2012,3337323,MPA20121001143 37        ,"1,142.25",ST MARY'S LUNCH CLUB                    ,322012,Unclassified Non Trade,CHARITIES & VOLUNTARY ORGANISA
VS- LUNCH CLUB GRANT          ,8180,GRANTS                        ,01/10/2012,3337325,MPA20121001143 39        ,"1,330.25",ST MARY'S HANDSWORTH LUNCH CLUB         ,300780,Unclassified Non Trade,CHARITIES & VOLUNTARY ORGANISA
VS- LUNCH CLUB GRANT          ,8180,GRANTS                        ,01/10/2012,3337327,MPA20121001143 40        ,746.75,WILLIAM TEMPLE LUNCH CLUB               ,299806,Unclassified Non Trade,CHARITIES & VOLUNTARY ORGANISA
VS- LUNCH CLUB GRANT          ,8180,GRANTS                        ,01/10/2012,3337329,MPA20121001143 42        ,687.25,FOXHILL LUNCH CLUB                      ,349900,Unclassified Non Trade,CHARITIES & VOLUNTARY ORGANISA
VS- LUNCH CLUB GRANT          ,8180,GRANTS                        ,01/10/2012,3337330,MPA20121001143 43        ,694.5,LOWER SHIREGREEN LUNCH CLUB             ,299896,Unclassified Non Trade,CHARITIES & VOLUNTARY ORGANISA
VS- LUNCH CLUB GRANT          ,8180,GRANTS                        ,01/10/2012,3337333,MPA20121001143 46        ,"1,068.25",DIOCESE OF HALLAM                       ,351301,Unclassified Non Trade,RELIGIOUS ORGANISATIONS       
VS- LUNCH CLUB GRANT          ,8180,GRANTS                        ,01/10/2012,3337338,MPA20121001143 50        ,769.5,PAKISTAN ADVICE CENTRE FIRVALE LUNCH CLU,374823,Unclassified Non Trade,CHARITIES & VOLUNTARY ORGANISA
VS- LUNCH CLUB GRANT          ,8180,GRANTS                        ,01/10/2012,3337342,MPA20121001143 54        ,608.25,WESLEY HALL LUNCH CLUB                  ,511866,Unclassified Non Trade,CHARITIES & VOLUNTARY ORGANISA
VS- LUNCH CLUB GRANT          ,8180,GRANTS                        ,01/10/2012,3337343,MPA20121001143 55        ,525.25,VALLEY LUNCH CLUB                       ,514281,Unclassified Non Trade,CHARITIES & VOLUNTARY ORGANISA
VS- LUNCH CLUB GRANT          ,8180,GRANTS                        ,01/10/2012,3337344,MPA20121001143 56        ,769.5,THE THURSDAY CLUB                       ,451641,Unclassified Non Trade,CHARITIES & VOLUNTARY ORGANISA
VS- LUNCH CLUB GRANT          ,8180,GRANTS                        ,01/10/2012,3337346,MPA20121001143 58        ,989,ELDERS HEALTH & WELLBEING GROUP         ,545137,Unclassified Non Trade,COMMUNITY PROJECTS            
VS- LUNCH CLUB GRANT          ,8180,GRANTS                        ,01/10/2012,3337347,MPA20121001143 59        ,"1,111.00",MANOR LODGE LUNCHEON CLUB               ,545135,Unclassified Non Trade,CHARITIES & VOLUNTARY ORGANISA
VS- LUNCH CLUB GRANT          ,8180,GRANTS                        ,01/10/2012,3337351,MPA20121001143 62        ,"1,233.25",FRECHEVILLE PARISH DAY CENTRE           ,348612,Unclassified Non Trade,LOCAL GOVERNMENT              
VS- LUNCH CLUB GRANT          ,8180,GRANTS                        ,01/10/2012,3337352,MPA20121001143 63        ,946.75,MOSBOROUGH LUNCH & SOCIAL CLUB          ,510333,Leisure Services,"CLUBS & ASSOCIATIONS - SOCIAL,"
VS- LUNCH CLUB GRANT          ,8180,GRANTS                        ,01/10/2012,3337353,MPA20121001143 64        ,"1,365.50",MADINA ELDERLY DAY CARE CENTRE (MEN'S LU,549532,Unclassified Non Trade,CHARITIES & VOLUNTARY ORGANISA
VS- LUNCH CLUB GRANT          ,8180,GRANTS                        ,01/10/2012,3337355,MPA20121001143 8         ,"1,025.25",WOODSEATS METHODIST LUNCH CLUB          ,325667,Unclassified Non Trade,CHARITIES & VOLUNTARY ORGANISA
VS- LUNCH CLUB GRANT          ,8180,GRANTS                        ,01/10/2012,3337356,MPA20121001143 9         ,872,GREYSTONES LUNCH CLUB                   ,295226,Unclassified Non Trade,CHARITIES & VOLUNTARY ORGANISA
ADULT SOCIAL CARE PURCHASING  ,9200,SHORT TERM RESIDENTIAL CARE   ,01/10/2012,3337120,J530274 141012           ,"2,010.86",IDEAL CARE HOMES                        ,524235,Social Community Care,RESIDENTIAL CARE HOMES        
ADULT SOCIAL CARE PURCHASING  ,9200,CONTINUING RESIDENTIAL CARE   ,01/10/2012,3337120,J530274 141012           ,"13,160.57",IDEAL CARE HOMES                        ,524235,Social Community Care,RESIDENTIAL CARE HOMES        
ADULT SOCIAL CARE PURCHASING  ,9200,CONTINUING RESIDENTIAL CARE   ,01/10/2012,3337121,J530431 141012           ,"6,271.00",ASH HOUSE RESIDENTIAL HOME              ,361901,Social Community Care,RESIDENTIAL CARE HOMES        
ADULT SOCIAL CARE PURCHASING  ,9200,CONTINUING RESIDENTIAL CARE   ,01/10/2012,3337122,J530433 141012           ,"3,096.00",DEVAGLADE LIMITED T/A AARON VIEW        ,486043,Social Community Care,NURSING HOMES                 
ADULT SOCIAL CARE PURCHASING  ,9200,CONTINUING RESIDENTIAL CARE   ,01/10/2012,3337123,J530435 141012           ,"5,648.00",BALMORAL NURSING HOME                   ,361851,Social Community Care,NURSING HOMES                 
ADULT SOCIAL CARE PURCHASING  ,9200,CONTINUING RESIDENTIAL CARE   ,01/10/2012,3337124,J530436 141012           ,"4,615.00",ALEXANDER COURT CARE HOME               ,361889,Social Community Care,RESIDENTIAL CARE HOMES        
ADULT SOCIAL CARE PURCHASING  ,9210,CONTINUING NURSING CARE       ,01/10/2012,3337124,J530436 141012           ,"12,704.00",ALEXANDER COURT CARE HOME               ,361889,Social Community Care,RESIDENTIAL CARE HOMES        
ADULT SOCIAL CARE PURCHASING  ,9200,CONTINUING RESIDENTIAL CARE   ,01/10/2012,3337125,J530437 141012           ,"3,819.00",ASCOT LODGE CARE HOME                   ,362118,Social Community Care,NURSING HOMES                 
ADULT SOCIAL CARE PURCHASING  ,9210,CONTINUING NURSING CARE       ,01/10/2012,3337125,J530437 141012           ,"1,944.43",ASCOT LODGE CARE HOME                   ,362118,Social Community Care,NURSING HOMES                 
ADULT SOCIAL CARE PURCHASING  ,9200,CONTINUING RESIDENTIAL CARE   ,01/10/2012,3337126,J530438 141012           ,"8,256.14",BEECHY KNOLL                            ,362144,Social Community Care,RESIDENTIAL CARE HOMES        
ADULT SOCIAL CARE PURCHASING  ,9200,CONTINUING RESIDENTIAL CARE   ,01/10/2012,3337127,J530440 141012           ,"7,038.00",ROSEBERRY CARE CENTRES GB LTD           ,368334,Social Community Care,NURSING HOMES                 
ADULT SOCIAL CARE PURCHASING  ,9210,CONTINUING NURSING CARE       ,01/10/2012,3337127,J530440 141012           ,"6,352.00",ROSEBERRY CARE CENTRES GB LTD           ,368334,Social Community Care,NURSING HOMES                 
PURCHASING LEARNING DISABILITI,9200,CONTINUING RESIDENTIAL CARE   ,01/10/2012,3337128,J530441 141012           ,"27,287.00",HEATHCOTES LD LLP                       ,571496,Social Community Care,RESIDENTIAL CARE HOMES        
ADULT SOCIAL CARE PURCHASING  ,9210,CONTINUING NURSING CARE       ,01/10/2012,3337129,J531156 141012           ,"2,574.00",CHATSWORTH GRANGE EMI N HOME            ,362033,Social Community Care,NURSING HOMES                 
ADULT SOCIAL CARE PURCHASING  ,9200,CONTINUING RESIDENTIAL CARE   ,01/10/2012,3337130,J526649 141012           ,"32,248.00",GRANGE CRESCENT                         ,361898,Social Community Care,RESIDENTIAL CARE HOMES        
ADULT SOCIAL CARE PURCHASING  ,9200,CONTINUING RESIDENTIAL CARE   ,01/10/2012,3337131,J526653 141012           ,"28,118.64",CASTELAYN                               ,361796,Social Community Care,RESIDENTIAL CARE HOMES        
PDSI PURCHASING               ,9200,CONTINUING RESIDENTIAL CARE   ,01/10/2012,3337131,J526653 141012           ,"5,833.12",CASTELAYN                               ,361796,Social Community Care,RESIDENTIAL CARE HOMES        
ADULT SOCIAL CARE PURCHASING  ,9220,CONTINUING BLOCK BOOKED       ,01/10/2012,3337131,J526653 141012           ,"1,412.00",CASTELAYN                               ,361796,Social Community Care,RESIDENTIAL CARE HOMES        
PURCHASING LEARNING DISABILITI,9200,CONTINUING RESIDENTIAL CARE   ,01/10/2012,3337132,J526727 141012           ,"9,414.28",BETHANY HOUSE                           ,361787,Social Community Care,RESIDENTIAL CARE HOMES        
ADULT SOCIAL CARE PURCHASING  ,9200,CONTINUING RESIDENTIAL CARE   ,01/10/2012,3337133,J528674 141012           ,"7,600.00",BELMONT HOUSE NURSING HOME              ,361754,Social Community Care,RESIDENTIAL CARE HOMES        
DRUG & ALCOHOL MH -PURCHASING ,9200,SHORT TERM RESIDENTIAL CARE   ,01/10/2012,3337135,J530407 160912           ,"1,234.29",ARK HOUSE REHAB LTD                     ,383520,Social Community Care,RESIDENTIAL CARE HOMES        
ADULT SOCIAL CARE PURCHASING  ,9200,SHORT TERM RESIDENTIAL CARE   ,01/10/2012,3337136,J531124 160912           ,"4,134.86",BELMONT HOUSE NURSING HOME              ,361754,Social Community Care,RESIDENTIAL CARE HOMES        
ADULT SOCIAL CARE PURCHASING  ,9200,SHORT TERM RESIDENTIAL CARE   ,01/10/2012,3337137,J531128 160912           ,"4,420.00",ALEXANDER COURT CARE HOME               ,361889,Social Community Care,RESIDENTIAL CARE HOMES        
ADULT SOCIAL CARE PURCHASING  ,9200,SHORT TERM RESIDENTIAL CARE   ,01/10/2012,3337138,J531129 160912           ,"1,548.00",BEECHY KNOLL                            ,362144,Social Community Care,RESIDENTIAL CARE HOMES        
ADULT SOCIAL CARE PURCHASING  ,9200,SHORT TERM RESIDENTIAL CARE   ,01/10/2012,3337139,J531130 160912           ,812.14,ABBEY GRANGE RESIDENTIAL HOME           ,361753,Social Community Care,RESIDENTIAL CARE HOMES        
UASC/ASYLUM 16-17             ,9270,INDEPENDENT FOSTERING         ,01/10/2012,3337174,17710,"3,411.80",REDACTED PERSONAL DATA,352082,Social Community Care,ADOPTION & FOSTERING          
UASC/ASYLUM 16-17             ,9270,INDEPENDENT FOSTERING         ,01/10/2012,3337175,17731,"3,411.80",REDACTED PERSONAL DATA,352082,Social Community Care,ADOPTION & FOSTERING          
CARE PROCEEDINGS (LEGAL FEES) ,8470,LEGAL FEES                    ,02/10/2012,3338072,ERS INVOICE73065         ,"1,491.63",L & K CLARKE PSYCHOLOGY SERVICES LTD    ,443006,Medical ,PSYCHOLOGISTS                 
GRANT AIDED FACILITIES        ,8180,GRANTS                        ,02/10/2012,3338088,ERS INVOICE73081         ,"17,950.00",CHAPELTOWN POOL                         ,321343,Leisure Services,SWIMMING POOLS - PUBLIC       
CARE PROCEEDINGS (LEGAL FEES) ,8470,LEGAL FEES                    ,02/10/2012,3338093,ERS INVOICE73086         ,"2,225.00",CEC MORLEY                              ,537729,Unclassified Non Trade,COURTS                        
CARE PROCEEDINGS (LEGAL FEES) ,8470,LEGAL FEES                    ,02/10/2012,3338095,ERS INVOICE73088         ,530.4,HOPE FELLOWSHIP CIC                     ,516716,Unclassified Non Trade,COMMUNITY NETWORKS            
CARE PROCEEDINGS (LEGAL FEES) ,8470,LEGAL FEES                    ,02/10/2012,3338110,ERS INVOICE73103         ,692.2,LYNNE JACKSON LTD                       ,504916,Medical ,PSYCHOLOGISTS                 
CARE PROCEEDINGS (LEGAL FEES) ,8470,LEGAL FEES                    ,02/10/2012,3338111,ERS INVOICE73104         ,"2,225.00",CEC MORLEY                              ,537729,Unclassified Non Trade,COURTS                        
CLAIMS                        ,8740,PUBLIC LIABILITY              ,02/10/2012,3338112,ERS INVOICE73105         ,"7,155.00",REDACTED PERSONAL DATA,553133,Unclassified Non Trade,OUT OF SCOPE FOR SIC MONITORIN
CLAIMS                        ,8740,PUBLIC LIABILITY              ,02/10/2012,3338113,ERS INVOICE73106         ,"4,750.00",HORWICH FARRELLY SOLICITORS             ,540188,Legal Services,SOLICITORS                    
CLAIMS                        ,8740,EMPLOYERS LIABILITY           ,02/10/2012,3338114,ERS INVOICE73107         ,"1,920.00",WALKER PRESTONS                         ,570605,Legal Services,SOLICITORS MARKETING SERVICES 
CLAIMS                        ,8740,PUBLIC LIABILITY              ,02/10/2012,3338115,ERS INVOICE73108         ,"2,000.00",PETHERBRIDGE BASSRA                     ,572965,Legal Services,SOLICITORS MARKETING SERVICES 
CLAIMS                        ,8740,PUBLIC LIABILITY              ,02/10/2012,3338116,ERS INVOICE73109         ,"1,500.00",HAYWARD BAKER PERSONAL INJURY SOLICITORS,573201,Legal Services,SOLICITORS                    
CLAIMS                        ,8740,PUBLIC LIABILITY              ,02/10/2012,3338117,ERS INVOICE73110         ,"1,314.19",ACROMAS INSURANCE COMPANY LTD           ,525211,Financial Services,INSURANCE - OTHER             
CLAIMS                        ,8740,EMPLOYERS LIABILITY           ,02/10/2012,3338118,ERS INVOICE73111         ,"7,875.00",THOMPSONS CLIENT ACCOUNT                ,505870,Legal Services,SOLICITORS                    
CLAIMS                        ,8740,EMPLOYERS LIABILITY           ,02/10/2012,3338119,ERS INVOICE73112         ,505,DEPARTMENT FOR WORK & PENSIONS          ,326920,Unclassified Non Trade,CENTRAL GOVERNMENT            
CLAIMS                        ,8740,PUBLIC LIABILITY              ,02/10/2012,3338120,ERS INVOICE73113         ,"1,600.00",REDACTED PERSONAL DATA,573238,Unclassified Non Trade,OUT OF SCOPE FOR SIC MONITORIN
CLAIMS                        ,8740,MOTOR VEHICLE                 ,02/10/2012,3338121,ERS INVOICE73114         ,"4,600.00",ANTHONY HODARI & CO SOLICITORS          ,555114,Legal Services,SOLICITORS                    
CLAIMS                        ,8740,MOTOR VEHICLE                 ,02/10/2012,3338122,ERS INVOICE73115         ,"3,010.70",ANTHONY HODARI & CO SOLICITORS          ,555114,Legal Services,SOLICITORS                    
OUTDOOR EDUCATION             ,8440,FEE EXPENSES                  ,02/10/2012,3338125,ERS INVOICE73118         ,505,PHILIP HUMBERSTONE                      ,487844,Leisure Services,SPORTS COACHING & INSTRUCTION 
FAMILY & COMM MANAGEMENT      ,9120,OTHER AGENCIES                ,02/10/2012,3338127,ERS INVOICE73120         ,928.69,REDACTED PERSONAL DATA,569096,Unclassified Non Trade,OUT OF SCOPE FOR SIC MONITORIN
VS - INFRASTRUCTURE SUPPORT   ,8180,GRANTS                        ,02/10/2012,3338131,ERS INVOICE73124         ,"2,222.00",YOUTH ASSOCIATION SOUTH YORKSHIRE       ,313174,Unclassified Non Trade,CHARITIES & VOLUNTARY ORGANISA
STRATEGIC COMM/PARTNERSHIPS   ,9120,OTHER AGENCIES                ,02/10/2012,3338189,ERS INVOICE73128         ,"2,170.00",SHEFFIELD CARERS CENTRE                 ,376051,Unclassified Non Trade,CHARITIES & VOLUNTARY ORGANISA
VS - BUILDING COHESION        ,8180,GRANTS                        ,02/10/2012,3338190,ERS INVOICE73129         ,"6,111.00",HEELEY CITY FARM                        ,301277,Unclassified Non Trade,CHARITIES & VOLUNTARY ORGANISA
VS - BUILDING COHESION        ,8180,GRANTS                        ,02/10/2012,3338191,ERS INVOICE73130         ,"8,833.00",SAVTE                                   ,350936,Unclassified Non Trade,CHARITIES & VOLUNTARY ORGANISA
VS - BUILDING COHESION        ,8180,GRANTS                        ,02/10/2012,3338192,ERS INVOICE73131         ,"4,667.00",SHOPMOBILITY SHEFFIELD LTD              ,362429,Unclassified Non Trade,CHARITIES & VOLUNTARY ORGANISA
VS - BUILDING COHESION        ,8180,GRANTS                        ,02/10/2012,3338193,ERS INVOICE73132         ,"4,167.00",CITY OF SANCTUARY                       ,539148,Unclassified Non Trade,CHARITIES & VOLUNTARY ORGANISA
VS - BUILDING COHESION        ,8180,GRANTS                        ,02/10/2012,3338194,ERS INVOICE73133         ,"3,778.00",SHEFFIELD COMMUNITY TRANSPORT           ,296356,Unclassified Non Trade,CHARITIES & VOLUNTARY ORGANISA
VS - BUILDING COHESION        ,8180,GRANTS                        ,02/10/2012,3338195,ERS INVOICE73134         ,"3,778.00",SHEFFIELD COMMUNITY TRANSPORT           ,296356,Unclassified Non Trade,CHARITIES & VOLUNTARY ORGANISA
VS - BUILDING COHESION        ,8180,GRANTS                        ,02/10/2012,3338196,ERS INVOICE73135         ,"4,444.00",CATHEDRAL ARCHER PROJECT LTD            ,479884,Unclassified Non Trade,CHARITIES & VOLUNTARY ORGANISA
VS - BUILDING COHESION        ,8180,GRANTS                        ,02/10/2012,3338197,ERS INVOICE73136         ,"5,556.00",CHINESE COMMUNITY CENTRE                ,321265,Unclassified Non Trade,CHARITIES & VOLUNTARY ORGANISA
VS - BUILDING COHESION        ,8180,GRANTS                        ,02/10/2012,3338198,ERS INVOICE73137         ,"9,444.00",ROSHNI ASIAN WOMENS RESOURCE CENTRE     ,305514,Unclassified Non Trade,CHARITIES & VOLUNTARY ORGANISA
VS - BUILDING COHESION        ,8180,GRANTS                        ,02/10/2012,3338199,ERS INVOICE73138         ,"28,367.00",SHEFFIELD DOMESTIC ABUSE OUTREACH SERVIC,413591,Medical ,COUNSELLING & ADVICE SERVICES 
VS - BUILDING COHESION        ,8180,GRANTS                        ,02/10/2012,3338200,ERS INVOICE73139         ,"4,444.00",YOUNG WOMENS HOUSING PROJECT            ,301584,Unclassified Non Trade,CHARITIES & VOLUNTARY ORGANISA
CARE PROCEEDINGS (LEGAL FEES) ,8470,LEGAL FEES                    ,02/10/2012,3337944,807937,"2,050.00",NICOLA QUINNEY                          ,509263,Legal Services,BARRISTERS                    
VS - BUILDING COHESION        ,8180,GRANTS                        ,02/10/2012,3338201,ERS INVOICE73140         ,"9,133.00",BEN'S CENTRE                            ,328831,Unclassified Non Trade,DAY CENTRES                   
SHEFFIELD COMMUNITY NETWORK   ,9120,OTHER AGENCIES                ,02/10/2012,3338202,ERS INVOICE73141         ,"11,040.00",HEELEY DEVELOPMENT TRUST                ,363241,Unclassified Non Trade,CHARITIES & VOLUNTARY ORGANISA
SHEFFIELD COMMUNITY NETWORK   ,9120,OTHER AGENCIES                ,02/10/2012,3338203,ERS INVOICE73142         ,"6,480.00",HEELEY DEVELOPMENT TRUST                ,363241,Unclassified Non Trade,CHARITIES & VOLUNTARY ORGANISA
SHEFFIELD COMMUNITY NETWORK   ,9120,OTHER AGENCIES                ,02/10/2012,3338204,ERS INVOICE73143         ,"5,860.80",HEELEY DEVELOPMENT TRUST                ,363241,Unclassified Non Trade,CHARITIES & VOLUNTARY ORGANISA
VS - TACKLING POVERTY         ,8180,GRANTS                        ,02/10/2012,3338205,ERS INVOICE73144         ,"3,044.00",HEELEY ADVICE CENTRE                    ,336752,Unclassified Non Trade,CHARITIES & VOLUNTARY ORGANISA
VS - BUILDING COHESION        ,8180,GRANTS                        ,02/10/2012,3338206,ERS INVOICE73145         ,"3,889.00",EMMAUS SHEFFIELD LTD                    ,418279,Social Community Care,SOCIAL SERVICES               
VS - BUILDING COHESION        ,8180,GRANTS                        ,02/10/2012,3338207,ERS INVOICE73146         ,"9,600.00",SHEFFIELD RAPE & SEXUAL ABUSE           ,314909,Medical ,COUNSELLING & ADVICE SERVICES 
VS - BUILDING COHESION        ,8180,GRANTS                        ,02/10/2012,3338208,ERS INVOICE73147         ,"7,167.00",LANGUAGES SHEFFIELD                     ,484105,Unclassified Non Trade,CHARITIES & VOLUNTARY ORGANISA
VS - BUILDING COHESION        ,8180,GRANTS                        ,02/10/2012,3338209,ERS INVOICE73148         ,"6,667.00",SHEFFIELD ALCOHOL SUPPORT SERVICE       ,351470,Medical ,ALCOHOL MISUSE - ADVICE & COUN
VS - BUILDING COHESION        ,8180,GRANTS                        ,02/10/2012,3338210,ERS INVOICE73149         ,"5,556.00",REDACTED PERSONAL DATA,568628,Social Community Care,CAREFIRST DIRECT PAYMENTS     
VS - TACKLING POVERTY         ,8180,GRANTS                        ,02/10/2012,3338211,ERS INVOICE73150         ,"16,511.00",SHEFFIELD CREDIT UNION                  ,400397,Financial Services,CREDIT UNIONS                 
MARKETING SHEFFIELD           ,8270,SUBSCRIPTIONS                 ,02/10/2012,3316867,SINV.24143               ,"25,000.00",DERBYSHIRE & NOTTINGHAMSHIRE CHAMBER    ,469555,Human Resources,BUSINESS INFORMATION SERVICES 
CITY WIDE CHILD CARE CONTRACT ,8440,FEE EXPENSES                  ,02/10/2012,3324306,3(Q32012/13)             ,"22,237.00",SHEFFIELD CHILDREN'S CENTRE             ,311908,Social Community Care,NURSERIES & CRECHES           
CITY WIDE CHILD CARE CONTRACT ,8440,FEE EXPENSES                  ,02/10/2012,3324767,19,"47,592.00",TINSLEY PARENTS & CHILDRENS CONSORTIUM  ,478244,Social Community Care,NURSERIES & CRECHES           
CITY WIDE CHILD CARE CONTRACT ,8440,FEE EXPENSES                  ,02/10/2012,3325905,41157,"4,373.00",OSBOURNE HOUSE COMMUNITY NRSY LTD       ,311900,Social Community Care,NURSERIES & CRECHES           
MARKETING SHEFFIELD           ,8350,MISCELLANEOUS EXPENSES        ,02/10/2012,3329256,284,"2,190.79",HOSPITALITY SHEFFIELD LIMITED           ,482786,Leisure Services,CORPORATE AND BUSINESS HOSPITA
MARKETING SHEFFIELD           ,8350,MISCELLANEOUS EXPENSES        ,02/10/2012,3329257,283,"7,589.00",HOSPITALITY SHEFFIELD LIMITED           ,482786,Leisure Services,CORPORATE AND BUSINESS HOSPITA
CITY WIDE CHILD CARE CONTRACT ,8440,FEE EXPENSES                  ,02/10/2012,3329331,1537,"72,140.00",OUT OF SCHOOL NETWORK                   ,368363,Education,EDUCATIONAL SERVICES          
LEARN SAFE DRIVE SAFE         ,1194,OTHER FEES                    ,02/10/2012,3330515,12254,"3,000.00",BLIND MICE MEDIA LTD                    ,554813,Facilities Management,ADVERTISING - MEDIA           
PROJECT MANAGEMENT - SCHEME   ,8350,MISCELLANEOUS EXPENSES        ,02/10/2012,3330573,6103,645,EURO ENVIRONMENTAL LTD                  ,399641,Construction,ASBESTOS SURVEYS & REMOVALS   
PROJECT MANAGEMENT - SCHEME   ,8350,MISCELLANEOUS EXPENSES        ,02/10/2012,3330574,6102,746,EURO ENVIRONMENTAL LTD                  ,399641,Construction,ASBESTOS SURVEYS & REMOVALS   
SHEFFIELD HOMES TREES         ,6370,GROUNDS MTCE AND ARBORICULTURE,02/10/2012,3330620,95,"1,040.00",J B HIBBERD LIMITED                     ,510434,Environmental Services,TREE WORK & FORESTRY SERVICES 
CITY WIDE CHILD CARE CONTRACT ,8440,FEE EXPENSES                  ,02/10/2012,3330760,979499/003               ,"13,976.00",BLACK WOMEN'S RESOURCE CENTRE           ,299561,Unclassified Non Trade,CHARITIES & VOLUNTARY ORGANISA
COMMERCIAL ESTATE             ,8350,MISCELLANEOUS EXPENSES        ,02/10/2012,3330898,1046874,589.56,BANK OF SCOTLAND ASSET FINANCE          ,493552,Financial Services,BANKS & OTHER FINANCIAL INSTIT
"WOODEN PARK, MP & IMP         ",1194,OTHER FEES                    ,02/10/2012,3331840,14214,"15,318.35",HORTICON LTD                            ,525508,Construction,LANDSCAPE CONTRACTORS         
PUBLIC RIGHTS OF WAY          ,6390,OTHER HIGHWAY MAINTENANCE     ,02/10/2012,3332318,260609,"1,939.46",MARCHINGTON STONE LIMITED               ,526115,Building Construction Materials,QUARRIES                      
PUBLIC RIGHTS OF WAY          ,6390,OTHER HIGHWAY MAINTENANCE     ,02/10/2012,3332346,1977,"1,900.00",STEEL VALLEY PROJECT                    ,386046,Unclassified Non Trade,CHARITIES & VOLUNTARY ORGANISA
CITY STEWARDSHIP              ,6030,REPAIRS TO TENANTED PROPERTIES,02/10/2012,3332900,12030045,"142,691.06",KIER SHEFFIELD LLP                      ,352687,Construction,PROPERTY MAINTENANCE & REPAIRS
CITY STEWARDSHIP              ,6030,REPAIRS TO TENANTED PROPERTIES,02/10/2012,3332901,12030046,"139,353.35",KIER SHEFFIELD LLP                      ,352687,Construction,PROPERTY MAINTENANCE & REPAIRS
EXECUTOR SERVICES             ,8090,BEREAVEMENT SUPPLIES          ,02/10/2012,3333100,F49960-04615             ,553,SHEFFIELD CO-OPERATIVE FUNERALCARE      ,203171,Environmental Services,FUNERAL SERVICES              
CITY WIDE CHILD CARE CONTRACT ,8440,FEE EXPENSES                  ,02/10/2012,3333962,180,"22,685.00",ELLESMERE CHILDREN'S CENTRE             ,296344,Social Community Care,NURSERIES & CRECHES           
PROJECT MANAGEMENT - SCHEME   ,8350,MISCELLANEOUS EXPENSES        ,02/10/2012,3334154,6146,"17,655.00",EURO ENVIRONMENTAL LTD                  ,399641,Construction,ASBESTOS SURVEYS & REMOVALS   
LEARNING SUPPORT              ,8380,PHOTOCOPYING                  ,02/10/2012,3334527,1104649748,691.79,KONICA MINOLTA BUSINESS SOLUTIONS       ,375732,ICT,PHOTOCOPIERS                  
LEARNING SUPPORT              ,8380,PHOTOCOPYING                  ,02/10/2012,3334528,1104694501,602.31,KONICA MINOLTA BUSINESS SOLUTIONS       ,375732,ICT,PHOTOCOPIERS                  
WEST SA - LAC                 ,8490,OTHER PROFESSIONAL FEES       ,02/10/2012,3334531,29164,727.5,LANGUAGE LINE LIMITED                   ,471915,Human Resources,TRANSLATORS & INTERPRETERS    
CORPORATE LEASING             ,7070,OPERATING LEASES              ,02/10/2012,3334923,1048647,"3,715.00",BANK OF SCOTLAND ASSET FINANCE          ,493552,Financial Services,BANKS & OTHER FINANCIAL INSTIT
CITY WIDE CHILD CARE CONTRACT ,8440,FEE EXPENSES                  ,02/10/2012,3335120,S76                      ,"23,518.00",HANDSWORTH COMMUNITY NURSERY            ,325463,Social Community Care,NURSERIES & CRECHES           
ESTATE SERVICES               ,6090,TIPPING COSTS                 ,02/10/2012,3335416,45772/1                  ,"8,390.87",R FLETCHER WASTE DISPOSAL LTD           ,473104,Environmental Services,WASTE DISPOSAL SERVICES       
FURNISHED ACCOMMODATION       ,8050,ELECTRICAL GOODS              ,02/10/2012,3335418,CMD2244731               ,"10,865.00",DOMESTIC APPLIANCE DISTRIBUTORS         ,527171,Domestic Goods,ELECTRICAL GOODS - SALES      
NORBURY                       ,7040,OTHER VEHICLE RUNNING COSTS   ,02/10/2012,3335424,2100073646,813.72,SHEFFIELD HEALTH & SOCIAL CARE NHS      ,353994,Unclassified Non Trade,HOSPITALS                     
FURNISHED ACCOMMODATION       ,6020,VOID PAINTING INITIATIVE      ,02/10/2012,3335535,L08144                   ,584,BELL GROUP (LEEDS)                      ,441427,Construction,PAINTERS & DECORATORS         
FURNISHED ACCOMMODATION       ,6020,VOID PAINTING INITIATIVE      ,02/10/2012,3335540,L08145                   ,584,BELL GROUP (LEEDS)                      ,441427,Construction,PAINTERS & DECORATORS         
FURNISHED ACCOMMODATION       ,6020,VOID PAINTING INITIATIVE      ,02/10/2012,3335542,L08143                   ,584,BELL GROUP (LEEDS)                      ,441427,Construction,PAINTERS & DECORATORS         
SHEFFIELD HOMES TREES         ,6370,GROUNDS MTCE AND ARBORICULTURE,02/10/2012,3335554,101,"2,390.00",J B HIBBERD LIMITED                     ,510434,Environmental Services,TREE WORK & FORESTRY SERVICES 
BANNERDALE CENTRE             ,8410,GENERAL OFFICE EXPENSES       ,02/10/2012,3335692,164671,"2,500.80",AQUAID (SOUTH YORKSHIRE)                ,203007,Catering,WATER COOLERS                 
DH - UTILITIES                ,1165,NC&A OTHER                    ,02/10/2012,3335699,8840007617/8849027687    ,"6,991.50",NPOWER (METERPLUS)                      ,464845,Utilities,ELECTRICITY COMPANIES         
SEN TRANSPORT                 ,7140,PUBLIC TRANSPORT COSTS        ,02/10/2012,3336033,1800036172,832,DERBYSHIRE COUNTY COUNCIL               ,299578,Unclassified Non Trade,LOCAL GOVERNMENT              
SEN TRANSPORT                 ,7140,PUBLIC TRANSPORT COSTS        ,02/10/2012,3336034,1800036173,"2,160.00",DERBYSHIRE COUNTY COUNCIL               ,299578,Unclassified Non Trade,LOCAL GOVERNMENT              
ALDINE HOUSE                  ,5610,AGENCY STAFF                  ,02/10/2012,3336071,759708,"1,957.00",TEACHING PERSONNEL                      ,410695,Human Resources,EMPLOYMENT & RECRUITMENT AGENC
ADULT SOCIAL CARE PURCHASING  ,8470,LEGAL FEES                    ,02/10/2012,3336952,319932,750,KINGS CHAMBERS                          ,572618,Legal Services,SOLICITORS MARKETING SERVICES 
ALDINE HOUSE                  ,7060,EXTERNAL VEHICLE HIRE         ,02/10/2012,3336998,CAR19960                 ,536.64,CAR-ES (UK) LIMITED                     ,328870,Social Community Care,SOCIAL SERVICES               
SWAN COMMISSIONED             ,1147,DEMOLITION                    ,02/10/2012,3337027,80561,740,HAGUE PLANT LTD                         ,205330,Vehicles Not Buses,PLANT & MACHINERY HIRE & LEASI
PARKHILL DEMOLITION SHM (STH) ,1157,DWELLINGS MAIN CONTRACT       ,02/10/2012,3337027,80561,540,HAGUE PLANT LTD                         ,205330,Vehicles Not Buses,PLANT & MACHINERY HIRE & LEASI
ADOPTION SERVICE              ,8400,PUBLICATIONS AND PERIODICALS  ,02/10/2012,3337209,PUBS106194               ,560,REDACTED PERSONAL DATA,329738,Social Community Care,ADOPTION & FOSTERING          
HR & ORG DEVELOPMENT          ,5750,SHORT COURSE COSTS            ,02/10/2012,3337216,25146,729,THE WATER MANAGEMENT SOCIETY            ,404027,Environmental Services,WATER TREATMENT EQUIPMENT & SE
HR & ORG DEVELOPMENT          ,5750,SHORT COURSE COSTS            ,02/10/2012,3337218,25149,"1,128.00",THE WATER MANAGEMENT SOCIETY            ,404027,Environmental Services,WATER TREATMENT EQUIPMENT & SE
MAST STRATEGY                 ,5750,TRAINING EXPENDITURE          ,02/10/2012,3337240,614,750,CONSILIENT CONSULTING LTD               ,446779,Consultancy,BUSINESS & MANAGEMENT CONSULTA
ALDINE HOUSE                  ,5750,TRAINING EXPENDITURE          ,02/10/2012,3337360,OUKI20546                ,"1,062.15",POSITIVE OPTIONS LTD                    ,328692,Human Resources,TRAINING CONSULTANTS          
ALDINE HOUSE                  ,5750,TRAINING EXPENDITURE          ,02/10/2012,3337361,OUKI20545                ,"1,062.15",POSITIVE OPTIONS LTD                    ,328692,Human Resources,TRAINING CONSULTANTS          
VSP DELIVER                   ,9120,OTHER AGENCIES                ,02/10/2012,3337379,CRM4364                  ,"3,500.00",LIFE BEYOND SCHOOL                      ,533301,Education,EDUCATIONAL SERVICES          
SECURITY SERVICES             ,8540,SECURITY SERVICES             ,02/10/2012,3337477,1795,790,CCS LTD                                 ,445002,Cleaning and Janitorial,CLEANING SERVICES - COMMERCIAL
CONTACT CONTRACTS             ,9280,CONTACT                       ,02/10/2012,3337485,437,"1,856.97",SHEFFIELD CHILDREN'S CENTRE             ,311908,Social Community Care,NURSERIES & CRECHES           
CONTACT CONTRACTS             ,9280,CONTACT                       ,02/10/2012,3337486,438,"1,824.75",SHEFFIELD CHILDREN'S CENTRE             ,311908,Social Community Care,NURSERIES & CRECHES           
PLAYGROUND MAINTENANCE & INSPE,8010,EQUIPMENT PURCHASE AND REPAIR ,02/10/2012,3337510,21521,"1,120.00",SMP (PLAYGROUNDS) LIMITED               ,493168,Sports & Playground,PLAYGROUND EQUIPMENT          
ADAPTATIONS                   ,1157,DWELLINGS MAIN CONTRACT       ,02/10/2012,3337527,12020184,"4,446.84",KIER SHEFFIELD LLP                      ,352687,Construction,PROPERTY MAINTENANCE & REPAIRS
ADAPTATIONS                   ,1157,DWELLINGS MAIN CONTRACT       ,02/10/2012,3337528,12020182,"12,712.37",KIER SHEFFIELD LLP                      ,352687,Construction,PROPERTY MAINTENANCE & REPAIRS
ADAPTATIONS                   ,1157,DWELLINGS MAIN CONTRACT       ,02/10/2012,3337529,12020183,"4,440.03",KIER SHEFFIELD LLP                      ,352687,Construction,PROPERTY MAINTENANCE & REPAIRS
ADAPTATIONS                   ,1157,DWELLINGS MAIN CONTRACT       ,02/10/2012,3337530,12020181,"33,582.46",KIER SHEFFIELD LLP                      ,352687,Construction,PROPERTY MAINTENANCE & REPAIRS
COMMUNITY YOUTH TEAMS         ,9120,OTHER AGENCIES                ,02/10/2012,3337532,1184,"47,229.80",GET HOOKED ON LIFE CIC                  ,520422,Unclassified Non Trade,CHARITIES & VOLUNTARY ORGANISA
SHEFFIELD HOMES MANAGEMENT COS,8350,MISCELLANEOUS EXPENSES        ,02/10/2012,3337725,644,"4,348.46",SHEFFIELD HOMES LTD                     ,503889,Unclassified Non Trade,"HOUSING ASSOCIATIONS, SOCIETIE"
SPORTS EVENTS                 ,8020,EQUIPMENT LEASE/ RENTAL/ HIRE ,02/10/2012,3337789,134,500,EVENTS COLLECTIVE LTD                   ,528220,Leisure Services,"MARQUEES, TENTS & PORTABLE FLO"
CARE PROCEEDINGS (LEGAL FEES) ,8470,LEGAL FEES                    ,02/10/2012,3337896,833461,600,MR A J LORD                             ,486218,Legal Services,BARRISTERS                    
CHILDREN & YOUNG PEOPLE'S INVO,9120,OTHER AGENCIES                ,02/10/2012,3337903,BU0407                   ,"5,000.00",COMMON PURPOSE                          ,316981,Human Resources,TRAINING SERVICES             
BOOKS & OTHER MATERIALS       ,8080,LIBRARY MATERIALS             ,02/10/2012,3337972,1583923,721.62,BERTRAM LIBRARY SERVICES                ,418929,Education,EDUCATIONAL EQUIPMENT & SUPPLI
BOOKS & OTHER MATERIALS       ,8080,LIBRARY MATERIALS             ,02/10/2012,3337986,1586080,"1,110.07",BERTRAM LIBRARY SERVICES                ,418929,Education,EDUCATIONAL EQUIPMENT & SUPPLI
SPORTS EVENTS                 ,8130,CATERING SUPPLIES             ,02/10/2012,3337988,504,"1,555.42",SPIRIT FOOD SERVICES LTD                ,452991,Leisure Services,ART GALLERIES & FINE ART DEALE
SPORTS EVENTS                 ,6280,HIRE OF PREMISES              ,02/10/2012,3337992,505,500,SPIRIT FOOD SERVICES LTD                ,452991,Leisure Services,ART GALLERIES & FINE ART DEALE
PURCHASING                    ,4260,DIRECT PAYMENTS               ,02/10/2012,3337675,J531529                  ,"2,133.14",REDACTED PERSONAL DATA,556296,Social Community Care,CAREFIRST DIRECT PAYMENTS     
PURCHASING LEARNING DISABILITI,9190,DIRECT PAYMENTS               ,02/10/2012,3337676,J531529                  ,"1,853.41",REDACTED PERSONAL DATA,572337,Social Community Care,CAREFIRST DIRECT PAYMENTS     
PURCHASING LEARNING DISABILITI,9250,INDEPENDENT DAY CARE          ,02/10/2012,3337677,A03891                   ,"6,745.76",AUTISM PLUS LTD                         ,330606,Unclassified Non Trade,CHARITIES & VOLUNTARY ORGANISA
PURCHASING LEARNING DISABILITI,9250,INDEPENDENT DAY CARE          ,02/10/2012,3337678,A03892                   ,"6,745.76",AUTISM PLUS LTD                         ,330606,Unclassified Non Trade,CHARITIES & VOLUNTARY ORGANISA
PURCHASING LEARNING DISABILITI,9250,INDEPENDENT DAY CARE          ,02/10/2012,3337679,A03925                   ,"2,013.92",AUTISM PLUS LTD                         ,330606,Unclassified Non Trade,CHARITIES & VOLUNTARY ORGANISA
PURCHASING LEARNING DISABILITI,9250,INDEPENDENT DAY CARE          ,02/10/2012,3337680,A03926                   ,"2,013.92",AUTISM PLUS LTD                         ,330606,Unclassified Non Trade,CHARITIES & VOLUNTARY ORGANISA
PURCHASING LEARNING DISABILITI,9250,INDEPENDENT DAY CARE          ,02/10/2012,3337681,A03927                   ,"1,208.32",AUTISM PLUS LTD                         ,330606,Unclassified Non Trade,CHARITIES & VOLUNTARY ORGANISA
PURCHASING LEARNING DISABILITI,9250,INDEPENDENT DAY CARE          ,02/10/2012,3337682,A03929                   ,"2,013.92",AUTISM PLUS LTD                         ,330606,Unclassified Non Trade,CHARITIES & VOLUNTARY ORGANISA
PURCHASING LEARNING DISABILITI,9250,INDEPENDENT DAY CARE          ,02/10/2012,3337683,A03930                   ,"1,749.72",AUTISM PLUS LTD                         ,330606,Unclassified Non Trade,CHARITIES & VOLUNTARY ORGANISA
PURCHASING LEARNING DISABILITI,9250,INDEPENDENT DAY CARE          ,02/10/2012,3337684,A03932                   ,"2,013.92",AUTISM PLUS LTD                         ,330606,Unclassified Non Trade,CHARITIES & VOLUNTARY ORGANISA
ADULT SOCIAL CARE PURCHASING  ,9190,CITYWIDE SPOT                 ,02/10/2012,3337687,23359MB                  ,"1,071.00",SPECTRUM SOCIAL CARE LTD                ,328608,Human Resources,EMPLOYMENT & RECRUITMENT AGENC
PURCHASING LEARNING DISABILITI,9190,CITYWIDE SPOT                 ,02/10/2012,3337690,23381DM                  ,783.2,SPECTRUM SOCIAL CARE LTD                ,328608,Human Resources,EMPLOYMENT & RECRUITMENT AGENC
ADULT SOCIAL CARE PURCHASING  ,9190,CITYWIDE SPOT                 ,02/10/2012,3337694,23381MB                  ,"1,071.00",SPECTRUM SOCIAL CARE LTD                ,328608,Human Resources,EMPLOYMENT & RECRUITMENT AGENC
PURCHASING LEARNING DISABILITI,9230,CCSP OTHER                    ,02/10/2012,3337698,292,864,NEWFIELD VIEW SUPPORTED LIVING LTD      ,487359,Social Community Care,DISABILITY & SPECIAL NEEDS - S
PURCHASING                    ,9190,CITYWIDE SPOT                 ,02/10/2012,3337699,596,860,REDACTED PERSONAL DATA,204388,Social Community Care,HOME CARE SERVICES            
PURCHASING LEARNING DISABILITI,9230,CCSP TRANSPORT                ,02/10/2012,3337701,SEN029126                ,807.72,SENSE                                   ,361885,Unclassified Non Trade,CHARITIES & VOLUNTARY ORGANISA
PURCHASING                    ,9230,CCSP OTHER                    ,02/10/2012,3337702,1830319501,"1,625.67",WESTFIELD MEWS -                        ,563592,Social Community Care,RESIDENTIAL CARE HOMES        
PURCHASING LEARNING DISABILITI,9190,CITYWIDE SPOT                 ,02/10/2012,3337703,23359DM                  ,783.2,SPECTRUM SOCIAL CARE LTD                ,328608,Human Resources,EMPLOYMENT & RECRUITMENT AGENC
LEAVING CARE                  ,9270,CARELEAVERS ACCOMMODATION     ,02/10/2012,3337663,5205,"7,800.64",PROGRESSIVE CARE LTD                    ,343548,Social Community Care,CHILDREN'S HOMES              
LEAVING CARE                  ,9270,CARELEAVERS ACCOMMODATION     ,02/10/2012,3337664,5242,930,PROGRESSIVE CARE LTD                    ,343548,Social Community Care,CHILDREN'S HOMES              
LEAVING CARE                  ,9270,CARELEAVERS ACCOMMODATION     ,02/10/2012,3337666,ESG:09                   ,"1,682.86",JORDAN XAVIER LTD                       ,565147,Unclassified Trade,ACCOMMODATION AGENCIES - RESID
LEAVING CARE                  ,9270,CARELEAVERS ACCOMMODATION     ,02/10/2012,3337669,NH13064                  ,"23,861.73",QUALITY PROTECTS CHILDREN LTD           ,420011,Social Community Care,CHILDREN'S HOMES              
PURCHASING LEARNING DISABILITI,9200,CONTINUING RESIDENTIAL CARE   ,02/10/2012,3337652,J526703 141012           ,"9,359.20",H F TRUST LIMITED                       ,362078,Unclassified Non Trade,CHARITIES & VOLUNTARY ORGANISA
ADULT SOCIAL CARE PURCHASING  ,9200,CONTINUING RESIDENTIAL CARE   ,02/10/2012,3337653,J526710 141012           ,"20,984.88",EAGLE HOUSE CARE HOME                   ,361977,Social Community Care,RESIDENTIAL CARE HOMES        
PURCHASING                    ,9200,CONTINUING RESIDENTIAL CARE   ,02/10/2012,3337653,J526710 141012           ,"5,329.20",EAGLE HOUSE CARE HOME                   ,361977,Social Community Care,RESIDENTIAL CARE HOMES        
PURCHASING LEARNING DISABILITI,9200,CONTINUING RESIDENTIAL CARE   ,02/10/2012,3337653,J526710 141012           ,"1,580.00",EAGLE HOUSE CARE HOME                   ,361977,Social Community Care,RESIDENTIAL CARE HOMES        
ADULT SOCIAL CARE PURCHASING  ,9210,CONTINUING NURSING CARE       ,02/10/2012,3337653,J526710 141012           ,"14,860.00",EAGLE HOUSE CARE HOME                   ,361977,Social Community Care,RESIDENTIAL CARE HOMES        
PURCHASING                    ,9210,CONTINUING NURSING CARE       ,02/10/2012,3337653,J526710 141012           ,"2,022.56",EAGLE HOUSE CARE HOME                   ,361977,Social Community Care,RESIDENTIAL CARE HOMES        
ADULT SOCIAL CARE PURCHASING  ,9200,CONTINUING RESIDENTIAL CARE   ,02/10/2012,3337654,J526720 141012           ,"20,600.00",HALLAMSHIRE REST HOME                   ,362093,Social Community Care,REST & RETIREMENT HOMES       
ADULT SOCIAL CARE PURCHASING  ,9210,CONTINUING NURSING CARE       ,02/10/2012,3337655,J526783 141012           ,"11,652.00",HOLMWOOD CARE HOME                      ,331238,Social Community Care,NURSING HOMES                 
ADULT SOCIAL CARE PURCHASING  ,9200,CONTINUING RESIDENTIAL CARE   ,02/10/2012,3337656,J531157 141012           ,"2,156.15",THE GREEN                               ,361956,Social Community Care,NURSING HOMES                 
ADULT SOCIAL CARE PURCHASING  ,4260,RESIDENTIAL COSTS RECOVERED   ,02/10/2012,3337657,J531523 141012           ,"4,275.24",ASH HOUSE RESIDENTIAL HOME              ,361901,Social Community Care,RESIDENTIAL CARE HOMES        
ADULT SOCIAL CARE PURCHASING  ,9210,CONTINUING NURSING CARE       ,02/10/2012,3337658,J531525 141012           ,"11,452.00",ROSE COTTAGE CARE HOME                  ,361940,Social Community Care,NURSING HOMES                 
ADULT SOCIAL CARE PURCHASING  ,9200,SHORT TERM RESIDENTIAL CARE   ,02/10/2012,3337659,J531527 141012           ,"3,021.00",IDEAL CARE HOMES                        ,524235,Social Community Care,RESIDENTIAL CARE HOMES        
ADULT SOCIAL CARE PURCHASING  ,9200,SHORT TERM RESIDENTIAL CARE   ,02/10/2012,3337660,J531125 160912           ,"1,710.00",DARWIN HOUSE RESIDENTIAL CARE           ,361759,Social Community Care,RESIDENTIAL CARE HOMES        
ADULT SOCIAL CARE PURCHASING  ,9200,SHORT TERM RESIDENTIAL CARE   ,02/10/2012,3337661,J531126 160912           ,"2,960.43",LOWER BOWSHAW VIEW NH                   ,362101,Social Community Care,NURSING HOMES                 
ADULT SOCIAL CARE PURCHASING  ,9210,SHORT TERM NURSING CARE       ,02/10/2012,3337662,J531131 160912           ,"1,636.00",HEELEY BANK CARE HOME                   ,362923,Social Community Care,RESIDENTIAL CARE HOMES        
VS - BUILDING COHESION        ,8180,GRANTS                        ,03/10/2012,3338637,ERS INVOICE73171         ,"16,667.00",SHEFFIELD & DISTRICT AFRO-CARIBBEAN     ,302149,Unclassified Non Trade,CHARITIES & VOLUNTARY ORGANISA
COMMUNITY ASSEMBLY EAST       ,9120,OTHER AGENCIES                ,03/10/2012,3338638,ERS INVOICE73172         ,"5,000.00",MASKK                                   ,386161,Unclassified Non Trade,CHARITIES & VOLUNTARY ORGANISA
VS - INFRASTRUCTURE SUPPORT   ,8180,GRANTS                        ,03/10/2012,3338639,ERS INVOICE73173         ,"14,222.00",VOLUNTARY ACTION SHEFFIELD              ,295283,Unclassified Non Trade,CHARITIES & VOLUNTARY ORGANISA
VS - TACKLING POVERTY         ,8180,GRANTS                        ,03/10/2012,3338640,ERS INVOICE73174         ,"27,111.00",PITSMOOR CITIZENS ADVICE BUREAU         ,316703,Unclassified Non Trade,CHARITIES & VOLUNTARY ORGANISA
WORKFORCE DEVELOPMENT         ,8440,FEE EXPENSES                  ,03/10/2012,3338669,ERS INVOICE73203         ,"2,125.00",MEGANURSERY                             ,347961,Social Community Care,NURSERIES & CRECHES           
CORONIAL SERVICES             ,8440,PATHOLOGIST INVOICE           ,03/10/2012,3338670,ERS INVOICE73204         ,572.5,DR MINI C VARGHESE                      ,567541,Medical ,DOCTORS                       
VS- PCT FUNDING               ,8180,GRANTS                        ,03/10/2012,3338812,ERS INVOICE73205         ,"17,782.25",SHEFFIELD MENTAL HEALTH C.A.B.          ,316902,Social Community Care,MENTAL HEALTH CENTRES         
VS - BUILDING COHESION        ,8180,GRANTS                        ,03/10/2012,3338813,ERS INVOICE73206         ,"6,333.00",SHEBEEN                                 ,462568,Consultancy,ENVIRONMENTAL CONSULTANTS     
VS - BUILDING COHESION        ,8180,GRANTS                        ,03/10/2012,3338814,ERS INVOICE73207         ,"3,222.00",VOLUNTARY ACTION SHEFFIELD              ,295283,Unclassified Non Trade,CHARITIES & VOLUNTARY ORGANISA
VS - INFRASTRUCTURE SUPPORT   ,8180,GRANTS                        ,03/10/2012,3338815,ERS INVOICE73208         ,"6,667.00",SOUTH YORKSHIRE FUNDING ADVICE BUREAU   ,301576,Unclassified Non Trade,CHARITIES & VOLUNTARY ORGANISA
VS - INFRASTRUCTURE SUPPORT   ,8180,GRANTS                        ,03/10/2012,3338816,ERS INVOICE73209         ,"2,667.00",SHEFFIELD DIOCESAN BOARD OF FINANCE     ,328478,Unclassified Non Trade,RELIGIOUS ORGANISATIONS       
VS - INFRASTRUCTURE SUPPORT   ,8180,GRANTS                        ,03/10/2012,3338817,ERS INVOICE73210         ,"5,778.00",COMMUNITY LEGAL ADVICE SERVICE          ,472004,Legal Services,LEGAL SERVICES                
VS - INFRASTRUCTURE SUPPORT   ,8180,GRANTS                        ,03/10/2012,3338818,ERS INVOICE73211         ,"9,333.00",VOLUNTARY ACTION SHEFFIELD              ,295283,Unclassified Non Trade,CHARITIES & VOLUNTARY ORGANISA
VS - TACKLING POVERTY         ,8180,GRANTS                        ,03/10/2012,3338819,ERS INVOICE73212         ,"11,889.00",ST VINCENT'S FURNITURE STORE            ,314895,Unclassified Non Trade,CHARITIES & VOLUNTARY ORGANISA
VS - TACKLING POVERTY         ,8180,GRANTS                        ,03/10/2012,3338820,ERS INVOICE73213         ,"19,111.00",FOXHILL & PARSON CROSS ADVICE SERVICE   ,371438,Medical ,COUNSELLING & ADVICE SERVICES 
VS - TACKLING POVERTY         ,8180,GRANTS                        ,03/10/2012,3338821,ERS INVOICE73214         ,"19,300.00",SOUTH EAST SHEFFIELD C A B              ,316903,Medical ,COUNSELLING & ADVICE SERVICES 
VS - TACKLING POVERTY         ,8180,GRANTS                        ,03/10/2012,3338822,ERS INVOICE73215         ,"10,556.00",HILLSBOROUGH & AREA ADVICE SERVICE      ,316680,Medical ,COUNSELLING & ADVICE SERVICES 
VS - TACKLING POVERTY         ,8180,GRANTS                        ,03/10/2012,3338823,ERS INVOICE73216         ,"3,356.00",SCOOP AID                               ,303966,Unclassified Non Trade,CHARITIES & VOLUNTARY ORGANISA
VS - TACKLING POVERTY         ,8180,GRANTS                        ,03/10/2012,3338824,ERS INVOICE73217         ,"9,200.00",SHEFFIELD MENTAL HEALTH C.A.B.          ,316902,Social Community Care,MENTAL HEALTH CENTRES         
VS - TACKLING POVERTY         ,8180,GRANTS                        ,03/10/2012,3338825,ERS INVOICE73218         ,"8,000.00",TINSLEY ADVICE SERVICE                  ,342196,Unclassified Non Trade,CHARITIES & VOLUNTARY ORGANISA
VS - TACKLING POVERTY         ,8180,GRANTS                        ,03/10/2012,3338826,ERS INVOICE73219         ,"6,000.00",PAKISTAN ADVICE & COMMUNITY ASSOCIATION ,342669,Unclassified Non Trade,CHARITIES & VOLUNTARY ORGANISA
VS - TACKLING POVERTY         ,8180,GRANTS                        ,03/10/2012,3338827,ERS INVOICE73220         ,"9,444.00",FIRTH PARK ADVICE CENTRE                ,316687,Unclassified Non Trade,CHARITIES & VOLUNTARY ORGANISA
VS - TACKLING POVERTY         ,8180,GRANTS                        ,03/10/2012,3338828,ERS INVOICE73221         ,"6,967.00",NORTHERN REFUGEE CENTRE                 ,323491,Unclassified Non Trade,CHARITIES & VOLUNTARY ORGANISA
VS - TACKLING POVERTY         ,8180,GRANTS                        ,03/10/2012,3338829,ERS INVOICE73222         ,"7,000.00",DEAF ADVICE SERVICE SHEFFIELD           ,316681,Unclassified Non Trade,CHARITIES & VOLUNTARY ORGANISA
VS - TACKLING POVERTY         ,8180,GRANTS                        ,03/10/2012,3338830,ERS INVOICE73223         ,"2,889.00",YEMENI COMMUNITY ASSOCIATION            ,297388,Unclassified Non Trade,CHARITIES & VOLUNTARY ORGANISA
VS - TACKLING POVERTY         ,8180,GRANTS                        ,03/10/2012,3338831,ERS INVOICE73224         ,"5,311.00",LANGSETT ADVICE & AREA RESOURCE CENTRE  ,299534,Unclassified Non Trade,CHARITIES & VOLUNTARY ORGANISA
VSP DELIVER                   ,9120,OTHER AGENCIES                ,03/10/2012,3338832,ERS INVOICE73225         ,"12,287.25",DONCASTER ROTH & DIST (MOTOR TRADES)GTA ,204434,Human Resources,TRAINING CENTRES              
VSP DELIVER                   ,9120,OTHER AGENCIES                ,03/10/2012,3338833,ERS INVOICE73226         ,"2,908.08",SHEFFIELD COLLEGE                       ,394141,Unclassified Non Trade,SCHOOLS & COLLEGES - FURTHER E
VSP DELIVER                   ,9120,OTHER AGENCIES                ,03/10/2012,3338834,ERS INVOICE73227         ,"3,315.81",THE SHEFFIELD COLLEGE                   ,297611,Unclassified Non Trade,SCHOOLS & COLLEGES - FURTHER E
VSP DELIVER                   ,9120,OTHER AGENCIES                ,03/10/2012,3338835,ERS INVOICE73229         ,"4,000.00",THE SOURCE AT MEADOWHALL                ,350485,Human Resources,TRAINING CENTRES              
VSP DELIVER                   ,9120,OTHER AGENCIES                ,03/10/2012,3338836,ERS INVOICE73230         ,635,WHIRLOW HALL FARM TRUST LTD             ,318019,Unclassified Non Trade,CHARITIES & VOLUNTARY ORGANISA
VSP DELIVER                   ,9120,OTHER AGENCIES                ,03/10/2012,3338837,ERS INVOICE73231         ,"11,938.00",DIMENSIONS TRAINING SOLUTIONS           ,433070,Education,HAIRDRESSING SCHOOLS          
VSP DELIVER                   ,9120,OTHER AGENCIES                ,03/10/2012,3338838,ERS INVOICE73232         ,"9,720.00",WHITE ROSE SCHOOLS LTD                  ,334662,Education,BEAUTY SCHOOLS                
VSP DELIVER                   ,9140,PRIVATE CONTRACTORS           ,03/10/2012,3338839,ERS INVOICE73233         ,603.25,A4E                                     ,547567,Human Resources,TRAINING SERVICES             
VSP DELIVER                   ,9140,PRIVATE CONTRACTORS           ,03/10/2012,3338840,ERS INVOICE73234         ,"1,301.75",A4E                                     ,547567,Human Resources,TRAINING SERVICES             
VSP DELIVER                   ,9140,PRIVATE CONTRACTORS           ,03/10/2012,3338841,ERS INVOICE73235         ,"5,125.00",SOUTH YORKSHIRE & HALLAMSHIRE CYP       ,431967,Unclassified Non Trade,YOUTH ORGANISATIONS & CENTRES 
VSP DELIVER                   ,9140,PRIVATE CONTRACTORS           ,03/10/2012,3338842,ERS INVOICE73236         ,857.25,ENDEAVOUR TRAINING                      ,347945,Human Resources,TRAINING SERVICES             
VSP DELIVER                   ,9140,PRIVATE CONTRACTORS           ,03/10/2012,3338843,ERS INVOICE73237         ,"2,984.50",HEELEY CITY FARM                        ,301277,Unclassified Non Trade,CHARITIES & VOLUNTARY ORGANISA
VSP DELIVER                   ,9140,PRIVATE CONTRACTORS           ,03/10/2012,3338844,ERS INVOICE73238         ,825.5,NACRO                                   ,297575,Unclassified Non Trade,CHARITIES & VOLUNTARY ORGANISA
VSP DELIVER                   ,9140,PRIVATE CONTRACTORS           ,03/10/2012,3338845,ERS INVOICE73239         ,"1,143.00",NACRO                                   ,297575,Unclassified Non Trade,CHARITIES & VOLUNTARY ORGANISA
NURSERY ED FUND               ,8180,GRANTS                        ,03/10/2012,3338846,ERS INVOICE73240         ,551.25,REDACTED PERSONAL DATA,571503,Social Community Care,CHILDMINDERS                  
VSP DELIVER                   ,9140,PRIVATE CONTRACTORS           ,03/10/2012,3338847,ERS INVOICE73241         ,"1,905.00",RECYCLE BIKES                           ,507392,Sports & Playground,CYCLE SHOPS                   
VSP DELIVER                   ,9120,OTHER AGENCIES                ,03/10/2012,3338848,ERS INVOICE73242         ,"2,413.00",WHIRLOW HALL FARM TRUST LTD             ,318019,Unclassified Non Trade,CHARITIES & VOLUNTARY ORGANISA
VSP DELIVER                   ,9140,PRIVATE CONTRACTORS           ,03/10/2012,3338849,ERS INVOICE73243         ,"2,000.82",THE SHEFFIELD COLLEGE                   ,297611,Unclassified Non Trade,SCHOOLS & COLLEGES - FURTHER E
VSP DELIVER                   ,9140,PRIVATE CONTRACTORS           ,03/10/2012,3338850,ERS INVOICE73246         ,"8,062.50",SHEFFIELD COLLEGE                       ,301274,Unclassified Non Trade,SCHOOLS & COLLEGES - FURTHER E
VSP DELIVER                   ,9140,PRIVATE CONTRACTORS           ,03/10/2012,3338851,ERS INVOICE73247         ,"1,500.00",SHEFFIELD COLLEGE                       ,429307,Unclassified Non Trade,SCHOOLS & COLLEGES - FURTHER E
VSP DELIVER                   ,9140,PRIVATE CONTRACTORS           ,03/10/2012,3338852,ERS INVOICE73248         ,"1,593.75",THE SHARKS                              ,540033,Leisure Services,SPORTS CLUBS & ASSOCIATIONS   
VSP DELIVER                   ,9140,PRIVATE CONTRACTORS           ,03/10/2012,3338853,ERS INVOICE73249         ,"1,000.00",SIGNPOST PROJECT                        ,486881,Unclassified Non Trade,YOUTH ORGANISATIONS & CENTRES 
VSP DELIVER                   ,9140,PRIVATE CONTRACTORS           ,03/10/2012,3338854,ERS INVOICE73250         ,"6,000.00",SHEFFIELD WEDNESDAY ACADEMY             ,461589,Leisure Services,SPORTS CLUBS & ASSOCIATIONS   
VSP DELIVER                   ,9140,PRIVATE CONTRACTORS           ,03/10/2012,3338855,ERS INVOICE73252         ,500,SOUTH YORKSHIRE TRAINING GROUP          ,342950,Human Resources,COMPUTER TRAINING             
VSP DELIVER                   ,9140,PRIVATE CONTRACTORS           ,03/10/2012,3338856,ERS INVOICE73253         ,656.25,THE SHEFFIELD COLLEGE                   ,297611,Unclassified Non Trade,SCHOOLS & COLLEGES - FURTHER E
VSP DELIVER                   ,9140,PRIVATE CONTRACTORS           ,03/10/2012,3338857,ERS INVOICE73254         ,"2,468.75",HEELEY DEVELOPMENT TRUST                ,363241,Unclassified Non Trade,CHARITIES & VOLUNTARY ORGANISA
COMMUNITY ASSEMBLY CENTRAL    ,9120,OTHER AGENCIES                ,03/10/2012,3338881,ERS INVOICE73278         ,750,GROW SHEFFIELD                          ,509289,Unclassified Non Trade,COMMUNITY PROJECTS            
TRAINING                      ,8440,FEE EXPENSES                  ,03/10/2012,3324126,24227,"3,000.00",VOLUNTARY ACTION SHEFFIELD              ,295283,Unclassified Non Trade,CHARITIES & VOLUNTARY ORGANISA
ASYLUM SEEKER CONTRACT        ,8050,FURNITURE PURCHASES           ,03/10/2012,3327253,15239,"1,806.00",PYRAMID CARPETS                         ,243612,Building Construction Materials,CARPETS & RUGS - RETAIL       
OTHER                         ,8350,MISCELLANEOUS EXPENSES        ,03/10/2012,3329820,6185721,"5,491.50",AUDIT COMMISSION                        ,389233,Financial Services,AUDITORS                      
PURCHASING LEARNING DISABILITI,8350,MISCELLANEOUS EXPENSES        ,03/10/2012,3330520,SCC004885                ,563.5,ALARA BED & BREAKFAST                   ,305061,Facilities Management,GUEST HOUSES                  
OUT OF CITY PROJECT           ,9180,OTHER CLIENT EXPENDITURE      ,03/10/2012,3331780,41115,525,JMC ESTATE AGENTS                       ,572205,Unclassified Trade,ESTATE AGENTS                 
GRNI NO LIABILITY VAL / OHEAD ,8060,MATERIALS AND SUPPLIES GENERAL,03/10/2012,3332300,800459652/167            ,"1,204.47",YORKSHIRE WATER                         ,362345,Utilities,WATER COMPANIES               
HOMES & LOANS TEAM            ,6280,HIRE OF PREMISES              ,03/10/2012,3333109,0044/11931               ,"1,162.00",BLADES ENTERPRISE CENTRE                ,314133,Unclassified Trade,BUSINESS CENTRES              
PURCHASING LEARNING DISABILITI,8350,MISCELLANEOUS EXPENSES        ,03/10/2012,3333947,SCC004788                ,563.5,ALARA BED & BREAKFAST                   ,305061,Facilities Management,GUEST HOUSES                  
PURCHASING LEARNING DISABILITI,8350,MISCELLANEOUS EXPENSES        ,03/10/2012,3333952,SCC004814                ,563.5,ALARA BED & BREAKFAST                   ,305061,Facilities Management,GUEST HOUSES                  
PURCHASING LEARNING DISABILITI,8350,MISCELLANEOUS EXPENSES        ,03/10/2012,3333957,SCC004835                ,563.5,ALARA BED & BREAKFAST                   ,305061,Facilities Management,GUEST HOUSES                  
PURCHASING LEARNING DISABILITI,8350,MISCELLANEOUS EXPENSES        ,03/10/2012,3333958,SCC004850                ,563.5,ALARA BED & BREAKFAST                   ,305061,Facilities Management,GUEST HOUSES                  
GRNI NO LIABILITY VAL / OHEAD ,8060,MATERIALS AND SUPPLIES GENERAL,03/10/2012,3334871,1104693179,605.29,KONICA MINOLTA BUSINESS SOLUTIONS       ,375732,ICT,PHOTOCOPIERS                  
GRNI NO LIABILITY NOT OHEAD   ,8060,MATERIALS AND SUPPLIES GENERAL,03/10/2012,3334921,71289,676.86,PP ENGINEERING                          ,459837,Vehicles Not Buses,"CRANE HIRE, SALES & SERVICE   "
100 APPRENTICES               ,9120,OTHER AGENCIES                ,03/10/2012,3335006,8350,568.62,DEARNESIDE FABRICATIONS LTD             ,461947,Construction,STEEL FABRICATORS & ERECTORS  
ACCESS/ASSESSMENT N NORTHLANDS,5010,GENERAL BASIC PAY             ,03/10/2012,3335425,2100073627,"8,242.53",SHEFFIELD HEALTH & SOCIAL CARE NHS      ,353994,Unclassified Non Trade,HOSPITALS                     
CITY WIDE CARE ALARMS         ,8010,EQUIPMENT PURCHASE AND REPAIR ,03/10/2012,3335573,3IN/10207813             ,"5,130.00",TUNSTALL HEALTHCARE (UK) LIMITED        ,209178,ICT,TELECOMMUNICATIONS EQUIPMENT &
ACCOMMODATION STRATEGY        ,8010,EQUIPMENT PURCHASE AND REPAIR ,03/10/2012,3335661,38391,"3,380.00",SIS WORKSPACE LTD                       ,466606,Construction,OFFICE REFURBISHMENT SERVICES 
NW AREA ESTATE OFFICERS       ,8010,EQUIPMENT PURCHASE AND REPAIR ,03/10/2012,3335701,165260,"1,039.00",FOSTERS GARDEN MACHINERY                ,204933,Horticultural,GARDEN CENTRES & NURSERIES    
CONTACT CONTRACTS             ,9280,CONTACT                       ,03/10/2012,3336030,10662/42                 ,"8,816.70",SSA SOCIAL WORK LTD                     ,329517,Human Resources,NURSING AGENCIES              
PURCHASING LEARNING DISABILITI,8350,MISCELLANEOUS EXPENSES        ,03/10/2012,3336534,SCC004933                ,563.5,ALARA BED & BREAKFAST                   ,305061,Facilities Management,GUEST HOUSES                  
PURCHASING LEARNING DISABILITI,8350,MISCELLANEOUS EXPENSES        ,03/10/2012,3336535,SCC004931                ,"1,127.00",ALARA BED & BREAKFAST                   ,305061,Facilities Management,GUEST HOUSES                  
PEI & MAST MANAGEMENT         ,9120,OTHER AGENCIES                ,03/10/2012,3336661,216443,"10,500.00",SHELTER                                 ,361160,Unclassified Non Trade,CHARITIES & VOLUNTARY ORGANISA
CORPORATE DEBT RECOVERY       ,8440,FEE EXPENSES                  ,03/10/2012,3337003,C138660                  ,"2,260.60",ROSSENDALES COLLECT LTD                 ,477656,Financial Services,BAILIFFS                      
CORPORATE DEBT RECOVERY       ,8440,FEE EXPENSES                  ,03/10/2012,3337005,C139830                  ,"1,819.50",ROSSENDALES COLLECT LTD                 ,477656,Financial Services,BAILIFFS                      
OCCUPATIONAL HEALTH & SAFETY  ,5750,TRAINING EXPENDITURE          ,03/10/2012,3337242,828455,945.8,ACT ASSOCIATES LTD                      ,509353,Human Resources,TRAINING SERVICES             
DISADVANTAGED AREA FUNDING    ,9120,OTHER AGENCIES                ,03/10/2012,3337282,5036937,750, THE CONSERVATION VOLUNTEERS            ,408123,Unclassified Non Trade,CHARITIES & VOLUNTARY ORGANISA
DISADVANTAGED AREA FUNDING    ,9120,OTHER AGENCIES                ,03/10/2012,3337283,5036938,750, THE CONSERVATION VOLUNTEERS            ,408123,Unclassified Non Trade,CHARITIES & VOLUNTARY ORGANISA
DISADVANTAGED AREA FUNDING    ,9120,OTHER AGENCIES                ,03/10/2012,3337284,5036933,750, THE CONSERVATION VOLUNTEERS            ,408123,Unclassified Non Trade,CHARITIES & VOLUNTARY ORGANISA
DISADVANTAGED AREA FUNDING    ,9120,OTHER AGENCIES                ,03/10/2012,3337285,5036934,750, THE CONSERVATION VOLUNTEERS            ,408123,Unclassified Non Trade,CHARITIES & VOLUNTARY ORGANISA
DISADVANTAGED AREA FUNDING    ,9120,OTHER AGENCIES                ,03/10/2012,3337286,5036935,750, THE CONSERVATION VOLUNTEERS            ,408123,Unclassified Non Trade,CHARITIES & VOLUNTARY ORGANISA
SHEAF TRAINING                ,7140,PUBLIC TRANSPORT COSTS        ,03/10/2012,3337457,SL0063741                ,"1,345.00",SYPTE                                   ,208757,Transport,BUS & COACH OPERATORS & STATIO
RED TAPE CENTRAL              ,8620,COMPUTER SOFTWARE PURCHASES   ,03/10/2012,3337501,I733327                  ,"1,449.00",JIGSAW SYSTEMS LTD                      ,206039,ICT,COMPUTER SYSTEMS & SOFTWARE (S
DISADVANTAGED AREA FUNDING    ,9120,OTHER AGENCIES                ,03/10/2012,3337509,5036936,750, THE CONSERVATION VOLUNTEERS            ,408123,Unclassified Non Trade,CHARITIES & VOLUNTARY ORGANISA
VEHICLE AND PLANT ACQUISITION ,1182,PURCHASE OF VEHICLES          ,03/10/2012,3337526,119529,"24,950.00",AMMANN EQUIPMENT LTD                    ,373383,Vehicles Not Buses,PLANT & MACHINERY DEALERS     
SHARROW ALMO WORKS            ,1165,NC&A OTHER                    ,03/10/2012,3337786,12020108,"65,123.76",KIER SHEFFIELD LLP                      ,352687,Construction,PROPERTY MAINTENANCE & REPAIRS
"PHASES 1,2 & 3 CHILDRENS CENTR",6210,RENTS                         ,03/10/2012,3337790,R81IN1/00002278          ,"1,900.00",EARLY DAYS CHILDREN'S CENTRE            ,435475,Medical ,COUNSELLING & ADVICE SERVICES 
SHARROW ALMO WORKS            ,1165,NC&A OTHER                    ,03/10/2012,3337808,12020149,"26,484.82",KIER SHEFFIELD LLP                      ,352687,Construction,PROPERTY MAINTENANCE & REPAIRS
E-BUSINESS PROGRAMME          ,8440,FEE EXPENSES                  ,03/10/2012,3337816,5355798,"1,080.00",MICHAEL PAGE UK LIMITED                 ,347153,Human Resources,EMPLOYMENT & RECRUITMENT AGENC
SNIPS                         ,8180,GRANTS                        ,03/10/2012,3337820,25THSEPTEMBER2012        ,880,BRITISH MARTIAL ARTS ACADEMY            ,554960,Leisure Services,MARTIAL ARTS INSTRUCTION      
GENERAL ADMINISTRATION        ,6090,WASTE DISPOSAL                ,03/10/2012,3337899,35259,500,MHH CONTRACTING LTD                     ,205329,Construction,EXCAVATION & GROUNDWORK CONTRA
DISADVANTAGED AREA FUNDING    ,9120,OTHER AGENCIES                ,03/10/2012,3337909,SIN041597                ,"1,000.00",BUSINESS IN THE COMMUNITY               ,304358,Human Resources,BUSINESS & TRADE ORGANISATIONS
SHEFFIELD HOMES MANAGEMENT COS,8350,MISCELLANEOUS EXPENSES        ,03/10/2012,3337923,645,"5,594.06",SHEFFIELD HOMES LTD                     ,503889,Unclassified Non Trade,"HOUSING ASSOCIATIONS, SOCIETIE"
BRIERLEY FIELDS PREMISES      ,8020,EQUIPMENT LEASE/ RENTAL/ HIRE ,03/10/2012,3338002,1104217006,611.76,KONICA MINOLTA BUSINESS SOLUTIONS EAST  ,206267,ICT,OFFICE EQUIPMENT MNFRS & DISTR
OTHER LOCAL AUTHORITY PLACEMEN,9120,OTHER AGENCIES                ,03/10/2012,3338013,21,"4,982.00",TINSLEY GREEN CHILDRENS CENTRE          ,509340,Unclassified Non Trade,NURSERY SCHOOLS               
PROVIDER CONTRACT AUG11-JUL12 ,9120,OTHER AGENCIES                ,03/10/2012,3338180,77/12                    ,691,DARNALL FORUM LTD                       ,447697,Unclassified Non Trade,COMMUNITY PROJECTS            
CITY WIDE CHILD CARE CONTRACT ,8440,FEE EXPENSES                  ,03/10/2012,3338186,41177,"16,708.00",DARNALL COMMUNITY NURSERY               ,515866,Unclassified Non Trade,"PLAYGROUPS, NURSERIES & CRECHE"
CARE PROCEEDINGS (LEGAL FEES) ,8470,LEGAL FEES                    ,03/10/2012,3338706,830439,"2,150.00",MR A M WYNNE                            ,487888,Legal Services,BARRISTERS                    
MATHER ROAD                   ,8010,EQUIPMENT PURCHASE AND REPAIR ,03/10/2012,3338768,678,"8,740.67",IBN BUILDING AND JOINERY                ,205674,Construction,CARPENTERS & JOINERS          
HIGHFIELD LIBRARY             ,6150,ELECTRICITY                   ,03/10/2012,3338469,27140357,602.52,NPOWER NORTHERN LTD                     ,207191,Utilities,ELECTRICITY COMPANIES         
STANIFORTH ROAD WORKSHOPS     ,7010,ROUTINE VEHICLE REPAIR & MTCE ,03/10/2012,3338556,PC01384                  ,810,PIPE CONTRACTS UK                       ,207550,Construction,WELDERS                       
ADULT SOCIAL CARE PURCHASING  ,9190,DIRECT PAYMENTS               ,03/10/2012,3338397,J533228                  ,"7,440.48",REDACTED PERSONAL DATA,556890,Social Community Care,CAREFIRST DIRECT PAYMENTS     
ADULT SOCIAL CARE PURCHASING  ,9190,DIRECT PAYMENTS               ,03/10/2012,3338398,J533228                  ,"3,920.70",REDACTED PERSONAL DATA,568195,Social Community Care,CAREFIRST DIRECT PAYMENTS     
ADULT SOCIAL CARE PURCHASING  ,9190,DIRECT PAYMENTS               ,03/10/2012,3338399,J533228                  ,"3,646.79",REDACTED PERSONAL DATA,573231,Social Community Care,CAREFIRST DIRECT PAYMENTS     
PURCHASING LEARNING DISABILITI,9190,CITYWIDE SPOT                 ,03/10/2012,3338401,9551,"70,350.00",SUN HEALTHCARE LTD                      ,573208,Social Community Care,RESIDENTIAL CARE HOMES        
CWD INDEPENDENT PLACEMENTS    ,9270,CARELEAVERS ACCOMMODATION     ,03/10/2012,3338392,SRO2129106               ,"46,298.61",THE NATIONAL AUTISTIC SOCIETY           ,334778,Unclassified Non Trade,CHARITIES & VOLUNTARY ORGANISA
CWD INDEPENDENT PLACEMENTS    ,9270,CARELEAVERS ACCOMMODATION     ,03/10/2012,3338393,SRO2129108               ,"46,298.50",THE NATIONAL AUTISTIC SOCIETY           ,334778,Unclassified Non Trade,CHARITIES & VOLUNTARY ORGANISA
CWD INDEPENDENT PLACEMENTS    ,9270,CARELEAVERS ACCOMMODATION     ,03/10/2012,3338394,SRO2129112               ,"46,298.25",THE NATIONAL AUTISTIC SOCIETY           ,334778,Unclassified Non Trade,CHARITIES & VOLUNTARY ORGANISA
ADULT SOCIAL CARE PURCHASING  ,9200,CONTINUING RESIDENTIAL CARE   ,03/10/2012,3338382,J526890 141012           ,"1,628.00",MALLARD COURT CARE HOME                 ,511603,Social Community Care,NURSING HOMES                 
ADULT SOCIAL CARE PURCHASING  ,9200,CONTINUING RESIDENTIAL CARE   ,03/10/2012,3338383,J526894 141012           ,"1,616.80",HOLLY TREE LODGE                        ,519365,Social Community Care,RESIDENTIAL CARE HOMES        
ADULT SOCIAL CARE PURCHASING  ,9200,CONTINUING RESIDENTIAL CARE   ,03/10/2012,3338384,J533229 141012           ,"1,664.15",CASTELAYN                               ,361796,Social Community Care,RESIDENTIAL CARE HOMES        
ADULT SOCIAL CARE PURCHASING  ,4260,RESIDENTIAL COSTS RECOVERED   ,03/10/2012,3338385,J533230 141012           ,"1,311.20",HADDON COURT NURSING HOME               ,361916,Social Community Care,NURSING HOMES                 
ADULT SOCIAL CARE PURCHASING  ,9210,CONTINUING NURSING CARE       ,03/10/2012,3338385,J533230 141012           ,"11,514.29",HADDON COURT NURSING HOME               ,361916,Social Community Care,NURSING HOMES                 
PURCHASING                    ,9200,CONTINUING RESIDENTIAL CARE   ,03/10/2012,3338386,J533231 141012           ,"1,005.48",EAGLE HOUSE CARE HOME                   ,361977,Social Community Care,RESIDENTIAL CARE HOMES        
ADULT SOCIAL CARE PURCHASING  ,9210,CONTINUING NURSING CARE       ,03/10/2012,3338387,J533232 141012           ,"6,238.57",NEWFIELD NURSING HOME                   ,361980,Social Community Care,NURSING HOMES                 
ADULT SOCIAL CARE PURCHASING  ,9200,SHORT TERM RESIDENTIAL CARE   ,03/10/2012,3338388,J528664 160912           ,"6,744.86",HOUSTEADS                               ,361860,Social Community Care,RESIDENTIAL CARE HOMES        
ADULT SOCIAL CARE PURCHASING  ,4260,RESIDENTIAL COSTS RECOVERED   ,03/10/2012,3338389,J533224 160912           ,"1,488.92",SILVER HEALTH CARE LTD                  ,361802,Social Community Care,RESIDENTIAL CARE HOMES        
ADULT SOCIAL CARE PURCHASING  ,9200,SHORT TERM RESIDENTIAL CARE   ,03/10/2012,3338389,J533224 160912           ,"3,442.14",SILVER HEALTH CARE LTD                  ,361802,Social Community Care,RESIDENTIAL CARE HOMES        
PURCHASING LEARNING DISABILITI,9200,SHORT TERM RESIDENTIAL CARE   ,03/10/2012,3338390,J533225 160912           ,"2,849.00",ROSEBERRY CARE CENTRES GB LTD           ,362099,Social Community Care,RESIDENTIAL CARE HOMES        
INDEPENDENT FOSTERING PLACEMEN,9270,INDEPENDENT FOSTERING         ,04/10/2012,3338947,630051931,"3,604.25",REDACTED PERSONAL DATA,328618,Social Community Care,ADOPTION & FOSTERING          
LEAVING CARE                  ,9270,INDEPENDENT FOSTERING         ,04/10/2012,3338948,630051932,"3,604.25",REDACTED PERSONAL DATA,328618,Social Community Care,ADOPTION & FOSTERING          
INDEPENDENT FOSTERING PLACEMEN,9270,INDEPENDENT FOSTERING         ,04/10/2012,3338949,630051933,"3,411.80",REDACTED PERSONAL DATA,328618,Social Community Care,ADOPTION & FOSTERING          
INDEPENDENT FOSTERING PLACEMEN,9270,INDEPENDENT FOSTERING         ,04/10/2012,3338950,630051937,"5,246.92",REDACTED PERSONAL DATA,328618,Social Community Care,ADOPTION & FOSTERING          
LEAVING CARE                  ,9270,INDEPENDENT FOSTERING         ,04/10/2012,3338951,630051939,"3,604.25",REDACTED PERSONAL DATA,328618,Social Community Care,ADOPTION & FOSTERING          
LEAVING CARE                  ,9270,INDEPENDENT FOSTERING         ,04/10/2012,3338952,630051940,"3,604.25",REDACTED PERSONAL DATA,328618,Social Community Care,ADOPTION & FOSTERING          
LEAVING CARE                  ,9270,INDEPENDENT FOSTERING         ,04/10/2012,3338953,630051941,"3,604.25",REDACTED PERSONAL DATA,328618,Social Community Care,ADOPTION & FOSTERING          
INDEPENDENT FOSTERING PLACEMEN,9270,INDEPENDENT FOSTERING         ,04/10/2012,3338954,630051944,"2,843.40",REDACTED PERSONAL DATA,328618,Social Community Care,ADOPTION & FOSTERING          
INDEPENDENT FOSTERING PLACEMEN,9270,INDEPENDENT FOSTERING         ,04/10/2012,3338941,630051920,"2,970.24",REDACTED PERSONAL DATA,328618,Social Community Care,ADOPTION & FOSTERING          
INDEPENDENT FOSTERING PLACEMEN,9270,INDEPENDENT FOSTERING         ,04/10/2012,3338942,630051921,"3,290.00",REDACTED PERSONAL DATA,328618,Social Community Care,ADOPTION & FOSTERING          
INDEPENDENT FOSTERING PLACEMEN,9270,INDEPENDENT FOSTERING         ,04/10/2012,3338943,630051922,"5,868.80",REDACTED PERSONAL DATA,328618,Social Community Care,ADOPTION & FOSTERING          
INDEPENDENT FOSTERING PLACEMEN,9270,INDEPENDENT FOSTERING         ,04/10/2012,3338944,15728,"1,211.65",REDACTED PERSONAL DATA,521940,Social Community Care,ADOPTION & FOSTERING          
INDEPENDENT FOSTERING PLACEMEN,9270,INDEPENDENT FOSTERING         ,04/10/2012,3338945,630051923,"3,604.25",REDACTED PERSONAL DATA,328618,Social Community Care,ADOPTION & FOSTERING          
14-16 ENGAGEMENT PROGRAMME    ,9120,OTHER AGENCIES                ,04/10/2012,3339377,ERS INVOICE73279         ,"1,125.00",Y A S Y                                 ,306981,Unclassified Non Trade,YOUTH ORGANISATIONS & CENTRES 
EXTERNAL FUNDED CONTRACTS & PA,9120,OTHER AGENCIES                ,04/10/2012,3339378,ERS INVOICE73280         ,"1,165.00",SHARROW COMMUNITY FORUM                 ,318379,Unclassified Non Trade,SCHOOLS - LOCAL AUTHORITY     
SAFER COMMUNITIES PARTNERSHIP ,9120,OTHER AGENCIES                ,04/10/2012,3339380,ERS INVOICE73282         ,"5,000.00",HEELEY CITY FARM                        ,301277,Unclassified Non Trade,CHARITIES & VOLUNTARY ORGANISA
WORKFORCE DEVELOPMENT         ,8440,FEE EXPENSES                  ,04/10/2012,3339381,ERS INVOICE73283         ,"5,525.00",STEPS COMMUNITY NURSERY                 ,311923,Social Community Care,NURSERIES & CRECHES           
WORKFORCE DEVELOPMENT         ,8440,FEE EXPENSES                  ,04/10/2012,3339383,ERS INVOICE73285         ,"4,700.00",BOLE HILL NURSERY                       ,311845,Social Community Care,NURSERIES & CRECHES           
WORKFORCE DEVELOPMENT         ,8440,FEE EXPENSES                  ,04/10/2012,3339386,ERS INVOICE73288         ,"5,524.00",HAMILTON HOUSE NURSERY                  ,339524,Social Community Care,NURSERIES & CRECHES           
CHILDRENS' FESTIVAL           ,8440,FEE EXPENSES                  ,04/10/2012,3339392,ERS INVOICE73294         ,640,INYERFACE ARTS                          ,367575,Leisure Services,THEATRE COMPANIES             
PARKHILL DEMOLITION SHM (STH) ,1143,COMPENSATION                  ,04/10/2012,3339394,ERS INVOICE73296         ,"4,700.00",REDACTED PERSONAL DATA,573318,Unclassified Non Trade,OUT OF SCOPE FOR SIC MONITORIN
OUTDOOR EDUCATION             ,8440,FEE EXPENSES                  ,04/10/2012,3339395,ERS INVOICE73297         ,635,IAN MICHAEL RENSHAW                     ,535423,Leisure Services,OUTDOOR PURSUIT ORGANISERS & E
DISCETIONARY HOUSING PAYMENTS ,9480,RENT ALLOWANCE BACS           ,04/10/2012,3339403,ERS INVOICE73305         ,500,REDACTED PERSONAL DATA,573379,Unclassified Non Trade,OUT OF SCOPE FOR SIC MONITORIN
DISABLED GRANTS               ,1165,NC&A OTHER                    ,04/10/2012,3339529,ERS INVOICE73314         ,"7,000.00",REDACTED PERSONAL DATA,571194,Unclassified Non Trade,OUT OF SCOPE FOR SIC MONITORIN
VS- VCS GENERAL               ,8180,GRANTS                        ,04/10/2012,3339530,ERS INVOICE73315         ,"10,000.00",VOLUNTARY ACTION SHEFFIELD              ,295283,Unclassified Non Trade,CHARITIES & VOLUNTARY ORGANISA
ALDINE HOUSE                  ,5610,AGENCY STAFF                  ,04/10/2012,3339536,ERS INVOICE73321         ,"2,860.00",REDACTED PERSONAL DATA,543584,Unclassified Non Trade,OUT OF SCOPE FOR SIC MONITORIN
COMMUNITY ASSEMBLY CENTRAL    ,9120,OTHER AGENCIES                ,04/10/2012,3339537,ERS INVOICE73322         ,500,WISEWOOD & DISTRICT HORTICULTURAL SOCIET,433939,Unclassified Non Trade,CHARITIES & VOLUNTARY ORGANISA
RHB LOANS HAL                 ,1194,OTHER FEES                    ,04/10/2012,3339540,ERS INVOICE73325         ,"2,100.00",WAKE SMITH & TOFIELDS SOLICITORS        ,209393,Legal Services,SOLICITORS                    
PARKS OPERATIONS NORTH        ,8350,MISCELLANEOUS EXPENSES        ,04/10/2012,3306444,5/728/25LM/40823         ,"1,370.00",WILDSCAPES LTD                          ,472494,Consultancy,LANDSCAPE ARCHITECTS & DESIGNE
ADMIN SUPPORT                 ,7060,EXTERNAL VEHICLE HIRE         ,04/10/2012,3316866,348695A                  ,"1,161.25",CITY CAR CLUB (UK) LTD                  ,465053,Vehicles Not Buses,CAR RENTAL                    
STATUTORY & STRATEGIC         ,8470,LEGAL FEES                    ,04/10/2012,3317472,217874,"1,100.00",MR SEAMUS SWEENEY                       ,551798,Social Community Care,SOCIAL SERVICES               
SHEAF TRAINING                ,8010,EQUIPMENT PURCHASE AND REPAIR ,04/10/2012,3320258,38293,"1,559.20",SIS WORKSPACE LTD                       ,466606,Construction,OFFICE REFURBISHMENT SERVICES 
PLAYGROUND MAINTENANCE & INSPE,8010,EQUIPMENT PURCHASE AND REPAIR ,04/10/2012,3323111,8453,"3,787.93",EDWARD BENTON & CO LTD                  ,571391,Construction,ACCESS EQUIPMENT              
IBC                           ,8440,FEE EXPENSES                  ,04/10/2012,3326248,111854586,"3,404.80",OCR                                     ,207219,Education,EXAMINATION BOARDS            
LAND DRAINAGE & FLOOD MGMT    ,8410,GENERAL OFFICE EXPENSES       ,04/10/2012,3330212,1959,"3,736.70",HALCROW GROUP LIMITED                   ,501963,Construction,CIVIL ENGINEERS               
OUTDOOR EDUCATION             ,8130,CATERING SUPPLIES             ,04/10/2012,3330809,1711,"2,671.55",HAZEL'S QUALITY CATERING LTD            ,300944,Catering,CATERERS                      
OUTDOOR EDUCATION             ,8130,CATERING SUPPLIES             ,04/10/2012,3330812,1709,"2,703.65",HAZEL'S QUALITY CATERING LTD            ,300944,Catering,CATERERS                      
ENERGY -SCHEME                ,6160,GAS - INVOICE                 ,04/10/2012,3331697,A3931833/MSAM32574       ,"161,769.18",BRITISH GAS TRADING LTD                 ,204677,Utilities,GAS SUPPLIERS                 
PROPERTY DISPOSAL             ,8440,FEE EXPENSES                  ,04/10/2012,3331763,65372621000000X          ,"1,377.00",YORKSHIRE WATER                         ,362345,Utilities,WATER COMPANIES               
OUTDOOR EDUCATION             ,6080,CONTRACT CLEANING             ,04/10/2012,3333083,5120,715.5,POPPIES PEAK DISTRICT LTD               ,548756,Cleaning and Janitorial,CLEANING SERVICES - DOMESTIC  
PUBLIC RIGHTS OF WAY          ,1173,INFR MAIN CONTRACT            ,04/10/2012,3333991,51033,"4,904.00",D FROST PLANT HIRE                      ,501645,Vehicles Not Buses,PLANT & MACHINERY HIRE & LEASI
REPRESENTATIVE MANAGEMENT     ,8440,FEE EXPENSES                  ,04/10/2012,3334838,9365,"1,018.90",SLATER BAKER LIMITED                    ,569216,Leisure Services,Professional Speakers
SHEFFIELD HOMES TREES         ,6370,GROUNDS MTCE AND ARBORICULTURE,04/10/2012,3336449,873,"1,360.00",SHEFFIELD TREE CARE                     ,462546,Environmental Services,TREE WORK & FORESTRY SERVICES 
OLDER PERSON'S LIVING         ,8560,TPB SHELTERED                 ,04/10/2012,3337471,546889,560.9,MERCURY CARS                            ,326445,Transport,TAXIS & PRIVATE HIRE          
RFID PROJECT                  ,1183,PURCHASE OF EQUIPMENT         ,04/10/2012,3337500,3593351,"6,083.62",DEMCO INTERIORS                         ,303280,Education,EDUCATIONAL EQUIPMENT & SUPPLI
PFI 3                         ,6270,SERVICE / PFI UNITARY CHARGE  ,04/10/2012,3337768,ASSL/12/27               ,"613,544.94",ACADEMY SERVICES (SHEFFIELD) LTD        ,438883,Financial Services,LEASING SERVICES              
ALDINE HOUSE                  ,8350,MISCELLANEOUS EXPENSES        ,04/10/2012,3337781,SINCC3F20607             ,"1,981.86",OFSTED                                  ,466395,Unclassified Non Trade,EDUCATION AGENCIES & AUTHORITI
STATEMENTING & EXCEPTIONAL NE ,9650,OTHER SERVICE RECHARGES       ,04/10/2012,3337785,1668,"5,952.80",THERAPY IN PRAXIS LIMITED               ,559864,Medical ,CLINICS - PRIVATE             
CASTLE MARKET                 ,6030,REPAIRS AND MTCE - RESPONSIVE ,04/10/2012,3337825,DL618241                 ,612.85,TYCO FIRE & INTEGRATED SOLUTIONS (UK)LTD,209607,Facilities Management,FIRE ALARM SYSTEMS            
FINANCE LEADERSHIP TEAM       ,8440,FEE EXPENSES                  ,04/10/2012,3337851,4443,"6,750.00",MCLAREN SOLUTIONS LTD                   ,414383,Consultancy,COMPUTER SYSTEMS & SOFTWARE (D
YOUTH JUSTICE SERVICE         ,7140,PUBLIC TRANSPORT COSTS        ,04/10/2012,3337872,SL0063724                ,947.6,SYPTE                                   ,208757,Transport,BUS & COACH OPERATORS & STATIO
CORONIAL SERVICES             ,8100,RECHARGEABLE PURCHASES        ,04/10/2012,3337897,6018880,"7,100.16",BARNSLEY HOSPITAL NHS FT                ,308864,Unclassified Non Trade,HOSPITALS                     
BETTER BUSES                  ,8420,ADVERTISING AND PUBLICITY     ,04/10/2012,3337900,163356,"5,520.10",PRIMESIGHT LIMITED                      ,565546,Facilities Management,ADVERTISING - AGENCIES        
OUTDOOR EDUCATION             ,6030,REPAIRS AND MTCE - RESPONSIVE ,04/10/2012,3337917,13661,"1,240.00",EVENHAND & FAIREST                      ,551579,Construction,PAINTERS & DECORATORS         
UNIVERSAL YOUTH SERVICE       ,9120,OTHER AGENCIES                ,04/10/2012,3337922,92,"13,333.34",THE DUKE OF EDINBURGH'S                 ,387932,Unclassified Non Trade,YOUTH ORGANISATIONS & CENTRES 
TENANCY MANAGE & ENFORCEMENT  ,8440,FEE EXPENSES                  ,04/10/2012,3337940,12679,"1,125.00",WIRELESS CCTV LIMITED                   ,372357,Facilities Management,CCTV & VIDEO EQUIPMENT        
CONTACT CONTRACTS             ,9280,CONTACT                       ,04/10/2012,3337990,5329,"4,792.90",PROGRESSIVE CARE LTD                    ,343548,Social Community Care,CHILDREN'S HOMES              
WASTE CLIENT                  ,9380,COLLN OF WHEELED AND BULK BINS,04/10/2012,3338026,SCC0712                  ,"2,447,689.46",SHEFFIELD ENVIRONMENTAL SERVICES LIMITED,451625,Environmental Services,WASTE DISPOSAL SERVICES       
PLAYGROUND MAINTENANCE & INSPE,8010,EQUIPMENT PURCHASE AND REPAIR ,04/10/2012,3338176,SI212796                 ,783.66,KOMPAN LTD                              ,206264,Sports & Playground,PLAYGROUND EQUIPMENT          
PFI 4                         ,6270,SERVICE / PFI UNITARY CHARGE  ,04/10/2012,3338625,141,"762,110.02",PARADIGM (SHEFFIELD BSF) LIMITED        ,472691,Facilities Management,FACILITIES MANAGEMENT         
INDEPENDENT PLACEMENTS        ,9310,PARENTAL OR TRIBUNAL PLACEMENT,04/10/2012,3338629,INV17087                 ,"8,245.00",MARY HARE TRAINING SERVICES             ,518768,Unclassified Non Trade,SCHOOLS - SPECIAL             
CONTACT CONTRACTS             ,9280,CONTACT                       ,04/10/2012,3338672,10826,"9,589.31",SSA SOCIAL WORK LTD                     ,329517,Human Resources,NURSING AGENCIES              
CUSTOMER FIRST PROGRAMME      ,8550,OTHER SERVICES                ,04/10/2012,3338736,1.01E+12,"2,375.00","STHREE STAFFING UK LTD, TA REAL STAFFING",533574,Human Resources,EMPLOYMENT & RECRUITMENT AGENC
PURCHASING & PAYMENTS TEAM    ,5610,AGENCY STAFF                  ,04/10/2012,3338738,C0224296744              ,"9,433.68",REED EMPLOYMENT                         ,317819,Human Resources,EMPLOYMENT & RECRUITMENT AGENC
SPORTS EVENTS                 ,8550,OTHER SERVICES                ,04/10/2012,3338740,20588,"9,650.00",GREEN LIGHT TRAFFIC MANAGEMENT          ,528860,Traffic Management,TRAFFIC MANAGEMENT SYSTEMS    
PURCHASING & PAYMENTS TEAM    ,7060,EXTERNAL VEHICLE HIRE         ,04/10/2012,3338758,965825,"7,937.20",TRANSPORT & COMMERCIAL SERVICES (HOMES) ,387596,Unclassified Non Trade,LOCAL GOVERNMENT              
ACCOMMODATION                 ,6210,RENTS                         ,04/10/2012,3338759,965807,"5,242.00",CHIEF EXECUTIVE DIRECTORATE (HOMES)     ,402954,Unclassified Non Trade,LOCAL GOVERNMENT              
ACCOMMODATION                 ,8350,MISCELLANEOUS EXPENSES        ,04/10/2012,3338760,965809,"5,560.00",CHIEF EXECUTIVE DIRECTORATE (HOMES)     ,402954,Unclassified Non Trade,LOCAL GOVERNMENT              
PURCHASING & PAYMENTS TEAM    ,7020,VEHICLE FUEL COSTS            ,04/10/2012,3338770,1019273000,"2,967.81",ALLSTAR BUSINESS SOLUTIONS LTD          ,444333,Vehicles Not Buses,CAR & TRUCK LEASING & CONTRACT
SHEFFIELD HOMES MANAGEMENT COS,8350,MISCELLANEOUS EXPENSES        ,04/10/2012,3338802,648,"10,916.67",SHEFFIELD HOMES LTD                     ,503889,Unclassified Non Trade,"HOUSING ASSOCIATIONS, SOCIETIE"
SHEFFIELD HOMES MANAGEMENT COS,8350,MISCELLANEOUS EXPENSES        ,04/10/2012,3338803,649,"139,666.66",SHEFFIELD HOMES LTD                     ,503889,Unclassified Non Trade,"HOUSING ASSOCIATIONS, SOCIETIE"
SHEFFIELD HOMES MANAGEMENT COS,8350,MISCELLANEOUS EXPENSES        ,04/10/2012,3338804,650,"6,250.00",SHEFFIELD HOMES LTD                     ,503889,Unclassified Non Trade,"HOUSING ASSOCIATIONS, SOCIETIE"
SHEFFIELD HOMES MANAGEMENT COS,8350,MISCELLANEOUS EXPENSES        ,04/10/2012,3338805,651,"4,166.67",SHEFFIELD HOMES LTD                     ,503889,Unclassified Non Trade,"HOUSING ASSOCIATIONS, SOCIETIE"
COMMUNITY ASSEMBLY NORTH EAST ,9120,OTHER AGENCIES                ,04/10/2012,3338810,3622,765,GREEN ESTATE LTD                        ,388189,Environmental Services,WASTE DISPOSAL SERVICES       
SHEFFIELD HOMES MANAGEMENT COS,8350,MISCELLANEOUS EXPENSES        ,04/10/2012,3339131,652,"3,333.33",SHEFFIELD HOMES LTD                     ,503889,Unclassified Non Trade,"HOUSING ASSOCIATIONS, SOCIETIE"
SHEFFIELD HOMES MANAGEMENT COS,8350,MISCELLANEOUS EXPENSES        ,04/10/2012,3339133,646,"2,570,117.42",SHEFFIELD HOMES LTD                     ,503889,Unclassified Non Trade,"HOUSING ASSOCIATIONS, SOCIETIE"
SHEFFIELD HOMES MANAGEMENT COS,8350,MISCELLANEOUS EXPENSES        ,04/10/2012,3339134,647,"314,250.00",SHEFFIELD HOMES LTD                     ,503889,Unclassified Non Trade,"HOUSING ASSOCIATIONS, SOCIETIE"
SPORTS EVENTS                 ,8440,FEE EXPENSES                  ,04/10/2012,3339294,WCP110131                ,"1,500.00",BRITISH WHEELCHAIR BASKETBALL           ,569224,Leisure Services,SPORTS CLUBS & ASSOCIATIONS   
PARKS COMMUNITY PARTNERSHIP   ,8180,GRANTS                        ,04/10/2012,3339372,3671,"36,337.50",GREEN ESTATE LTD                        ,388189,Environmental Services,WASTE DISPOSAL SERVICES       
YOUTH JUSTICE SERVICE         ,9120,OTHER AGENCIES                ,04/10/2012,3339423,48,"35,162.50",REMEDI                                  ,329612,Unclassified Non Trade,CHARITIES & VOLUNTARY ORGANISA
TRANSPORT FLEET MANAGEMENT    ,8070,STOCKS AND STORES             ,04/10/2012,3339210,8359469,"1,730.06",CARLTON FUELS                           ,466741,Vehicles Not Buses,FUEL DEALERS                  
CWD INDEPENDENT PLACEMENTS    ,9270,INDEPENDENT FOSTERING         ,04/10/2012,3338946,630051925,"5,061.00",REDACTED PERSONAL DATA,328618,Social Community Care,ADOPTION & FOSTERING          
PARKS OPERATIONS SOUTH        ,6150,ELECTRICITY                   ,04/10/2012,3339229,27140784,693.86,NPOWER NORTHERN LTD                     ,207191,Utilities,ELECTRICITY COMPANIES         
GRAVES PARK(CITY)             ,6150,ELECTRICITY                   ,04/10/2012,3339235,27140427,811.48,NPOWER NORTHERN LTD                     ,207191,Utilities,ELECTRICITY COMPANIES         
HURLFIELD                     ,8380,PHOTOCOPYING                  ,04/10/2012,3339255,344/12/0007040           ,"1,809.47",SIEMENS FINANCIAL SERVICES LIMITED      ,297385,Financial Services,LEASING SERVICES              
MFDS                          ,8370,MFD CHARGES                   ,04/10/2012,3339263,1104832735,"3,072.05",KONICA MINOLTA BUSINESS SOLUTIONS EAST  ,206267,ICT,OFFICE EQUIPMENT MNFRS & DISTR
MFDS                          ,8370,MFD CHARGES                   ,04/10/2012,3339264,1104832859,"6,075.77",KONICA MINOLTA BUSINESS SOLUTIONS EAST  ,206267,ICT,OFFICE EQUIPMENT MNFRS & DISTR
GYPSY AND TRAVELLER SITES     ,6150,ELECTRICITY                   ,04/10/2012,3339270,27140796,"3,569.30",NPOWER NORTHERN LTD                     ,207191,Utilities,ELECTRICITY COMPANIES         
GYPSY AND TRAVELLER SITES     ,6150,ELECTRICITY                   ,04/10/2012,3339286,27140797,"3,003.46",NPOWER NORTHERN LTD                     ,207191,Utilities,ELECTRICITY COMPANIES         
PURCHASING                    ,9250,INDEPENDENT DAY CARE          ,04/10/2012,3339090,TL/1213/219              ,936,SACMHA                                  ,342787,Unclassified Non Trade,CHARITIES & VOLUNTARY ORGANISA
ADULT SOCIAL CARE PURCHASING  ,9190,CITYWIDE SPOT                 ,04/10/2012,3339094,4642,888.8,B C SHEFFIELD LTD TA BLUEBIRD CARE      ,568674,Social Community Care,RESIDENTIAL CARE HOMES        
ADULT SOCIAL CARE PURCHASING  ,9190,CITYWIDE SPOT                 ,04/10/2012,3339095,4792&4939                ,"2,190.56",B C SHEFFIELD LTD TA BLUEBIRD CARE      ,568674,Social Community Care,RESIDENTIAL CARE HOMES        
ADULT SOCIAL CARE PURCHASING  ,9190,CITYWIDE SPOT                 ,04/10/2012,3339097,4897,"1,059.37",B C SHEFFIELD LTD TA BLUEBIRD CARE      ,568674,Social Community Care,RESIDENTIAL CARE HOMES        
INDEPENDENT FOSTERING PLACEMEN,9270,INDEPENDENT FOSTERING         ,04/10/2012,3338933,14033,"2,813.96",REDACTED PERSONAL DATA,433761,Social Community Care,ADOPTION & FOSTERING          
INDEPENDENT FOSTERING PLACEMEN,9270,INDEPENDENT FOSTERING         ,04/10/2012,3338934,630051913,"2,886.80",REDACTED PERSONAL DATA,328618,Social Community Care,ADOPTION & FOSTERING          
INDEPENDENT FOSTERING PLACEMEN,9270,INDEPENDENT FOSTERING         ,04/10/2012,3338935,630051914,"3,094.00",REDACTED PERSONAL DATA,328618,Social Community Care,ADOPTION & FOSTERING          
INDEPENDENT FOSTERING PLACEMEN,9270,INDEPENDENT FOSTERING         ,04/10/2012,3338936,630051915,"3,094.00",REDACTED PERSONAL DATA,328618,Social Community Care,ADOPTION & FOSTERING          
INDEPENDENT FOSTERING PLACEMEN,9270,INDEPENDENT FOSTERING         ,04/10/2012,3338937,630051916,"3,094.00",REDACTED PERSONAL DATA,328618,Social Community Care,ADOPTION & FOSTERING          
INDEPENDENT FOSTERING PLACEMEN,9270,INDEPENDENT FOSTERING         ,04/10/2012,3338938,630051917,"3,094.00",REDACTED PERSONAL DATA,328618,Social Community Care,ADOPTION & FOSTERING          
INDEPENDENT FOSTERING PLACEMEN,9270,INDEPENDENT FOSTERING         ,04/10/2012,3338939,630051918,"2,886.80",REDACTED PERSONAL DATA,328618,Social Community Care,ADOPTION & FOSTERING          
LEAVING CARE                  ,9270,INDEPENDENT FOSTERING         ,04/10/2012,3338940,630051919,"3,676.29",REDACTED PERSONAL DATA,328618,Social Community Care,ADOPTION & FOSTERING          
INDEPENDENT FOSTERING PLACEMEN,9270,INDEPENDENT FOSTERING         ,04/10/2012,3338955,15738,"3,084.20",REDACTED PERSONAL DATA,521940,Social Community Care,ADOPTION & FOSTERING          
INDEPENDENT FOSTERING PLACEMEN,9270,INDEPENDENT FOSTERING         ,04/10/2012,3338956,630051945,"2,843.40",REDACTED PERSONAL DATA,328618,Social Community Care,ADOPTION & FOSTERING          
INDEPENDENT FOSTERING PLACEMEN,9270,INDEPENDENT FOSTERING         ,04/10/2012,3338957,630051946,"3,676.29",REDACTED PERSONAL DATA,328618,Social Community Care,ADOPTION & FOSTERING          
INDEPENDENT FOSTERING PLACEMEN,9270,INDEPENDENT FOSTERING         ,04/10/2012,3338958,630051947,"3,676.29",REDACTED PERSONAL DATA,328618,Social Community Care,ADOPTION & FOSTERING          
INDEPENDENT FOSTERING PLACEMEN,9270,INDEPENDENT FOSTERING         ,04/10/2012,3338959,630051948,"3,676.29",REDACTED PERSONAL DATA,328618,Social Community Care,ADOPTION & FOSTERING          
INDEPENDENT FOSTERING PLACEMEN,9270,INDEPENDENT FOSTERING         ,04/10/2012,3338960,630051951,"3,199.84",REDACTED PERSONAL DATA,328618,Social Community Care,ADOPTION & FOSTERING          
INDEPENDENT FOSTERING PLACEMEN,9270,INDEPENDENT FOSTERING         ,04/10/2012,3338961,630051952,"3,676.29",REDACTED PERSONAL DATA,328618,Social Community Care,ADOPTION & FOSTERING          
INDEPENDENT FOSTERING PLACEMEN,9270,INDEPENDENT FOSTERING         ,04/10/2012,3338962,630051955,"2,843.40",REDACTED PERSONAL DATA,328618,Social Community Care,ADOPTION & FOSTERING          
INDEPENDENT FOSTERING PLACEMEN,9270,INDEPENDENT FOSTERING         ,04/10/2012,3338963,630051959,"1,802.12",REDACTED PERSONAL DATA,328618,Social Community Care,ADOPTION & FOSTERING          
INDEPENDENT FOSTERING PLACEMEN,9270,INDEPENDENT FOSTERING         ,04/10/2012,3338964,630051960,"3,676.29",REDACTED PERSONAL DATA,328618,Social Community Care,ADOPTION & FOSTERING          
LEAVING CARE                  ,9270,INDEPENDENT FOSTERING         ,04/10/2012,3338965,630051962,"3,604.25",REDACTED PERSONAL DATA,328618,Social Community Care,ADOPTION & FOSTERING          
INDEPENDENT FOSTERING PLACEMEN,9270,INDEPENDENT FOSTERING         ,04/10/2012,3338966,77798,"4,042.64",REDACTED PERSONAL DATA,344830,Social Community Care,ADOPTION & FOSTERING          
INDEPENDENT FOSTERING PLACEMEN,9270,INDEPENDENT FOSTERING         ,04/10/2012,3338967,77799,"3,423.00",REDACTED PERSONAL DATA,344830,Social Community Care,ADOPTION & FOSTERING          
INDEPENDENT FOSTERING PLACEMEN,9270,INDEPENDENT FOSTERING         ,04/10/2012,3338968,77800,"3,210.48",REDACTED PERSONAL DATA,344830,Social Community Care,ADOPTION & FOSTERING          
INDEPENDENT FOSTERING PLACEMEN,9270,INDEPENDENT FOSTERING         ,04/10/2012,3338969,77801,"3,814.44",REDACTED PERSONAL DATA,344830,Social Community Care,ADOPTION & FOSTERING          
INDEPENDENT FOSTERING PLACEMEN,9270,INDEPENDENT FOSTERING         ,04/10/2012,3338970,77802,"3,050.32",REDACTED PERSONAL DATA,344830,Social Community Care,ADOPTION & FOSTERING          
INDEPENDENT FOSTERING PLACEMEN,9270,INDEPENDENT FOSTERING         ,04/10/2012,3338971,77803,"2,700.88",REDACTED PERSONAL DATA,344830,Social Community Care,ADOPTION & FOSTERING          
CWD INDEPENDENT PLACEMENTS    ,9270,INDEPENDENT FOSTERING         ,04/10/2012,3338974,17711,"3,411.80",REDACTED PERSONAL DATA,352082,Social Community Care,ADOPTION & FOSTERING          
INDEPENDENT FOSTERING PLACEMEN,9270,INDEPENDENT FOSTERING         ,04/10/2012,3338975,NFA69356                 ,"2,791.60",REDACTED PERSONAL DATA,432914,Social Community Care,ADOPTION & FOSTERING          
INDEPENDENT FOSTERING PLACEMEN,9270,INDEPENDENT FOSTERING         ,04/10/2012,3338976,17712,"3,411.80",REDACTED PERSONAL DATA,352082,Social Community Care,ADOPTION & FOSTERING          
INDEPENDENT FOSTERING PLACEMEN,9270,INDEPENDENT FOSTERING         ,04/10/2012,3338998,119306,874,REDACTED PERSONAL DATA,349291,Social Community Care,ADOPTION & FOSTERING          
INDEPENDENT FOSTERING PLACEMEN,9270,INDEPENDENT FOSTERING         ,04/10/2012,3338977,NFA69358                 ,"2,996.00",REDACTED PERSONAL DATA,432914,Social Community Care,ADOPTION & FOSTERING          
INDEPENDENT FOSTERING PLACEMEN,9270,INDEPENDENT FOSTERING         ,04/10/2012,3338978,NFA69359A                ,"2,732.25",REDACTED PERSONAL DATA,432914,Social Community Care,ADOPTION & FOSTERING          
INDEPENDENT FOSTERING PLACEMEN,9270,INDEPENDENT FOSTERING         ,04/10/2012,3338980,NFA69360                 ,"2,966.04",REDACTED PERSONAL DATA,432914,Social Community Care,ADOPTION & FOSTERING          
INDEPENDENT FOSTERING PLACEMEN,9270,INDEPENDENT FOSTERING         ,04/10/2012,3338981,NFA69361                 ,"3,060.12",REDACTED PERSONAL DATA,432914,Social Community Care,ADOPTION & FOSTERING          
INDEPENDENT FOSTERING PLACEMEN,9270,INDEPENDENT FOSTERING         ,04/10/2012,3338982,NFA69362                 ,"3,120.04",REDACTED PERSONAL DATA,432914,Social Community Care,ADOPTION & FOSTERING          
INDEPENDENT FOSTERING PLACEMEN,9270,INDEPENDENT FOSTERING         ,04/10/2012,3338983,NFAQ69357                ,"2,791.60",REDACTED PERSONAL DATA,432914,Social Community Care,ADOPTION & FOSTERING          
INDEPENDENT FOSTERING PLACEMEN,9270,INDEPENDENT FOSTERING         ,04/10/2012,3338984,17713,"2,254.13",REDACTED PERSONAL DATA,352082,Social Community Care,ADOPTION & FOSTERING          
INDEPENDENT FOSTERING PLACEMEN,9270,INDEPENDENT FOSTERING         ,04/10/2012,3338985,17714,"3,343.48",REDACTED PERSONAL DATA,352082,Social Community Care,ADOPTION & FOSTERING          
INDEPENDENT FOSTERING PLACEMEN,9270,INDEPENDENT FOSTERING         ,04/10/2012,3338986,17715,"3,411.80",REDACTED PERSONAL DATA,352082,Social Community Care,ADOPTION & FOSTERING          
INDEPENDENT FOSTERING PLACEMEN,9270,INDEPENDENT FOSTERING         ,04/10/2012,3338987,119305,830,REDACTED PERSONAL DATA,349291,Social Community Care,ADOPTION & FOSTERING          
INDEPENDENT FOSTERING PLACEMEN,9270,INDEPENDENT FOSTERING         ,04/10/2012,3338988,17716,"3,411.80",REDACTED PERSONAL DATA,352082,Social Community Care,ADOPTION & FOSTERING          
INDEPENDENT FOSTERING PLACEMEN,9270,INDEPENDENT FOSTERING         ,04/10/2012,3338989,17717,"3,411.80",REDACTED PERSONAL DATA,352082,Social Community Care,ADOPTION & FOSTERING          
INDEPENDENT FOSTERING PLACEMEN,9270,INDEPENDENT FOSTERING         ,04/10/2012,3338990,17718,"3,411.80",REDACTED PERSONAL DATA,352082,Social Community Care,ADOPTION & FOSTERING          
INDEPENDENT FOSTERING PLACEMEN,9270,INDEPENDENT FOSTERING         ,04/10/2012,3338991,17719,"3,411.80",REDACTED PERSONAL DATA,352082,Social Community Care,ADOPTION & FOSTERING          
INDEPENDENT FOSTERING PLACEMEN,9270,INDEPENDENT FOSTERING         ,04/10/2012,3338992,17720,"3,411.80",REDACTED PERSONAL DATA,352082,Social Community Care,ADOPTION & FOSTERING          
INDEPENDENT FOSTERING PLACEMEN,9270,INDEPENDENT FOSTERING         ,04/10/2012,3338993,17721,"3,411.80",REDACTED PERSONAL DATA,352082,Social Community Care,ADOPTION & FOSTERING          
LEAVING CARE                  ,9270,INDEPENDENT FOSTERING         ,04/10/2012,3338994,17724,"3,411.80",REDACTED PERSONAL DATA,352082,Social Community Care,ADOPTION & FOSTERING          
CWD INDEPENDENT PLACEMENTS    ,9270,INDEPENDENT FOSTERING         ,04/10/2012,3338995,17725,"3,241.28",REDACTED PERSONAL DATA,352082,Social Community Care,ADOPTION & FOSTERING          
LEAVING CARE                  ,9270,INDEPENDENT FOSTERING         ,04/10/2012,3338996,17726,"3,241.28",REDACTED PERSONAL DATA,352082,Social Community Care,ADOPTION & FOSTERING          
LEAVING CARE                  ,9270,INDEPENDENT FOSTERING         ,04/10/2012,3338997,17727,"3,411.80",REDACTED PERSONAL DATA,352082,Social Community Care,ADOPTION & FOSTERING          
CWD INDEPENDENT PLACEMENTS    ,9270,INDEPENDENT FOSTERING         ,04/10/2012,3338999,17728,"3,411.80",REDACTED PERSONAL DATA,352082,Social Community Care,ADOPTION & FOSTERING          
INDEPENDENT FOSTERING PLACEMEN,9270,INDEPENDENT FOSTERING         ,04/10/2012,3339000,17729,"3,411.80",REDACTED PERSONAL DATA,352082,Social Community Care,ADOPTION & FOSTERING          
INDEPENDENT FOSTERING PLACEMEN,9270,INDEPENDENT FOSTERING         ,04/10/2012,3339001,17730,"3,411.80",REDACTED PERSONAL DATA,352082,Social Community Care,ADOPTION & FOSTERING          
INDEPENDENT FOSTERING PLACEMEN,9270,INDEPENDENT FOSTERING         ,04/10/2012,3339002,17732,"3,411.80",REDACTED PERSONAL DATA,352082,Social Community Care,ADOPTION & FOSTERING          
INDEPENDENT FOSTERING PLACEMEN,9270,INDEPENDENT FOSTERING         ,04/10/2012,3339003,17733,"3,343.48",REDACTED PERSONAL DATA,352082,Social Community Care,ADOPTION & FOSTERING          
LEAVING CARE                  ,9270,INDEPENDENT FOSTERING         ,04/10/2012,3339004,17734,"3,411.80",REDACTED PERSONAL DATA,352082,Social Community Care,ADOPTION & FOSTERING          
LEAVING CARE                  ,9270,INDEPENDENT FOSTERING         ,04/10/2012,3339005,17735,"3,411.80",REDACTED PERSONAL DATA,352082,Social Community Care,ADOPTION & FOSTERING          
INDEPENDENT FOSTERING PLACEMEN,9270,INDEPENDENT FOSTERING         ,04/10/2012,3339006,17738,"3,343.48",REDACTED PERSONAL DATA,352082,Social Community Care,ADOPTION & FOSTERING          
INDEPENDENT FOSTERING PLACEMEN,9270,INDEPENDENT FOSTERING         ,04/10/2012,3339007,17742,"3,411.80",REDACTED PERSONAL DATA,352082,Social Community Care,ADOPTION & FOSTERING          
LEAVING CARE                  ,9270,INDEPENDENT FOSTERING         ,04/10/2012,3339009,24197,"3,664.08",REDACTED PERSONAL DATA,366456,Social Community Care,ADOPTION & FOSTERING          
INDEPENDENT FOSTERING PLACEMEN,9270,INDEPENDENT FOSTERING         ,04/10/2012,3339010,24198,"3,703.00",REDACTED PERSONAL DATA,366456,Social Community Care,ADOPTION & FOSTERING          
INDEPENDENT FOSTERING PLACEMEN,9270,INDEPENDENT FOSTERING         ,04/10/2012,3339011,24199,"3,703.00",REDACTED PERSONAL DATA,366456,Social Community Care,ADOPTION & FOSTERING          
INDEPENDENT FOSTERING PLACEMEN,9270,INDEPENDENT FOSTERING         ,04/10/2012,3339012,3905,"3,250.52",REDACTED PERSONAL DATA,452499,Social Community Care,ADOPTION & FOSTERING          
LEAVING CARE                  ,9270,INDEPENDENT FOSTERING         ,04/10/2012,3339013,3906,"3,320.52",REDACTED PERSONAL DATA,452499,Social Community Care,ADOPTION & FOSTERING          
INDEPENDENT FOSTERING PLACEMEN,9270,INDEPENDENT FOSTERING         ,04/10/2012,3339014,444,"1,032.93",REDACTED PERSONAL DATA,368713,Social Community Care,ADOPTION & FOSTERING          
INDEPENDENT FOSTERING PLACEMEN,9270,INDEPENDENT FOSTERING         ,04/10/2012,3339015,630045658,"2,703.19",REDACTED PERSONAL DATA,328618,Social Community Care,ADOPTION & FOSTERING          
LEAVING CARE                  ,9270,INDEPENDENT FOSTERING         ,04/10/2012,3339016,630048580,"3,604.25",REDACTED PERSONAL DATA,328618,Social Community Care,ADOPTION & FOSTERING          
INDEPENDENT FOSTERING PLACEMEN,9270,INDEPENDENT FOSTERING         ,04/10/2012,3339017,630048594,"3,604.25",REDACTED PERSONAL DATA,328618,Social Community Care,ADOPTION & FOSTERING          
CWD INDEPENDENT PLACEMENTS    ,9270,INDEPENDENT FOSTERING         ,04/10/2012,3339018,630051872,"5,243.28",REDACTED PERSONAL DATA,328618,Social Community Care,ADOPTION & FOSTERING          
LEAVING CARE                  ,9270,INDEPENDENT FOSTERING         ,04/10/2012,3339019,630051873,"2,703.19",REDACTED PERSONAL DATA,328618,Social Community Care,ADOPTION & FOSTERING          
LEAVING CARE                  ,9270,INDEPENDENT FOSTERING         ,04/10/2012,3339020,630051874,"3,459.75",REDACTED PERSONAL DATA,328618,Social Community Care,ADOPTION & FOSTERING          
INDEPENDENT FOSTERING PLACEMEN,9270,INDEPENDENT FOSTERING         ,04/10/2012,3339021,630051875,"3,532.19",REDACTED PERSONAL DATA,328618,Social Community Care,ADOPTION & FOSTERING          
INDEPENDENT FOSTERING PLACEMEN,9270,INDEPENDENT FOSTERING         ,04/10/2012,3339022,630051876,"3,604.25",REDACTED PERSONAL DATA,328618,Social Community Care,ADOPTION & FOSTERING          
INDEPENDENT FOSTERING PLACEMEN,9270,INDEPENDENT FOSTERING         ,04/10/2012,3339023,12960,"3,158.40",REDACTED PERSONAL DATA,329839,Social Community Care,ADOPTION & FOSTERING          
INDEPENDENT FOSTERING PLACEMEN,9270,INDEPENDENT FOSTERING         ,04/10/2012,3339024,630051877,"4,692.52",REDACTED PERSONAL DATA,328618,Social Community Care,ADOPTION & FOSTERING          
INDEPENDENT FOSTERING PLACEMEN,9270,INDEPENDENT FOSTERING         ,04/10/2012,3339025,630051883,"5,160.40",REDACTED PERSONAL DATA,328618,Social Community Care,ADOPTION & FOSTERING          
INDEPENDENT FOSTERING PLACEMEN,9270,INDEPENDENT FOSTERING         ,04/10/2012,3339026,630051884,"5,868.80",REDACTED PERSONAL DATA,328618,Social Community Care,ADOPTION & FOSTERING          
INDEPENDENT FOSTERING PLACEMEN,9270,INDEPENDENT FOSTERING         ,04/10/2012,3339027,630051885,"3,604.25",REDACTED PERSONAL DATA,328618,Social Community Care,ADOPTION & FOSTERING          
LEAVING CARE                  ,9270,INDEPENDENT FOSTERING         ,04/10/2012,3339028,630051886,"3,604.25",REDACTED PERSONAL DATA,328618,Social Community Care,ADOPTION & FOSTERING          
LEAVING CARE                  ,9270,INDEPENDENT FOSTERING         ,04/10/2012,3339029,630051887,"3,604.25",REDACTED PERSONAL DATA,328618,Social Community Care,ADOPTION & FOSTERING          
INDEPENDENT FOSTERING PLACEMEN,9270,INDEPENDENT FOSTERING         ,04/10/2012,3339030,630051888,"3,604.25",REDACTED PERSONAL DATA,328618,Social Community Care,ADOPTION & FOSTERING          
INDEPENDENT FOSTERING PLACEMEN,9270,INDEPENDENT FOSTERING         ,04/10/2012,3339031,630051889,"3,604.25",REDACTED PERSONAL DATA,328618,Social Community Care,ADOPTION & FOSTERING          
INDEPENDENT FOSTERING PLACEMEN,9270,INDEPENDENT FOSTERING         ,04/10/2012,3339032,630051890,"3,604.25",REDACTED PERSONAL DATA,328618,Social Community Care,ADOPTION & FOSTERING          
INDEPENDENT FOSTERING PLACEMEN,9270,INDEPENDENT FOSTERING         ,04/10/2012,3339033,630051891,"5,776.96",REDACTED PERSONAL DATA,328618,Social Community Care,ADOPTION & FOSTERING          
INDEPENDENT FOSTERING PLACEMEN,9270,INDEPENDENT FOSTERING         ,04/10/2012,3339034,14032,"3,514.80",REDACTED PERSONAL DATA,433761,Social Community Care,ADOPTION & FOSTERING          
INDEPENDENT FOSTERING PLACEMEN,9270,INDEPENDENT FOSTERING         ,04/10/2012,3339035,630051892,"4,423.72",REDACTED PERSONAL DATA,328618,Social Community Care,ADOPTION & FOSTERING          
INDEPENDENT FOSTERING PLACEMEN,9270,INDEPENDENT FOSTERING         ,04/10/2012,3339036,630051893,"3,604.25",REDACTED PERSONAL DATA,328618,Social Community Care,ADOPTION & FOSTERING          
LEAVING CARE                  ,9270,INDEPENDENT FOSTERING         ,04/10/2012,3339037,630051894,"3,290.00",REDACTED PERSONAL DATA,328618,Social Community Care,ADOPTION & FOSTERING          
INDEPENDENT FOSTERING PLACEMEN,9270,INDEPENDENT FOSTERING         ,04/10/2012,3339038,630051903,"2,843.40",REDACTED PERSONAL DATA,328618,Social Community Care,ADOPTION & FOSTERING          
INDEPENDENT FOSTERING PLACEMEN,9270,INDEPENDENT FOSTERING         ,04/10/2012,3339039,630051904,"3,604.25",REDACTED PERSONAL DATA,328618,Social Community Care,ADOPTION & FOSTERING          
INDEPENDENT FOSTERING PLACEMEN,9270,INDEPENDENT FOSTERING         ,04/10/2012,3339040,630051905,"3,047.80",REDACTED PERSONAL DATA,328618,Social Community Care,ADOPTION & FOSTERING          
INDEPENDENT FOSTERING PLACEMEN,9270,INDEPENDENT FOSTERING         ,04/10/2012,3339041,630051907,"3,604.25",REDACTED PERSONAL DATA,328618,Social Community Care,ADOPTION & FOSTERING          
INDEPENDENT FOSTERING PLACEMEN,9270,INDEPENDENT FOSTERING         ,04/10/2012,3339042,630051908,"3,604.25",REDACTED PERSONAL DATA,328618,Social Community Care,ADOPTION & FOSTERING          
INDEPENDENT FOSTERING PLACEMEN,9270,INDEPENDENT FOSTERING         ,04/10/2012,3339043,630051909,"3,604.25",REDACTED PERSONAL DATA,328618,Social Community Care,ADOPTION & FOSTERING          
CWD INDEPENDENT PLACEMENTS    ,9270,INDEPENDENT FOSTERING         ,04/10/2012,3339044,630051912,"5,593.28",REDACTED PERSONAL DATA,328618,Social Community Care,ADOPTION & FOSTERING          
INDEPENDENT RES BLOCK PLACEMEN,9270,INDEPENDENT RESIDENTIAL PMENT ,04/10/2012,3339045,107073,"11,200.00",THE KEYS GROUP                          ,328876,Social Community Care,CHILDREN'S HOMES              
INDEPENDENT RES BLOCK PLACEMEN,9270,INDEPENDENT RESIDENTIAL PMENT ,04/10/2012,3339046,17277,"10,804.36",CARE TODAY                              ,382727,Social Community Care,CHILDREN'S HOMES              
CWD INDEPENDENT PLACEMENTS    ,9270,INDEPENDENT RESIDENTIAL PMENT ,04/10/2012,3339047,7169,"7,936.40",BALBY (HEATHCOTES)                      ,552815,Social Community Care,RESIDENTIAL CARE HOMES        
LEAVING CARE                  ,9270,CARELEAVERS ACCOMMODATION     ,04/10/2012,3339048,779,"11,437.53",REDACTED PERSONAL DATA,405951,Social Community Care,CHILDCARE SERVICES            
INDEPENDENT RES BLOCK PLACEMEN,9270,INDEPENDENT RESIDENTIAL PMENT ,04/10/2012,3339049,780,"7,379.05",REDACTED PERSONAL DATA,405951,Social Community Care,CHILDCARE SERVICES            
INDEPENDENT RES BLOCK PLACEMEN,9270,INDEPENDENT RESIDENTIAL PMENT ,04/10/2012,3339050,785,"4,777.93",REDACTED PERSONAL DATA,405951,Social Community Care,CHILDCARE SERVICES            
LEAVING CARE                  ,9270,CARELEAVERS ACCOMMODATION     ,04/10/2012,3339051,17333,"12,272.12",CARE TODAY                              ,382727,Social Community Care,CHILDREN'S HOMES              
INDEPENDENT RES BLOCK PLACEMEN,9270,INDEPENDENT RESIDENTIAL PMENT ,04/10/2012,3339052,789,"3,754.09",REDACTED PERSONAL DATA,405951,Social Community Care,CHILDCARE SERVICES            
LEAVING CARE                  ,9270,CARELEAVERS ACCOMMODATION     ,04/10/2012,3339053,8397,"3,869.66",HUTTON CARE PARTNERSHIP LTD             ,422809,Social Community Care,SHELTERED HOUSING             
LEAVING CARE                  ,9270,CARELEAVERS ACCOMMODATION     ,04/10/2012,3339054,8398,"3,869.66",HUTTON CARE PARTNERSHIP LTD             ,422809,Social Community Care,SHELTERED HOUSING             
LEAVING CARE                  ,9270,CARELEAVERS ACCOMMODATION     ,04/10/2012,3339055,8399,"3,869.66",HUTTON CARE PARTNERSHIP LTD             ,422809,Social Community Care,SHELTERED HOUSING             
LEAVING CARE                  ,9270,CARELEAVERS ACCOMMODATION     ,04/10/2012,3339056,8400,"3,869.66",HUTTON CARE PARTNERSHIP LTD             ,422809,Social Community Care,SHELTERED HOUSING             
LEAVING CARE                  ,9270,CARELEAVERS ACCOMMODATION     ,04/10/2012,3339057,8402,"1,222.58",HUTTON CARE PARTNERSHIP LTD             ,422809,Social Community Care,SHELTERED HOUSING             
LEAVING CARE                  ,9270,CARELEAVERS ACCOMMODATION     ,04/10/2012,3339058,SCC004917NN              ,560,ALARA BED & BREAKFAST                   ,305061,Facilities Management,GUEST HOUSES                  
CWD INDEPENDENT PLACEMENTS    ,9270,CARELEAVERS ACCOMMODATION     ,04/10/2012,3339059,SRO1125866               ,"1,579.00",THE NATIONAL AUTISTIC SOCIETY           ,334778,Unclassified Non Trade,CHARITIES & VOLUNTARY ORGANISA
CWD INDEPENDENT PLACEMENTS    ,9270,CARELEAVERS ACCOMMODATION     ,04/10/2012,3339060,SRO1125867               ,"1,285.00",THE NATIONAL AUTISTIC SOCIETY           ,334778,Unclassified Non Trade,CHARITIES & VOLUNTARY ORGANISA
CWD INDEPENDENT PLACEMENTS    ,9270,CARELEAVERS ACCOMMODATION     ,04/10/2012,3339061,SRO1126069               ,588,THE NATIONAL AUTISTIC SOCIETY           ,334778,Unclassified Non Trade,CHARITIES & VOLUNTARY ORGANISA
CWD INDEPENDENT PLACEMENTS    ,9270,CARELEAVERS ACCOMMODATION     ,04/10/2012,3339062,SRO1126071               ,652,THE NATIONAL AUTISTIC SOCIETY           ,334778,Unclassified Non Trade,CHARITIES & VOLUNTARY ORGANISA
LEAVING CARE                  ,9270,CARELEAVERS ACCOMMODATION     ,04/10/2012,3339063,ZIGA3                    ,525,EARL MARSHALL GUEST HOUSE               ,391589,Facilities Management,GUEST HOUSES                  
LEAVING CARE                  ,9270,CARELEAVERS ACCOMMODATION     ,04/10/2012,3339065,25130,"10,799.88",THE KEYS GROUP                          ,325353,Social Community Care,CHILDREN'S HOMES              
INDEPENDENT RES BLOCK PLACEMEN,9270,INDEPENDENT RESIDENTIAL PMENT ,04/10/2012,3339066,25141,"9,636.76",THE KEYS GROUP                          ,328876,Social Community Care,CHILDREN'S HOMES              
INDEPENDENT RES BLOCK PLACEMEN,9270,INDEPENDENT RESIDENTIAL PMENT ,04/10/2012,3339067,25142,"9,600.08",THE KEYS GROUP                          ,328876,Social Community Care,CHILDREN'S HOMES              
INDEPENDENT RES BLOCK PLACEMEN,9270,INDEPENDENT RESIDENTIAL PMENT ,04/10/2012,3339069,501282,"8,352.20",NORTHERN LIFE CARE LTD T/A UBU          ,207163,Social Community Care,RESIDENTIAL CARE HOMES        
INDEPENDENT RES BLOCK PLACEMEN,9270,INDEPENDENT RESIDENTIAL PMENT ,04/10/2012,3339070,501283,"8,352.20",NORTHERN LIFE CARE LTD T/A UBU          ,207163,Social Community Care,RESIDENTIAL CARE HOMES        
INDEPENDENT RES BLOCK PLACEMEN,9270,INDEPENDENT RESIDENTIAL PMENT ,04/10/2012,3339071,501284,"6,343.36",NORTHERN LIFE CARE LTD T/A UBU          ,207163,Social Community Care,RESIDENTIAL CARE HOMES        
INDEPENDENT RES BLOCK PLACEMEN,9270,INDEPENDENT RESIDENTIAL PMENT ,04/10/2012,3339072,501285,"6,343.36",NORTHERN LIFE CARE LTD T/A UBU          ,207163,Social Community Care,RESIDENTIAL CARE HOMES        
INDEPENDENT RES BLOCK PLACEMEN,9270,INDEPENDENT RESIDENTIAL PMENT ,04/10/2012,3339073,501286,"7,883.72",NORTHERN LIFE CARE LTD T/A UBU          ,207163,Social Community Care,RESIDENTIAL CARE HOMES        
LEAVING CARE                  ,9270,CARELEAVERS ACCOMMODATION     ,04/10/2012,3339074,501287,"7,883.72",NORTHERN LIFE CARE LTD T/A UBU          ,207163,Social Community Care,RESIDENTIAL CARE HOMES        
LEAVING CARE                  ,9270,CARELEAVERS ACCOMMODATION     ,04/10/2012,3339075,501288,"7,883.72",NORTHERN LIFE CARE LTD T/A UBU          ,207163,Social Community Care,RESIDENTIAL CARE HOMES        
LEAVING CARE                  ,9270,CARELEAVERS ACCOMMODATION     ,04/10/2012,3339076,501289,"7,883.72",NORTHERN LIFE CARE LTD T/A UBU          ,207163,Social Community Care,RESIDENTIAL CARE HOMES        
INDEPENDENT RES BLOCK PLACEMEN,9270,INDEPENDENT RESIDENTIAL PMENT ,04/10/2012,3339077,501290,"7,883.72",NORTHERN LIFE CARE LTD T/A UBU          ,207163,Social Community Care,RESIDENTIAL CARE HOMES        
LEAVING CARE                  ,9270,CARELEAVERS ACCOMMODATION     ,04/10/2012,3339078,5220,"7,800.64",PROGRESSIVE CARE LTD                    ,343548,Social Community Care,CHILDREN'S HOMES              
LEAVING CARE                  ,9270,CARELEAVERS ACCOMMODATION     ,04/10/2012,3339079,5232,"3,200.00",PROGRESSIVE CARE LTD                    ,343548,Social Community Care,CHILDREN'S HOMES              
INDEPENDENT RES BLOCK PLACEMEN,9270,INDEPENDENT RESIDENTIAL PMENT ,04/10/2012,3339080,5294,"10,992.86",PROGRESSIVE CARE LTD                    ,343548,Social Community Care,CHILDREN'S HOMES              
INDEPENDENT RES BLOCK PLACEMEN,9270,INDEPENDENT RESIDENTIAL PMENT ,04/10/2012,3339081,5296,"7,328.56",PROGRESSIVE CARE LTD                    ,343548,Social Community Care,CHILDREN'S HOMES              
LEAVING CARE                  ,9270,CARELEAVERS ACCOMMODATION     ,04/10/2012,3339083,5315,914.29,PROGRESSIVE CARE LTD                    ,343548,Social Community Care,CHILDREN'S HOMES              
LEAVING CARE                  ,9270,CARELEAVERS ACCOMMODATION     ,04/10/2012,3339084,5317,571.43,PROGRESSIVE CARE LTD                    ,343548,Social Community Care,CHILDREN'S HOMES              
INDEPENDENT RES BLOCK PLACEMEN,9270,INDEPENDENT RESIDENTIAL PMENT ,04/10/2012,3339085,5319,"1,628.59",PROGRESSIVE CARE LTD                    ,343548,Social Community Care,CHILDREN'S HOMES              
LEAVING CARE                  ,9270,CARELEAVERS ACCOMMODATION     ,04/10/2012,3339086,5320,"5,292.88",PROGRESSIVE CARE LTD                    ,343548,Social Community Care,CHILDREN'S HOMES              
PDSI PURCHASING               ,9200,CONTINUING RESIDENTIAL CARE   ,04/10/2012,3338925,J526754 141012           ,"2,014.00",THE SHIRES CARE CENTRE                  ,362050,Social Community Care,NURSING HOMES                 
ADULT SOCIAL CARE PURCHASING  ,9200,CONTINUING RESIDENTIAL CARE   ,04/10/2012,3338926,J533530 141012           ,"1,563.29",BURNT TREE CROFT                        ,361793,Social Community Care,RESIDENTIAL CARE HOMES        
ADULT SOCIAL CARE PURCHASING  ,9200,CONTINUING RESIDENTIAL CARE   ,04/10/2012,3338927,J533532 141012           ,"3,580.43",PADDOCK HILL                            ,361797,Social Community Care,RESIDENTIAL CARE HOMES        
ADULT SOCIAL CARE PURCHASING  ,9200,CONTINUING RESIDENTIAL CARE   ,04/10/2012,3338928,J533533 141012           ,"4,740.00",CROFT ACRES                             ,361758,Social Community Care,RESIDENTIAL CARE HOMES        
ADULT SOCIAL CARE PURCHASING  ,9210,CONTINUING NURSING CARE       ,04/10/2012,3338929,J533534 141012           ,"2,045.00",ALPINE HEALTHCARE                       ,362125,Social Community Care,NURSING HOMES                 
ADULT SOCIAL CARE PURCHASING  ,9200,CONTINUING RESIDENTIAL CARE   ,04/10/2012,3338930,J533535 141012           ,"1,765.00",BEECHY KNOLL                            ,362144,Social Community Care,RESIDENTIAL CARE HOMES        
ADULT SOCIAL CARE PURCHASING  ,9200,SHORT TERM RESIDENTIAL CARE   ,04/10/2012,3338931,J533505 160912           ,"2,824.00",PADDOCK HILL                            ,361797,Social Community Care,RESIDENTIAL CARE HOMES        
ADULT SOCIAL CARE PURCHASING  ,9200,SHORT TERM RESIDENTIAL CARE   ,04/10/2012,3338932,J533506 160912           ,"2,370.00",NORWOOD GRANGE                          ,361907,Social Community Care,RESIDENTIAL CARE HOMES        
IN HOUSE FOSTER PLACEMENT     ,9270,IN-HOUSE FOSTERING            ,05/10/2012,3339608,103638 20121004 37620    ,514,REDACTED PERSONAL DATA,333706,Social Community Care,ADOPTION & FOSTERING          
IN HOUSE FOSTER PLACEMENT     ,9270,IN-HOUSE FOSTERING            ,05/10/2012,3339609,15052 20121004 37620     ,864,REDACTED PERSONAL DATA,564456,Unclassified Non Trade,OUT OF SCOPE FOR SIC MONITORIN
IN HOUSE FOSTER PLACEMENT     ,9270,IN-HOUSE FOSTERING            ,05/10/2012,3339612,151365 20121004 37620    ,632.85,REDACTED PERSONAL DATA,442473,Social Community Care,ADOPTION & FOSTERING          
IN HOUSE FOSTER PLACEMENT     ,9270,IN-HOUSE FOSTERING            ,05/10/2012,3339616,156226 20121004 37620    ,836,REDACTED PERSONAL DATA,549255,Social Community Care,ADOPTION & FOSTERING          
IN HOUSE FOSTER PLACEMENT     ,9270,IN-HOUSE FOSTERING            ,05/10/2012,3339629,16180 20121004 37620     ,"1,008.00",REDACTED PERSONAL DATA,333718,Social Community Care,ADOPTION & FOSTERING          
CARELEAVER IN HOUSE FOSTERING ,9270,IN-HOUSE FOSTERING            ,05/10/2012,3339630,105022 20121004 37620    ,510.75,REDACTED PERSONAL DATA,526566,Social Community Care,CHILDCARE SERVICES            
IN HOUSE FOSTER PLACEMENT     ,9270,IN-HOUSE FOSTERING            ,05/10/2012,3339631,161854 20121004 37620    ,"1,800.00",REDACTED PERSONAL DATA,502396,Social Community Care,ADOPTION & FOSTERING          
ADOPTION ALLOWANCES           ,9270,ADOPTION ALLOWANCES           ,05/10/2012,3339639,162849 20121004 37620    ,630.4,REDACTED PERSONAL DATA,383481,Social Community Care,ADOPTION & FOSTERING          
IN HOUSE FOSTER PLACEMENT     ,9270,IN-HOUSE FOSTERING            ,05/10/2012,3339650,167097 20121004 37620    ,"1,025.15",REDACTED PERSONAL DATA,424791,Social Community Care,ADOPTION & FOSTERING          
ADOPTION ALLOWANCES           ,9270,ADOPTION ALLOWANCES           ,05/10/2012,3339670,179524 20121004 37620    ,630,REDACTED PERSONAL DATA,338804,Social Community Care,ADOPTION & FOSTERING          
IN HOUSE FOSTER PLACEMENT     ,9270,IN-HOUSE FOSTERING            ,05/10/2012,3339672,179693 20121004 37620    ,"1,726.00",REDACTED PERSONAL DATA,521983,Social Community Care,ADOPTION & FOSTERING          
IN HOUSE FOSTER PLACEMENT     ,9270,IN-HOUSE FOSTERING            ,05/10/2012,3339686,18403 20121004 37620     ,604,REDACTED PERSONAL DATA,333624,Social Community Care,ADOPTION & FOSTERING          
RESIDENCE ORDERS              ,9270,RESIDENCE ORDERS              ,05/10/2012,3339688,184267 20121004 37620    ,513.96,REDACTED PERSONAL DATA,455207,Social Community Care,ADOPTION & FOSTERING          
ADOPTION ALLOWANCES           ,9270,ADOPTION ALLOWANCES           ,05/10/2012,3339690,184782 20121004 37620    ,630,REDACTED PERSONAL DATA,373269,Social Community Care,ADOPTION & FOSTERING          
IN HOUSE FOSTER PLACEMENT     ,9270,IN-HOUSE FOSTERING            ,05/10/2012,3339692,185557 20121004 37620    ,"1,056.00",REDACTED PERSONAL DATA,462682,Social Community Care,ADOPTION & FOSTERING          
IN HOUSE FOSTER PLACEMENT     ,9270,IN-HOUSE FOSTERING            ,05/10/2012,3339702,187984 20121004 37620    ,746,REDACTED PERSONAL DATA,467299,Social Community Care,ADOPTION & FOSTERING          
IN HOUSE FOSTER PLACEMENT     ,9270,IN-HOUSE FOSTERING            ,05/10/2012,3339704,188969 20121004 37620    ,628,REDACTED PERSONAL DATA,467300,Social Community Care,ADOPTION & FOSTERING          
IN HOUSE FOSTER PLACEMENT     ,9270,IN-HOUSE FOSTERING            ,05/10/2012,3339706,189523 20121004 37620    ,604,REDACTED PERSONAL DATA,464101,Social Community Care,ADOPTION & FOSTERING          
RESIDENCE ORDERS              ,9270,RESIDENCE ORDERS              ,05/10/2012,3339710,189972 20121004 37620    ,916.71,REDACTED PERSONAL DATA,561897,Unclassified Non Trade,OUT OF SCOPE FOR SIC MONITORIN
SPECIAL GUARDIANSHIP          ,9270,RESIDENCE ORDERS              ,05/10/2012,3339713,191065 20121004 37620    ,633.66,REDACTED PERSONAL DATA,444008,Social Community Care,ADOPTION & FOSTERING          
SPECIAL GUARDIANSHIP          ,9270,RESIDENCE ORDERS              ,05/10/2012,3339714,191415 20121004 37620    ,"1,220.40",REDACTED PERSONAL DATA,567597,Social Community Care,ADOPTION & FOSTERING          
SPECIAL GUARDIANSHIP          ,9270,RESIDENCE ORDERS              ,05/10/2012,3339717,191801 20121004 37620    ,"1,439.20",REDACTED PERSONAL DATA,492572,Social Community Care,ADOPTION & FOSTERING          
IN HOUSE FOSTER PLACEMENT     ,9270,IN-HOUSE FOSTERING            ,05/10/2012,3339718,100191 20121004 37620    ,"1,008.00",REDACTED PERSONAL DATA,332848,Social Community Care,ADOPTION & FOSTERING          
IN HOUSE FOSTER PLACEMENT     ,9270,IN-HOUSE FOSTERING            ,05/10/2012,3339720,191832 20121004 37620    ,992.57,REDACTED PERSONAL DATA,473384,Social Community Care,ADOPTION & FOSTERING          
IN HOUSE FOSTER PLACEMENT     ,9270,IN-HOUSE FOSTERING            ,05/10/2012,3339723,193350 20121004 37620    ,666,REDACTED PERSONAL DATA,471003,Social Community Care,ADOPTION & FOSTERING          
IN HOUSE FOSTER PLACEMENT     ,9270,IN-HOUSE FOSTERING            ,05/10/2012,3339729,194407 20121004 37620    ,510.29,REDACTED PERSONAL DATA,502500,Social Community Care,ADOPTION & FOSTERING          
ADOPTION ALLOWANCES           ,9270,ADOPTION ALLOWANCES           ,05/10/2012,3339736,195074 20121004 37620    ,677.3,REDACTED PERSONAL DATA,333341,Social Community Care,ADOPTION & FOSTERING          
ADOPTION ALLOWANCES           ,9270,ADOPTION ALLOWANCES           ,05/10/2012,3339737,195134 20121004 37620    ,536.8,REDACTED PERSONAL DATA,332998,Social Community Care,ADOPTION & FOSTERING          
IN HOUSE FOSTER PLACEMENT     ,9270,IN-HOUSE FOSTERING            ,05/10/2012,3339739,195731 20121004 37620    ,"1,187.14",REDACTED PERSONAL DATA,509843,Social Community Care,ADOPTION & FOSTERING          
IN HOUSE FOSTER PLACEMENT     ,9270,IN-HOUSE FOSTERING            ,05/10/2012,3339740,19623 20121004 37620     ,"1,850.00",REDACTED PERSONAL DATA,333147,Social Community Care,ADOPTION & FOSTERING          
SPECIAL GUARDIANSHIP          ,9270,RESIDENCE ORDERS              ,05/10/2012,3339740,19623 20121004 37620     ,577.96,REDACTED PERSONAL DATA,333147,Social Community Care,ADOPTION & FOSTERING          
IN HOUSE FOSTER PLACEMENT     ,9270,IN-HOUSE FOSTERING            ,05/10/2012,3339743,196541 20121004 37620    ,604,REDACTED PERSONAL DATA,515242,Social Community Care,ADOPTION & FOSTERING          
IN HOUSE FOSTER PLACEMENT     ,9270,IN-HOUSE FOSTERING            ,05/10/2012,3339747,197337 20121004 37620    ,714,REDACTED PERSONAL DATA,483157,Social Community Care,ADOPTION & FOSTERING          
SPECIAL GUARDIANSHIP          ,9270,RESIDENCE ORDERS              ,05/10/2012,3339761,203296 20121004 37620    ,512.86,REDACTED PERSONAL DATA,463795,Social Community Care,ADOPTION & FOSTERING          
IN HOUSE FOSTER PLACEMENT     ,9270,IN-HOUSE FOSTERING            ,05/10/2012,3339764,203957 20121004 37620    ,802,REDACTED PERSONAL DATA,569169,Social Community Care,ADOPTION & FOSTERING          
IN HOUSE FOSTER PLACEMENT     ,9270,IN-HOUSE FOSTERING            ,05/10/2012,3339765,204113 20121004 37620    ,734,REDACTED PERSONAL DATA,479993,Social Community Care,ADOPTION & FOSTERING          
IN HOUSE FOSTER PLACEMENT     ,9270,IN-HOUSE FOSTERING            ,05/10/2012,3339768,206213 20121004 37620    ,604,REDACTED PERSONAL DATA,502739,Social Community Care,ADOPTION & FOSTERING          
CARELEAVER IN HOUSE FOSTERING ,9270,IN-HOUSE FOSTERING            ,05/10/2012,3339769,206557 20121004 37620    ,780.5,REDACTED PERSONAL DATA,567375,Unclassified Non Trade,OUT OF SCOPE FOR SIC MONITORIN
SPECIAL GUARDIANSHIP          ,9270,RESIDENCE ORDERS              ,05/10/2012,3339772,207629 20121004 37620    ,"1,652.60",REDACTED PERSONAL DATA,487226,Social Community Care,ADOPTION & FOSTERING          
IN HOUSE FOSTER PLACEMENT     ,9270,IN-HOUSE FOSTERING            ,05/10/2012,3339776,20809 20121004 37620     ,628,REDACTED PERSONAL DATA,333830,Social Community Care,ADOPTION & FOSTERING          
IN HOUSE FOSTER PLACEMENT     ,9270,IN-HOUSE FOSTERING            ,05/10/2012,3339780,208906 20121004 37620    ,604,REDACTED PERSONAL DATA,502527,Social Community Care,ADOPTION & FOSTERING          
IN HOUSE FOSTER PLACEMENT     ,9270,IN-HOUSE FOSTERING            ,05/10/2012,3339782,210431 20121004 37620    ,"1,112.00",REDACTED PERSONAL DATA,502737,Social Community Care,ADOPTION & FOSTERING          
IN HOUSE FOSTER PLACEMENT     ,9270,IN-HOUSE FOSTERING            ,05/10/2012,3339783,210508 20121004 37620    ,604,REDACTED PERSONAL DATA,493410,Social Community Care,ADOPTION & FOSTERING          
RESIDENCE ORDERS              ,9270,RESIDENCE ORDERS              ,05/10/2012,3339785,11214 20121004 37620     ,583.1,REDACTED PERSONAL DATA,328124,Social Community Care,ADOPTION & FOSTERING          
SPECIAL GUARDIANSHIP          ,9270,RESIDENCE ORDERS              ,05/10/2012,3339792,213411 20121004 37620    ,819.96,REDACTED PERSONAL DATA,502164,Social Community Care,ADOPTION & FOSTERING          
IN HOUSE FOSTER PLACEMENT     ,9270,IN-HOUSE FOSTERING            ,05/10/2012,3339797,21439 20121004 37620     ,604,REDACTED PERSONAL DATA,338747,Social Community Care,ADOPTION & FOSTERING          
SPECIAL GUARDIANSHIP          ,9270,RESIDENCE ORDERS              ,05/10/2012,3339802,215348 20121004 37620    ,536.2,REDACTED PERSONAL DATA,477472,Social Community Care,ADOPTION & FOSTERING          
IN HOUSE FOSTER PLACEMENT     ,9270,IN-HOUSE FOSTERING            ,05/10/2012,3339807,113481 20121004 37620    ,786,REDACTED PERSONAL DATA,333743,Social Community Care,ADOPTION & FOSTERING          
IN HOUSE FOSTER PLACEMENT     ,9270,IN-HOUSE FOSTERING            ,05/10/2012,3339829,10113 20121004 37620     ,"1,490.00",REDACTED PERSONAL DATA,371949,Social Community Care,ADOPTION & FOSTERING          
IN HOUSE FOSTER PLACEMENT     ,9270,IN-HOUSE FOSTERING            ,05/10/2012,3339830,11584 20121004 37620     ,604,REDACTED PERSONAL DATA,338799,Social Community Care,ADOPTION & FOSTERING          
RESIDENCE ORDERS              ,9270,RESIDENCE ORDERS              ,05/10/2012,3339842,217984 20121004 37620    ,"12,342.33",REDACTED PERSONAL DATA,466697,Social Community Care,ADOPTION & FOSTERING          
CARELEAVER IN HOUSE FOSTERING ,9270,IN-HOUSE FOSTERING            ,05/10/2012,3339864,218678 20121004 37620    ,780.5,REDACTED PERSONAL DATA,568445,Social Community Care,ADOPTION & FOSTERING          
IN HOUSE FOSTER PLACEMENT     ,9270,IN-HOUSE FOSTERING            ,05/10/2012,3339886,224702 20121004 37620    ,604,REDACTED PERSONAL DATA,545493,Unclassified Non Trade,OUT OF SCOPE FOR SIC MONITORIN
IN HOUSE FOSTER PLACEMENT     ,9270,IN-HOUSE FOSTERING            ,05/10/2012,3339887,224962 20121004 37620    ,"1,094.00",REDACTED PERSONAL DATA,505290,Social Community Care,ADOPTION & FOSTERING          
RESIDENCE ORDERS              ,9270,RESIDENCE ORDERS              ,05/10/2012,3339889,226140 20121004 37620    ,523,REDACTED PERSONAL DATA,507229,Social Community Care,CHILDCARE SERVICES            
CARELEAVER IN HOUSE FOSTERING ,9270,IN-HOUSE FOSTERING            ,05/10/2012,3339891,227467 20121004 37620    ,780.5,REDACTED PERSONAL DATA,558407,Social Community Care,ADOPTION & FOSTERING          
IN HOUSE FOSTER PLACEMENT     ,9270,IN-HOUSE FOSTERING            ,05/10/2012,3339901,232766 20121004 37620    ,604,REDACTED PERSONAL DATA,518348,Social Community Care,ADOPTION & FOSTERING          
IN HOUSE FOSTER PLACEMENT     ,9270,IN-HOUSE FOSTERING            ,05/10/2012,3339902,233079 20121004 37620    ,"1,244.00",REDACTED PERSONAL DATA,520205,Social Community Care,ADOPTION & FOSTERING          
IN HOUSE FOSTER PLACEMENT     ,9270,IN-HOUSE FOSTERING            ,05/10/2012,3339905,234568 20121004 37620    ,"1,498.00",REDACTED PERSONAL DATA,530876,Social Community Care,ADOPTION & FOSTERING          
IN HOUSE FOSTER PLACEMENT     ,9270,IN-HOUSE FOSTERING            ,05/10/2012,3339911,23882 20121004 37620     ,604,REDACTED PERSONAL DATA,333142,Social Community Care,ADOPTION & FOSTERING          
IN HOUSE FOSTER PLACEMENT     ,9270,IN-HOUSE FOSTERING            ,05/10/2012,3339917,243392 20121004 37620    ,"1,008.00",REDACTED PERSONAL DATA,521458,Social Community Care,ADOPTION & FOSTERING          
IN HOUSE FOSTER PLACEMENT     ,9270,IN-HOUSE FOSTERING            ,05/10/2012,3339924,248781 20121004 37620    ,604,REDACTED PERSONAL DATA,527968,Social Community Care,ADOPTION & FOSTERING          
IN HOUSE FOSTER PLACEMENT     ,9270,IN-HOUSE FOSTERING            ,05/10/2012,3339928,250606 20121004 37620    ,"2,002.71",REDACTED PERSONAL DATA,544195,Social Community Care,ADOPTION & FOSTERING          
IN HOUSE FOSTER PLACEMENT     ,9270,IN-HOUSE FOSTERING            ,05/10/2012,3339931,252805 20121004 37620    ,"2,168.57",REDACTED PERSONAL DATA,547773,Social Community Care,ADOPTION & FOSTERING          
IN HOUSE FOSTER PLACEMENT     ,9270,IN-HOUSE FOSTERING            ,05/10/2012,3339936,26212 20121004 37620     ,"2,136.00",REDACTED PERSONAL DATA,333838,Social Community Care,ADOPTION & FOSTERING          
IN HOUSE FOSTER PLACEMENT     ,9270,IN-HOUSE FOSTERING            ,05/10/2012,3339938,26454 20121004 37620     ,784,REDACTED PERSONAL DATA,333025,Social Community Care,ADOPTION & FOSTERING          
IN HOUSE FOSTER PLACEMENT     ,9270,IN-HOUSE FOSTERING            ,05/10/2012,3339939,26488 20121004 37620     ,604,REDACTED PERSONAL DATA,333094,Social Community Care,ADOPTION & FOSTERING          
IN HOUSE FOSTER PLACEMENT     ,9270,IN-HOUSE FOSTERING            ,05/10/2012,3339946,270182 20121004 37620    ,604,REDACTED PERSONAL DATA,536491,Social Community Care,ADOPTION & FOSTERING          
IN HOUSE FOSTER PLACEMENT     ,9270,IN-HOUSE FOSTERING            ,05/10/2012,3339947,27047 20121004 37620     ,"1,008.00",REDACTED PERSONAL DATA,338866,Social Community Care,ADOPTION & FOSTERING          
IN HOUSE FOSTER PLACEMENT     ,9270,IN-HOUSE FOSTERING            ,05/10/2012,3339948,271426 20121004 37620    ,604,REDACTED PERSONAL DATA,527967,Social Community Care,ADOPTION & FOSTERING          
IN HOUSE FOSTER PLACEMENT     ,9270,IN-HOUSE FOSTERING            ,05/10/2012,3339952,121470 20121004 37620    ,"1,008.00",REDACTED PERSONAL DATA,453239,Social Community Care,ADOPTION & FOSTERING          
IN HOUSE FOSTER PLACEMENT     ,9270,IN-HOUSE FOSTERING            ,05/10/2012,3339959,280294 20121004 37620    ,628,REDACTED PERSONAL DATA,534615,Social Community Care,ADOPTION & FOSTERING          
SPECIAL GUARDIANSHIP          ,9270,RESIDENCE ORDERS              ,05/10/2012,3339962,284355 20121004 37620    ,"2,439.90",REDACTED PERSONAL DATA,515224,Social Community Care,ADOPTION & FOSTERING          
IN HOUSE FOSTER PLACEMENT     ,9270,IN-HOUSE FOSTERING            ,05/10/2012,3339965,286117 20121004 37620    ,516,REDACTED PERSONAL DATA,571619,Unclassified Non Trade,OUT OF SCOPE FOR SIC MONITORIN
ADOPTION SERVICE              ,9270,ADOPTION ALLOWANCES           ,05/10/2012,3339971,29473 20121004 37620     ,715.5,REDACTED PERSONAL DATA,557434,Unclassified Non Trade,OUT OF SCOPE FOR SIC MONITORIN
IN HOUSE FOSTER PLACEMENT     ,9270,IN-HOUSE FOSTERING            ,05/10/2012,3339975,295330 20121004 37620    ,604,REDACTED PERSONAL DATA,539221,Social Community Care,ADOPTION & FOSTERING          
IN HOUSE FOSTER PLACEMENT     ,9270,IN-HOUSE FOSTERING            ,05/10/2012,3339977,295830 20121004 37620    ,746,REDACTED PERSONAL DATA,539977,Social Community Care,ADOPTION & FOSTERING          
IN HOUSE FOSTER PLACEMENT     ,9270,IN-HOUSE FOSTERING            ,05/10/2012,3339979,296922 20121004 37620    ,604,REDACTED PERSONAL DATA,537564,Social Community Care,ADOPTION & FOSTERING          
IN HOUSE FOSTER PLACEMENT     ,9270,IN-HOUSE FOSTERING            ,05/10/2012,3339980,297028 20121004 37620    ,604,REDACTED PERSONAL DATA,543572,Social Community Care,ADOPTION & FOSTERING          
IN HOUSE FOSTER PLACEMENT     ,9270,IN-HOUSE FOSTERING            ,05/10/2012,3339984,300505 20121004 37620    ,578,REDACTED PERSONAL DATA,542947,Social Community Care,ADOPTION & FOSTERING          
IN HOUSE FOSTER PLACEMENT     ,9270,IN-HOUSE FOSTERING            ,05/10/2012,3339985,122743 20121004 37620    ,"2,144.71",REDACTED PERSONAL DATA,502731,Social Community Care,ADOPTION & FOSTERING          
RESIDENCE ORDERS              ,9270,RESIDENCE ORDERS              ,05/10/2012,3339991,301894 20121004 37620    ,583.1,REDACTED PERSONAL DATA,532329,Social Community Care,HOME CARE SERVICES            
CARELEAVER IN HOUSE FOSTERING ,9270,IN-HOUSE FOSTERING            ,05/10/2012,3339995,307157 20121004 37620    ,798,REDACTED PERSONAL DATA,567247,Unclassified Non Trade,OUT OF SCOPE FOR SIC MONITORIN
IN HOUSE FOSTER PLACEMENT     ,9270,IN-HOUSE FOSTERING            ,05/10/2012,3339996,123178 20121004 37620    ,"2,152.43",REDACTED PERSONAL DATA,368216,Social Community Care,ADOPTION & FOSTERING          
IN HOUSE FOSTER PLACEMENT     ,9270,IN-HOUSE FOSTERING            ,05/10/2012,3340005,316839 20121004 37620    ,820.86,REDACTED PERSONAL DATA,547793,Social Community Care,ADOPTION & FOSTERING          
IN HOUSE FOSTER PLACEMENT     ,9270,IN-HOUSE FOSTERING            ,05/10/2012,3340008,319658 20121004 37620    ,798,REDACTED PERSONAL DATA,547113,Social Community Care,ADOPTION & FOSTERING          
IN HOUSE FOSTER PLACEMENT     ,9270,IN-HOUSE FOSTERING            ,05/10/2012,3340009,31985 20121004 37620     ,708,REDACTED PERSONAL DATA,379040,Social Community Care,ADOPTION & FOSTERING          
IN HOUSE FOSTER PLACEMENT     ,9270,IN-HOUSE FOSTERING            ,05/10/2012,3340015,329424 20121004 37620    ,917.72,REDACTED PERSONAL DATA,549814,Social Community Care,ADOPTION & FOSTERING          
IN HOUSE FOSTER PLACEMENT     ,9270,IN-HOUSE FOSTERING            ,05/10/2012,3340018,125668 20121004 37620    ,740.58,REDACTED PERSONAL DATA,545888,Social Community Care,ADOPTION & FOSTERING          
RESIDENCE ORDERS              ,9270,RESIDENCE ORDERS              ,05/10/2012,3340020,334411 20121004 37620    ,586.95,REDACTED PERSONAL DATA,551220,Social Community Care,ADOPTION & FOSTERING          
IN HOUSE FOSTER PLACEMENT     ,9270,IN-HOUSE FOSTERING            ,05/10/2012,3340021,334785 20121004 37620    ,858.14,REDACTED PERSONAL DATA,549575,Social Community Care,ADOPTION & FOSTERING          
IN HOUSE FOSTER PLACEMENT     ,9270,IN-HOUSE FOSTERING            ,05/10/2012,3340023,3369 20121004 37620      ,864,REDACTED PERSONAL DATA,332891,Social Community Care,ADOPTION & FOSTERING          
IN HOUSE FOSTER PLACEMENT     ,9270,IN-HOUSE FOSTERING            ,05/10/2012,3340024,337569 20121004 37620    ,553.14,REDACTED PERSONAL DATA,530110,Unclassified Non Trade,OUT OF SCOPE FOR SIC MONITORIN
ADOPTION ALLOWANCES           ,9270,ADOPTION ALLOWANCES           ,05/10/2012,3340027,340620 20121004 37620    ,738.93,REDACTED PERSONAL DATA,547584,Unclassified Non Trade,OUT OF SCOPE FOR SIC MONITORIN
RESIDENCE ORDERS              ,9270,RESIDENCE ORDERS              ,05/10/2012,3340033,341984 20121004 37620    ,541.84,REDACTED PERSONAL DATA,552932,Social Community Care,ADOPTION & FOSTERING          
IN HOUSE FOSTER PLACEMENT     ,9270,IN-HOUSE FOSTERING            ,05/10/2012,3340041,348102 20121004 37620    ,778,REDACTED PERSONAL DATA,565231,Unclassified Non Trade,OUT OF SCOPE FOR SIC MONITORIN
IN HOUSE FOSTER PLACEMENT     ,9270,IN-HOUSE FOSTERING            ,05/10/2012,3340047,352400 20121004 37620    ,772.3,REDACTED PERSONAL DATA,555126,Social Community Care,ADOPTION & FOSTERING          
IN HOUSE FOSTER PLACEMENT     ,9270,IN-HOUSE FOSTERING            ,05/10/2012,3340048,352681 20121004 37620    ,575.57,REDACTED PERSONAL DATA,565043,Unclassified Non Trade,OUT OF SCOPE FOR SIC MONITORIN
IN HOUSE FOSTER PLACEMENT     ,9270,IN-HOUSE FOSTERING            ,05/10/2012,3340049,353146 20121004 37620    ,"1,054.00",REDACTED PERSONAL DATA,562708,Social Community Care,ADOPTION & FOSTERING          
IN HOUSE FOSTER PLACEMENT     ,9270,IN-HOUSE FOSTERING            ,05/10/2012,3340050,35508 20121004 37620     ,764.02,REDACTED PERSONAL DATA,562193,Social Community Care,ADOPTION & FOSTERING          
IN HOUSE FOSTER PLACEMENT     ,9270,IN-HOUSE FOSTERING            ,05/10/2012,3340057,361196 20121004 37620    ,802,REDACTED PERSONAL DATA,565114,Social Community Care,ADOPTION & FOSTERING          
IN HOUSE FOSTER PLACEMENT     ,9270,IN-HOUSE FOSTERING            ,05/10/2012,3340059,362387 20121004 37620    ,864,REDACTED PERSONAL DATA,565738,Unclassified Non Trade,OUT OF SCOPE FOR SIC MONITORIN
IN HOUSE FOSTER PLACEMENT     ,9270,IN-HOUSE FOSTERING            ,05/10/2012,3340061,36362 20121004 37620     ,"1,008.00",REDACTED PERSONAL DATA,338824,Social Community Care,ADOPTION & FOSTERING          
IN HOUSE FOSTER PLACEMENT     ,9270,IN-HOUSE FOSTERING            ,05/10/2012,3340066,37330 20121004 37620     ,544,REDACTED PERSONAL DATA,553309,Social Community Care,ADOPTION & FOSTERING          
IN HOUSE FOSTER PLACEMENT     ,9270,IN-HOUSE FOSTERING            ,05/10/2012,3340074,127476 20121004 37620    ,"1,212.00",REDACTED PERSONAL DATA,394621,Social Community Care,ADOPTION & FOSTERING          
IN HOUSE FOSTER PLACEMENT     ,9270,IN-HOUSE FOSTERING            ,05/10/2012,3340079,394220 20121004 37620    ,803.15,REDACTED PERSONAL DATA,566818,Social Community Care,ADOPTION & FOSTERING          
IN HOUSE FOSTER PLACEMENT     ,9270,IN-HOUSE FOSTERING            ,05/10/2012,3340081,39742 20121004 37620     ,"1,402.00",REDACTED PERSONAL DATA,333115,Social Community Care,ADOPTION & FOSTERING          
IN HOUSE FOSTER PLACEMENT     ,9270,IN-HOUSE FOSTERING            ,05/10/2012,3340085,127884 20121004 37620    ,"1,008.00",REDACTED PERSONAL DATA,382392,Social Community Care,ADOPTION & FOSTERING          
IN HOUSE FOSTER PLACEMENT     ,9270,IN-HOUSE FOSTERING            ,05/10/2012,3340093,4239 20121004 37620      ,784,REDACTED PERSONAL DATA,333683,Social Community Care,ADOPTION & FOSTERING          
RESIDENCE ORDERS              ,9270,RESIDENCE ORDERS              ,05/10/2012,3340095,42902 20121004 37620     ,646.9,REDACTED PERSONAL DATA,421999,Social Community Care,ADOPTION & FOSTERING          
IN HOUSE FOSTER PLACEMENT     ,9270,IN-HOUSE FOSTERING            ,05/10/2012,3340096,128440 20121004 37620    ,"1,008.00",REDACTED PERSONAL DATA,545489,Social Community Care,ADOPTION & FOSTERING          
IN HOUSE FOSTER PLACEMENT     ,9270,IN-HOUSE FOSTERING            ,05/10/2012,3340098,4340 20121004 37620      ,696,REDACTED PERSONAL DATA,338749,Social Community Care,ADOPTION & FOSTERING          
IN HOUSE FOSTER PLACEMENT     ,9270,IN-HOUSE FOSTERING            ,05/10/2012,3340100,436393 20121004 37620    ,516,REDACTED PERSONAL DATA,563363,Social Community Care,ADOPTION & FOSTERING          
RESIDENCE ORDERS              ,9270,RESIDENCE ORDERS              ,05/10/2012,3340101,437427 20121004 37620    ,"3,318.58",REDACTED PERSONAL DATA,572826,Social Community Care,Adoption & Fostering
SPECIAL GUARDIANSHIP          ,9270,RESIDENCE ORDERS              ,05/10/2012,3340111,454875 20121004 37620    ,513.48,REDACTED PERSONAL DATA,567381,Unclassified Non Trade,OUT OF SCOPE FOR SIC MONITORIN
SPECIAL GUARDIANSHIP          ,9270,RESIDENCE ORDERS              ,05/10/2012,3340120,464651 20121004 37620    ,"1,315.69",REDACTED PERSONAL DATA,571109,Unclassified Non Trade,OUT OF SCOPE FOR SIC MONITORIN
IN HOUSE FOSTER PLACEMENT     ,9270,IN-HOUSE FOSTERING            ,05/10/2012,3340135,52188 20121004 37620     ,775.43,REDACTED PERSONAL DATA,395410,Social Community Care,ADOPTION & FOSTERING          
IN HOUSE FOSTER PLACEMENT     ,9270,IN-HOUSE FOSTERING            ,05/10/2012,3340136,5232 20121004 37620      ,"1,334.00",REDACTED PERSONAL DATA,333284,Social Community Care,ADOPTION & FOSTERING          
IN HOUSE FOSTER PLACEMENT     ,9270,IN-HOUSE FOSTERING            ,05/10/2012,3340142,53755 20121004 37620     ,"1,813.68",REDACTED PERSONAL DATA,332878,Social Community Care,ADOPTION & FOSTERING          
CARELEAVER IN HOUSE FOSTERING ,9270,IN-HOUSE FOSTERING            ,05/10/2012,3340144,540310 20121004 37620    ,780.5,REDACTED PERSONAL DATA,571999,Unclassified Non Trade,OUT OF SCOPE FOR SIC MONITORIN
RESIDENCE ORDERS              ,9270,RESIDENCE ORDERS              ,05/10/2012,3340145,543008 20121004 37620    ,"1,536.58",REDACTED PERSONAL DATA,569381,Social Community Care,ADOPTION & FOSTERING          
IN HOUSE FOSTER PLACEMENT     ,9270,IN-HOUSE FOSTERING            ,05/10/2012,3340146,54948 20121004 37620     ,"1,490.00",REDACTED PERSONAL DATA,401257,Social Community Care,ADOPTION & FOSTERING          
IN HOUSE FOSTER PLACEMENT     ,9270,IN-HOUSE FOSTERING            ,05/10/2012,3340147,55871 20121004 37620     ,604,REDACTED PERSONAL DATA,332982,Social Community Care,ADOPTION & FOSTERING          
IN HOUSE FOSTER PLACEMENT     ,9270,IN-HOUSE FOSTERING            ,05/10/2012,3340148,56472 20121004 37620     ,770,REDACTED PERSONAL DATA,332894,Social Community Care,ADOPTION & FOSTERING          
IN HOUSE FOSTER PLACEMENT     ,9270,IN-HOUSE FOSTERING            ,05/10/2012,3340150,5899 20121004 37620      ,"1,250.00",REDACTED PERSONAL DATA,332893,Social Community Care,ADOPTION & FOSTERING          
IN HOUSE FOSTER PLACEMENT     ,9270,IN-HOUSE FOSTERING            ,05/10/2012,3340151,59205 20121004 37620     ,"1,850.00",REDACTED PERSONAL DATA,368211,Social Community Care,ADOPTION & FOSTERING          
IN HOUSE FOSTER PLACEMENT     ,9270,IN-HOUSE FOSTERING            ,05/10/2012,3340154,60275 20121004 37620     ,"1,250.00",REDACTED PERSONAL DATA,429874,Social Community Care,ADOPTION & FOSTERING          
IN HOUSE FOSTER PLACEMENT     ,9270,IN-HOUSE FOSTERING            ,05/10/2012,3340155,60616 20121004 37620     ,"1,888.00",REDACTED PERSONAL DATA,333511,Social Community Care,ADOPTION & FOSTERING          
IN HOUSE FOSTER PLACEMENT     ,9270,IN-HOUSE FOSTERING            ,05/10/2012,3340158,6158 20121004 37620      ,"1,672.00",REDACTED PERSONAL DATA,540317,Social Community Care,ADOPTION & FOSTERING          
IN HOUSE FOSTER PLACEMENT     ,9270,IN-HOUSE FOSTERING            ,05/10/2012,3340159,62204 20121004 37620     ,628,REDACTED PERSONAL DATA,333618,Social Community Care,ADOPTION & FOSTERING          
RESIDENCE ORDERS              ,9270,RESIDENCE ORDERS              ,05/10/2012,3340160,62544 20121004 37620     ,596.9,REDACTED PERSONAL DATA,333037,Social Community Care,ADOPTION & FOSTERING          
ADOPTION ALLOWANCES           ,9270,ADOPTION ALLOWANCES           ,05/10/2012,3340161,62842 20121004 37620     ,945.7,REDACTED PERSONAL DATA,333091,Social Community Care,ADOPTION & FOSTERING          
IN HOUSE FOSTER PLACEMENT     ,9270,IN-HOUSE FOSTERING            ,05/10/2012,3340161,62842 20121004 37620     ,604,REDACTED PERSONAL DATA,333091,Social Community Care,ADOPTION & FOSTERING          
IN HOUSE FOSTER PLACEMENT     ,9270,IN-HOUSE FOSTERING            ,05/10/2012,3340167,64992 20121004 37620     ,"1,254.00",REDACTED PERSONAL DATA,333282,Social Community Care,ADOPTION & FOSTERING          
IN HOUSE FOSTER PLACEMENT     ,9270,IN-HOUSE FOSTERING            ,05/10/2012,3340168,65520 20121004 37620     ,"1,412.00",REDACTED PERSONAL DATA,333005,Social Community Care,ADOPTION & FOSTERING          
IN HOUSE FOSTER PLACEMENT     ,9270,IN-HOUSE FOSTERING            ,05/10/2012,3340169,65854 20121004 37620     ,982,REDACTED PERSONAL DATA,338734,Social Community Care,ADOPTION & FOSTERING          
IN HOUSE FOSTER PLACEMENT     ,9270,IN-HOUSE FOSTERING            ,05/10/2012,3340172,68046 20121004 37620     ,786,REDACTED PERSONAL DATA,207768,Social Community Care,ADOPTION & FOSTERING          
IN HOUSE FOSTER PLACEMENT     ,9270,IN-HOUSE FOSTERING            ,05/10/2012,3340174,69804 20121004 37620     ,"1,356.87",REDACTED PERSONAL DATA,333694,Social Community Care,ADOPTION & FOSTERING          
IN HOUSE FOSTER PLACEMENT     ,9270,IN-HOUSE FOSTERING            ,05/10/2012,3340175,132001 20121004 37620    ,"1,254.00",REDACTED PERSONAL DATA,401464,Social Community Care,ADOPTION & FOSTERING          
ADOPTION ALLOWANCES           ,9270,ADOPTION ALLOWANCES           ,05/10/2012,3340175,132001 20121004 37620    ,"1,031.14",REDACTED PERSONAL DATA,401464,Social Community Care,ADOPTION & FOSTERING          
IN HOUSE FOSTER PLACEMENT     ,9270,IN-HOUSE FOSTERING            ,05/10/2012,3340176,69844 20121004 37620     ,878,REDACTED PERSONAL DATA,333815,Social Community Care,ADOPTION & FOSTERING          
IN HOUSE FOSTER PLACEMENT     ,9270,IN-HOUSE FOSTERING            ,05/10/2012,3340179,71652 20121004 37620     ,658,REDACTED PERSONAL DATA,333207,Social Community Care,ADOPTION & FOSTERING          
IN HOUSE FOSTER PLACEMENT     ,9270,IN-HOUSE FOSTERING            ,05/10/2012,3340180,72432 20121004 37620     ,"1,032.00",REDACTED PERSONAL DATA,398055,Social Community Care,ADOPTION & FOSTERING          
IN HOUSE FOSTER PLACEMENT     ,9270,IN-HOUSE FOSTERING            ,05/10/2012,3340181,73971 20121004 37620     ,"1,138.00",REDACTED PERSONAL DATA,332984,Social Community Care,ADOPTION & FOSTERING          
IN HOUSE FOSTER PLACEMENT     ,9270,IN-HOUSE FOSTERING            ,05/10/2012,3340183,7644 20121004 37620      ,666,REDACTED PERSONAL DATA,527335,Social Community Care,ADOPTION & FOSTERING          
IN HOUSE FOSTER PLACEMENT     ,9270,IN-HOUSE FOSTERING            ,05/10/2012,3340184,77354 20121004 37620     ,"1,212.00",REDACTED PERSONAL DATA,333280,Social Community Care,ADOPTION & FOSTERING          
IN HOUSE FOSTER PLACEMENT     ,9270,IN-HOUSE FOSTERING            ,05/10/2012,3340185,774 20121004 37620       ,"1,008.00",REDACTED PERSONAL DATA,333661,Social Community Care,ADOPTION & FOSTERING          
IN HOUSE FOSTER PLACEMENT     ,9270,IN-HOUSE FOSTERING            ,05/10/2012,3340188,78545 20121004 37620     ,666,REDACTED PERSONAL DATA,332919,Social Community Care,ADOPTION & FOSTERING          
IN HOUSE FOSTER PLACEMENT     ,9270,IN-HOUSE FOSTERING            ,05/10/2012,3340189,78553 20121004 37620     ,786,REDACTED PERSONAL DATA,333703,Social Community Care,ADOPTION & FOSTERING          
IN HOUSE FOSTER PLACEMENT     ,9270,IN-HOUSE FOSTERING            ,05/10/2012,3340197,133315 20121004 37620    ,"1,753.86",REDACTED PERSONAL DATA,517411,Social Community Care,ADOPTION & FOSTERING          
IN HOUSE FOSTER PLACEMENT     ,9270,IN-HOUSE FOSTERING            ,05/10/2012,3340198,84339 20121004 37620     ,714,REDACTED PERSONAL DATA,333060,Social Community Care,ADOPTION & FOSTERING          
IN HOUSE FOSTER PLACEMENT     ,9270,IN-HOUSE FOSTERING            ,05/10/2012,3340200,84605 20121004 37620     ,"1,454.00",REDACTED PERSONAL DATA,333262,Social Community Care,ADOPTION & FOSTERING          
IN HOUSE FOSTER PLACEMENT     ,9270,IN-HOUSE FOSTERING            ,05/10/2012,3340201,84825 20121004 37620     ,"1,132.00",REDACTED PERSONAL DATA,332976,Social Community Care,ADOPTION & FOSTERING          
RESIDENCE ORDERS              ,9270,RESIDENCE ORDERS              ,05/10/2012,3340202,8496 20121004 37620      ,512.86,REDACTED PERSONAL DATA,489216,Social Community Care,ADOPTION & FOSTERING          
IN HOUSE FOSTER PLACEMENT     ,9270,IN-HOUSE FOSTERING            ,05/10/2012,3340206,90340 20121004 37620     ,"1,056.00",REDACTED PERSONAL DATA,333663,Social Community Care,ADOPTION & FOSTERING          
IN HOUSE FOSTER PLACEMENT     ,9270,IN-HOUSE FOSTERING            ,05/10/2012,3340207,90657 20121004 37620     ,"1,032.00",REDACTED PERSONAL DATA,371936,Social Community Care,ADOPTION & FOSTERING          
IN HOUSE FOSTER PLACEMENT     ,9270,IN-HOUSE FOSTERING            ,05/10/2012,3340208,133705 20121004 37620    ,"1,008.00",REDACTED PERSONAL DATA,419128,Social Community Care,ADOPTION & FOSTERING          
IN HOUSE FOSTER PLACEMENT     ,9270,IN-HOUSE FOSTERING            ,05/10/2012,3340210,9093 20121004 37620      ,"1,574.71",REDACTED PERSONAL DATA,333249,Social Community Care,ADOPTION & FOSTERING          
IN HOUSE FOSTER PLACEMENT     ,9270,IN-HOUSE FOSTERING            ,05/10/2012,3340211,91090 20121004 37620     ,540,REDACTED PERSONAL DATA,333434,Social Community Care,ADOPTION & FOSTERING          
IN HOUSE FOSTER PLACEMENT     ,9270,IN-HOUSE FOSTERING            ,05/10/2012,3340212,91281 20121004 37620     ,500,REDACTED PERSONAL DATA,502223,Social Community Care,ADOPTION & FOSTERING          
IN HOUSE FOSTER PLACEMENT     ,9270,IN-HOUSE FOSTERING            ,05/10/2012,3340213,91723 20121004 37620     ,798,REDACTED PERSONAL DATA,333048,Social Community Care,ADOPTION & FOSTERING          
IN HOUSE FOSTER PLACEMENT     ,9270,IN-HOUSE FOSTERING            ,05/10/2012,3340218,92756 20121004 37620     ,"1,528.00",REDACTED PERSONAL DATA,332988,Social Community Care,ADOPTION & FOSTERING          
IN HOUSE FOSTER PLACEMENT     ,9270,IN-HOUSE FOSTERING            ,05/10/2012,3340220,92844 20121004 37620     ,"1,254.00",REDACTED PERSONAL DATA,377924,Social Community Care,ADOPTION & FOSTERING          
IN HOUSE FOSTER PLACEMENT     ,9270,IN-HOUSE FOSTERING            ,05/10/2012,3340221,93353 20121004 37620     ,"2,378.00",REDACTED PERSONAL DATA,333631,Social Community Care,ADOPTION & FOSTERING          
IN HOUSE FOSTER PLACEMENT     ,9270,IN-HOUSE FOSTERING            ,05/10/2012,3340223,93777 20121004 37620     ,500,REDACTED PERSONAL DATA,333179,Social Community Care,ADOPTION & FOSTERING          
RESIDENCE ORDERS              ,9270,RESIDENCE ORDERS              ,05/10/2012,3340227,94349 20121004 37620     ,583.1,REDACTED PERSONAL DATA,332876,Social Community Care,ADOPTION & FOSTERING          
IN HOUSE FOSTER PLACEMENT     ,9270,IN-HOUSE FOSTERING            ,05/10/2012,3340229,95231 20121004 37620     ,704,REDACTED PERSONAL DATA,333600,Social Community Care,ADOPTION & FOSTERING          
IN HOUSE FOSTER PLACEMENT     ,9270,IN-HOUSE FOSTERING            ,05/10/2012,3340230,133942 20121004 37620    ,"1,008.00",REDACTED PERSONAL DATA,391833,Social Community Care,ADOPTION & FOSTERING          
IN HOUSE FOSTER PLACEMENT     ,9270,IN-HOUSE FOSTERING            ,05/10/2012,3340233,98203 20121004 37620     ,666,REDACTED PERSONAL DATA,333450,Social Community Care,ADOPTION & FOSTERING          
IN HOUSE FOSTER PLACEMENT     ,9270,IN-HOUSE FOSTERING            ,05/10/2012,3340237,99174 20121004 37620     ,579,REDACTED PERSONAL DATA,528898,Social Community Care,ADOPTION & FOSTERING          
IN HOUSE FOSTER PLACEMENT     ,9270,IN-HOUSE FOSTERING            ,05/10/2012,3340243,135152 20121004 37620    ,"1,056.00",REDACTED PERSONAL DATA,418759,Social Community Care,ADOPTION & FOSTERING          
IN HOUSE FOSTER PLACEMENT     ,9270,IN-HOUSE FOSTERING            ,05/10/2012,3340244,136081 20121004 37620    ,628,REDACTED PERSONAL DATA,413709,Social Community Care,ADOPTION & FOSTERING          
IN HOUSE FOSTER PLACEMENT     ,9270,IN-HOUSE FOSTERING            ,05/10/2012,3340245,137064 20121004 37620    ,666,REDACTED PERSONAL DATA,333536,Social Community Care,ADOPTION & FOSTERING          
IN HOUSE FOSTER PLACEMENT     ,9270,IN-HOUSE FOSTERING            ,05/10/2012,3340252,139839 20121004 37620    ,"1,250.00",REDACTED PERSONAL DATA,457380,Social Community Care,ADOPTION & FOSTERING          
IN HOUSE FOSTER PLACEMENT     ,9270,IN-HOUSE FOSTERING            ,05/10/2012,3340256,142307 20121004 37620    ,666,REDACTED PERSONAL DATA,502726,Social Community Care,ADOPTION & FOSTERING          
IN HOUSE FOSTER PLACEMENT     ,9270,IN-HOUSE FOSTERING            ,05/10/2012,3340259,14509 20121004 37620     ,"1,180.00",REDACTED PERSONAL DATA,338767,Social Community Care,ADOPTION & FOSTERING          
ADOPTION SERVICE              ,9270,ADOPTION ALLOWANCES           ,05/10/2012,3340262,146973 20121004 37620    ,714,REDACTED PERSONAL DATA,443421,Social Community Care,ADOPTION & FOSTERING          
IN HOUSE FOSTER PLACEMENT     ,9270,IN-HOUSE FOSTERING            ,05/10/2012,3340265,147500 20121004 37620    ,"1,008.00",REDACTED PERSONAL DATA,400934,Social Community Care,ADOPTION & FOSTERING          
IN HOUSE FOSTER PLACEMENT     ,9270,IN-HOUSE FOSTERING            ,05/10/2012,3340266,147787 20121004 37620    ,"1,094.00",REDACTED PERSONAL DATA,435614,Social Community Care,ADOPTION & FOSTERING          
IN HOUSE FOSTER PLACEMENT     ,9270,IN-HOUSE FOSTERING            ,05/10/2012,3340272,149394 20121004 37620    ,"1,408.00",REDACTED PERSONAL DATA,453957,Social Community Care,ADOPTION & FOSTERING          
IN HOUSE FOSTER PLACEMENT     ,9270,IN-HOUSE FOSTERING            ,05/10/2012,3340273,149405 20121004 37620    ,"1,342.00",REDACTED PERSONAL DATA,408920,Social Community Care,ADOPTION & FOSTERING          
COMMUNITY ASSEMBLY SOUTH      ,9120,OTHER AGENCIES                ,05/10/2012,3340592,ERS INVOICE73326         ,"41,636.00",DOUBLE SIX YOUTH CLUB                   ,447317,Unclassified Non Trade,YOUTH ORGANISATIONS & CENTRES 
VS - TACKLING POVERTY         ,8180,GRANTS                        ,05/10/2012,3340593,ERS INVOICE73327         ,"44,444.00",SHEAF CITIZENS ADVICE BUREAU            ,316677,Unclassified Non Trade,CHARITIES & VOLUNTARY ORGANISA
VS - TACKLING POVERTY         ,8180,GRANTS                        ,05/10/2012,3340594,ERS INVOICE73328         ,"21,000.00",SHEFFIELD LAW CENTRE                    ,330170,Unclassified Non Trade,CHARITIES & VOLUNTARY ORGANISA
VS - TACKLING POVERTY         ,8180,GRANTS                        ,05/10/2012,3340595,ERS INVOICE73329         ,"16,222.00",SHEFFIELD CAB DEBT SUPPORT UNIT         ,330174,Unclassified Non Trade,CHARITIES & VOLUNTARY ORGANISA
LITIGATION COURT ACCOUNT      ,8470,LEGAL FEES                    ,05/10/2012,3340598,ERS INVOICE73332         ,"24,000.00",HER MAJESTY'S COURTS SERVICE            ,492282,Unclassified Non Trade,COURTS                        
LITIGATION COURT ACCOUNT      ,8470,LEGAL FEES                    ,05/10/2012,3340599,ERS INVOICE73333         ,"24,000.00",HER MAJESTY'S COURTS SERVICE            ,492282,Unclassified Non Trade,COURTS                        
LITIGATION COURT ACCOUNT      ,8470,LEGAL FEES                    ,05/10/2012,3340600,ERS INVOICE73334         ,"24,000.00",HER MAJESTY'S COURTS SERVICE            ,492282,Unclassified Non Trade,COURTS                        
CLAIMS                        ,8740,MOTOR VEHICLE                 ,05/10/2012,3340603,ERS INVOICE73338         ,"4,264.50",GOLDSMITH WILLIAMS SOLICITORS           ,573438,Legal Services,SOLICITORS                    
CLAIMS                        ,8740,EMPLOYERS LIABILITY           ,05/10/2012,3340604,ERS INVOICE73339         ,"2,800.00",REDACTED PERSONAL DATA,573416,Unclassified Non Trade,OUT OF SCOPE FOR SIC MONITORIN
CLAIMS                        ,8740,HIGHWAYS                      ,05/10/2012,3340605,ERS INVOICE73340         ,"11,300.00",GRAYSONS SOLICITORS                     ,297241,Legal Services,SOLICITORS                    
CASTLE MARKET                 ,8470,LEGAL FEES                    ,05/10/2012,3340649,ERS INVOICE73384         ,"1,035.96",WOSSKOW BROWN SOLICITORS                ,334442,Legal Services,SOLICITORS                    
CUSTOMER FIRST PROGRAMME      ,5750,TRAINING EXPENDITURE          ,05/10/2012,3340650,ERS INVOICE73385         ,"2,500.00",STUART J PYBUS                          ,557974,Human Resources,TRAINING SERVICES             
GENERAL COMM AREAS - INC AREA ,8560,HOUSING AREA CONSULT ALLOWANCE,05/10/2012,3340654,ERS INVOICE73390         ,"1,000.00",ARBOURTHORNE TARA                       ,505674,Unclassified Non Trade,CHARITIES & VOLUNTARY ORGANISA
DEVELOPMENT CONTROL           ,8470,LEGAL FEES                    ,05/10/2012,3340717,ERS INVOICE73392         ,"2,356.41",DLP PLANNING LTD                        ,546528,Consultancy,TOWN PLANNING CONSULTANTS     
DEVELOPMENT CONTROL           ,4180,PLANNING APPLICATION FEES     ,05/10/2012,3340718,ERS INVOICE73393         ,"1,050.00",REDACTED PERSONAL DATA,572017,Unclassified Non Trade,OUT OF SCOPE FOR SIC MONITORIN
DISABLED GRANTS               ,1165,NC&A OTHER                    ,05/10/2012,3340719,ERS INVOICE73394         ,"1,200.00",PAUL BEATSON BUILDING CONTRACTORS LTD   ,207418,Construction,BUILDERS                      
COMMERCIAL ESTATE             ,6030,REPAIRS AND MTCE - RESPONSIVE ,05/10/2012,3340720,ERS INVOICE73395         ,"1,250.00",EASTWOOD & PARTNERS (CONST ENGS) LTD    ,204580,Financial Services,INSURANCE - COMMERCIAL & VAN  
MINOR WORK GRANTS             ,1165,NC&A OTHER                    ,05/10/2012,3340721,ERS INVOICE73396         ,"1,999.00",CHAPELTOWN GLASS WINDOW & FACIA COMPANY ,427494,Construction,DOUBLE GLAZING INSTALLERS     
CARE PROCEEDINGS (LEGAL FEES) ,8470,LEGAL FEES                    ,05/10/2012,3340722,ERS INVOICE73397         ,622.08,LYNNE JACKSON LTD                       ,504916,Medical ,PSYCHOLOGISTS                 
DISABLED GRANTS               ,1165,NC&A OTHER                    ,05/10/2012,3340723,ERS INVOICE73398         ,"1,492.85",CCS (YORKS)                             ,573518,Building Construction Materials,CLADDING SUPPLIERS & INSTALLER
SWAN COMMISSIONED             ,1143,COMPENSATION                  ,05/10/2012,3340724,ERS INVOICE73399         ,"4,700.00",REDACTED PERSONAL DATA,572922,Unclassified Non Trade,OUT OF SCOPE FOR SIC MONITORIN
DISCETIONARY HOUSING PAYMENTS ,9480,RENT ALLOWANCE BACS           ,05/10/2012,3340735,ERS INVOICE73410         ,781.43,GREAT PLACES HOUSING ASSOCIATION        ,526686,Unclassified Non Trade,"HOUSING ASSOCIATIONS, SOCIETIE"
PROVIDER CONTRACT AUG11-JUL12 ,9120,OTHER AGENCIES                ,05/10/2012,3252174,1213/09                  ,"1,877.00",GLEADLESS VALLEY COMMUNITY FORUM        ,550294,Unclassified Non Trade,CHARITIES & VOLUNTARY ORGANISA
PEACE GARDENS                 ,8540,SECURITY SERVICES             ,05/10/2012,3276281,INV057909                ,"1,724.14",CONSTANT SECURITY SERVICES LIMITED      ,501937,Facilities Management,SECURITY SERVICES             
PEACE GARDENS                 ,8540,SECURITY SERVICES             ,05/10/2012,3285966,INV057703/CRE001723      ,"2,010.59",CONSTANT SECURITY SERVICES LIMITED      ,501937,Facilities Management,SECURITY SERVICES             
PEACE GARDENS                 ,8540,SECURITY SERVICES             ,05/10/2012,3285967,INV057704/CRE001722      ,583.55,CONSTANT SECURITY SERVICES LIMITED      ,501937,Facilities Management,SECURITY SERVICES             
PEACE GARDENS                 ,8540,SECURITY SERVICES             ,05/10/2012,3292275,INV058257                ,"1,920.41",CONSTANT SECURITY SERVICES LIMITED      ,501937,Facilities Management,SECURITY SERVICES             
CATERING PREMISES & EQUIPMENT ,8030,EQUIPMENT MAINTENANCE CONTRACT,05/10/2012,3324129,10283906,896,DERBYSHIRE COUNTY COUNCIL               ,543418,Unclassified Non Trade,LOCAL GOVERNMENT              
PEACE GARDENS                 ,8540,SECURITY SERVICES             ,05/10/2012,3326098,INV059023                ,"1,724.14",CONSTANT SECURITY SERVICES LIMITED      ,501937,Facilities Management,SECURITY SERVICES             
HIGHWAYS PFI                  ,7140,PUBLIC TRANSPORT COSTS        ,05/10/2012,3327314,01/3680229               ,606,CO-OPERATIVE TRAVEL MANAGEMENT          ,202987,Facilities Management,TRAVEL AGENTS & HOLIDAY COMPAN
STRATEGIC FINANCE             ,8460,CONSULTANTS FEES              ,05/10/2012,3331760,3276,"5,156.58",INSIGHT MSC                             ,424598,Consultancy,BUSINESS & MANAGEMENT CONSULTA
WINTER GARDEN                 ,6270,SERVICE / PFI UNITARY CHARGE  ,05/10/2012,3335482,7820-341105              ,712.56,GVA GRIMLEY LTD                         ,521044,Consultancy,PLANNING SUPERVISORS          
SENSORY IMPAIRMENT TEAM       ,4080,FEES & CHARGES                ,05/10/2012,3337245,080612-JC                ,810,REFLECT BSL                             ,557738,Human Resources,TRANSLATORS & INTERPRETERS    
RED TAPE CENTRAL              ,8620,COMPUTER & HARDWARE PURCHASES ,05/10/2012,3337846,SI43002                  ,"2,120.00",CBC COMPUTER SYSTEMS LTD                ,304631,ICT,COMPUTER SYSTEMS & SOFTWARE (S
RED TAPE CENTRAL              ,8440,FEE EXPENSES                  ,05/10/2012,3337879,PNS120509                ,"2,958.66",PROTOCOL NATIONAL LTD                   ,570558,Education,EDUCATIONAL SERVICES          
READING AND LITERACY ADULT    ,8080,LIBRARY MATERIALS             ,05/10/2012,3338723,1213/RR12                ,"1,200.00",NEW WRITING NORTH LTD                   ,478418,Unclassified Non Trade,CHARITIES & VOLUNTARY ORGANISA
CITY CENTRE MANAGEMENT & ADMIN,8010,EQUIPMENT PURCHASE AND REPAIR ,05/10/2012,3338757,4243,750,SPRINGBOARD RESEARCH LTD.               ,369222,Facilities Management,RESEARCH ORGANISATIONS        
HR & ORG DEVELOPMENT          ,8460,CONSULTANTS FEES              ,05/10/2012,3338772,2849,"4,219.80",FIRSTCARE LTD                           ,531361,Consultancy,BUSINESS & MANAGEMENT CONSULTA
AGENCY STAFF                  ,5610,AGENCY STAFF - INVOICE        ,05/10/2012,3339179,CE0224268917D1           ,"131,550.51",REED                                    ,341818,Human Resources,EMPLOYMENT & RECRUITMENT AGENC
PERFORMANCE PLANNING          ,8330,TENANTS SATISFACTION SURVEY   ,05/10/2012,3339216,397,"2,080.00",VIEWPOINT RESEARCH COMMUNITY INTEREST CO,511698,Facilities Management,MARKET RESEARCH               
CREATIVE SERVICES             ,8020,EQUIPMENT LEASE/ RENTAL/ HIRE ,05/10/2012,3339267,001/12/0957468           ,828,ING LEASE (UK) LIMITED                  ,484570,Financial Services,LEASING SERVICES              
FURNISHED ACCOMMODATION       ,8050,FURNITURE PURCHASES           ,05/10/2012,3339273,341581,"9,975.00",KOZEE SLEEP                             ,531691,Furniture,"BEDS, BEDDING & BLANKETS      "
PARTNERSHIP & GRANT AID MH    ,9160,PARTNERSHIP CONTRACTS         ,05/10/2012,3339288,24226,"5,000.00",VOLUNTARY ACTION SHEFFIELD              ,295283,Unclassified Non Trade,CHARITIES & VOLUNTARY ORGANISA
PARTNERSHIP & GRANT AID MH    ,9160,PARTNERSHIP CONTRACTS         ,05/10/2012,3339290,1881,"6,153.00",ST BARTHOLOMEW'S CHURCH CENTRE          ,296995,Unclassified Non Trade,PLACES OF WORSHIP             
PARTNERSHIP & GRANT AID MH    ,9160,PARTNERSHIP CONTRACTS         ,05/10/2012,3339291,PCFQ3-12/13              ,"15,229.00",ST WILFRID'S DAY CENTRE SHEFFIELD       ,361331,Unclassified Non Trade,RELIGIOUS ORGANISATIONS       
PARTNERSHIP & GRANT AID MH    ,9160,PARTNERSHIP CONTRACTS         ,05/10/2012,3339293,INV2620                  ,"32,932.00",ST ANNE'S COMMUNITY SERVICES            ,351501,Unclassified Non Trade,"HOUSING ASSOCIATIONS, SOCIETIE"
GRANT AIDED FACILITIES        ,8180,GRANTS                        ,05/10/2012,3339300,ASSL/12/28               ,"52,100.00",ACADEMY SERVICES (SHEFFIELD) LTD        ,438883,Financial Services,LEASING SERVICES              
PAYMENT HOLDING ACCOUNT       ,8350,MISCELLANEOUS EXPENSES        ,05/10/2012,3339303,12040001,"836,777.00",KIER SHEFFIELD LLP                      ,352687,Construction,PROPERTY MAINTENANCE & REPAIRS
PAYMENT HOLDING ACCOUNT       ,8350,MISCELLANEOUS EXPENSES        ,05/10/2012,3339304,12040002,"836,777.00",KIER SHEFFIELD LLP                      ,352687,Construction,PROPERTY MAINTENANCE & REPAIRS
100 APPRENTICES               ,9120,OTHER AGENCIES                ,05/10/2012,3339307,3626,633.75,GREEN ESTATE LTD                        ,388189,Environmental Services,WASTE DISPOSAL SERVICES       
CREATIVE SERVICES             ,9120,OTHER AGENCIES                ,05/10/2012,3339311,118035,"2,520.00",WIDE WAVE GROUP                         ,511738,Stationery ,PROMOTIONAL ITEMS             
CREATIVE SERVICES             ,9120,OTHER AGENCIES                ,05/10/2012,3339315,INV155706                ,"1,371.87",A PINDER LTD                            ,202627,Facilities Management,COPYING & DUPLICATING SERVICES
TRAINING - BROCKWOOD          ,8490,OTHER PROFESSIONAL FEES       ,05/10/2012,3339316,788,750,SHEFFIELD CAB DEBT SUPPORT UNIT         ,330174,Unclassified Non Trade,CHARITIES & VOLUNTARY ORGANISA
COMMUNICATIONS                ,8350,MISCELLANEOUS EXPENSES        ,05/10/2012,3339330,1900,"1,570.00",TELEVISION & RADIO TECHNIQUES LTD       ,331945,Human Resources,TRAINING SERVICES             
TRANSITIONAL HMR              ,8350,MISCELLANEOUS EXPENSES        ,05/10/2012,3339335,92611846,"1,500.00",SECTOR TREASURY SERVICES LTD            ,547809,Financial Services,FINANCIAL SERVICES            
100 APPRENTICES               ,9120,OTHER AGENCIES                ,05/10/2012,3339342,2384,784.94,THE GREAT NORTHERN TILING COMPANY LTD   ,565265,Construction,"TILING CONTRACTORS - WALL, FLO"
ACCOMMODATION                 ,6210,RENTS                         ,05/10/2012,3339343,ARC1213-52               ,916.67,STOCKSBRIDGE TOWN COUNCIL               ,295752,Unclassified Non Trade,LOCAL GOVERNMENT              
PWC - PERFORMANCE MANAGEMENT  ,8180,GRANTS                        ,05/10/2012,3339367,2856,"6,250.00",SHEFFIELD INDUSTRIAL MUSEUMS TRUST LTD  ,307272,Leisure Services,MUSEUMS                       
MINOR ADAPTATIONS             ,6020,REPAIRS AND MTCE - PROGRAMMED ,05/10/2012,3339412,907,657,NEIL CONSTRUCTION                       ,453315,Construction,BUILDING SERVICES             
DISADVANTAGED AREA FUNDING    ,9120,OTHER AGENCIES                ,05/10/2012,3339435,1213/45                  ,598.25,GLEADLESS VALLEY COMMUNITY FORUM        ,550294,Unclassified Non Trade,CHARITIES & VOLUNTARY ORGANISA
DISADVANTAGED AREA FUNDING    ,9120,OTHER AGENCIES                ,05/10/2012,3339439,2002,"2,000.00",MANOR & CASTLE DEVELOPMENT TRUST        ,314473,Unclassified Non Trade,CHARITIES & VOLUNTARY ORGANISA
DISADVANTAGED AREA FUNDING    ,9120,OTHER AGENCIES                ,05/10/2012,3339441,2003,"2,000.00",MANOR & CASTLE DEVELOPMENT TRUST        ,314473,Unclassified Non Trade,CHARITIES & VOLUNTARY ORGANISA
DISADVANTAGED AREA FUNDING    ,9120,OTHER AGENCIES                ,05/10/2012,3339443,2004,"2,000.00",MANOR & CASTLE DEVELOPMENT TRUST        ,314473,Unclassified Non Trade,CHARITIES & VOLUNTARY ORGANISA
EXECUTIVE TEAM                ,5010,GENERAL BASIC PAY             ,05/10/2012,3339484,41535,"30,000.00",SOUTH YORKSHIRE POLICE                  ,346385,Unclassified Non Trade,POLICE                        
CLC MANAGEMENT                ,6030,REPAIRS AND MTCE - RESPONSIVE ,05/10/2012,3339503,11120157,725,KIER SHEFFIELD LLP                      ,352687,Construction,PROPERTY MAINTENANCE & REPAIRS
PARTNERSHIP & GRANT AID MH    ,9160,PARTNERSHIP CONTRACTS         ,05/10/2012,3339520,TL/12-13/213             ,"15,536.00",SACMHA                                  ,342787,Unclassified Non Trade,CHARITIES & VOLUNTARY ORGANISA
SCHOOL CPD SERVICES           ,8440,FEE EXPENSES                  ,05/10/2012,3339551,35034,"3,862.20",ALISTAIR SHAW CONSULTANCY AND TRAINING L,527454,Human Resources,TRAINING SERVICES             
OSP2 KIER LTD CONTROL ACCOUNT ,9620,FINANCIAL PROCESSES           ,05/10/2012,3340288,130401,"641,396.00",KIER LIMITED                            ,516733,Facilities Management,FACILITIES MANAGEMENT         
CAPITA CONTROL A/C            ,9620,FINANCIAL PROCESSES           ,05/10/2012,3340298,92661730,"2,151,149.00",CAPITA BUSINESS SERVICES LTD            ,505663,Human Resources,BUSINESS INFORMATION SERVICES 
PFI 2                         ,6270,SERVICE / PFI UNITARY CHARGE  ,05/10/2012,3340299,FEEP206                  ,"334,645.52",PRIORGATE LIMITED                       ,392312,Financial Services,LEASING SERVICES              
SCHOOL MEALS                  ,8150,CONTRACT CATERING - INVOICE   ,05/10/2012,3340394,SI-TSS-10000652          ,"63,517.43",TAYLOR SHAW LIMITED T/A TAYLOR SHAW     ,520165,Catering,CATERERS                      
UNIVERSAL YOUTH SERVICE       ,9120,OTHER AGENCIES                ,05/10/2012,3340488,6683,"402,000.00",SHEFFIELD FUTURES                       ,322702,Medical ,COUNSELLING & ADVICE SERVICES 
CREATIVE SERVICES             ,9120,OTHER AGENCIES                ,05/10/2012,3340520,65296,"1,383.15",WHITESPRINT GROUP LIMITED               ,202894,Facilities Management,PRINTERS                      
CREATIVE SERVICES             ,9120,OTHER AGENCIES                ,05/10/2012,3340522,65295,"1,523.02",WHITESPRINT GROUP LIMITED               ,202894,Facilities Management,PRINTERS                      
CARERS GRANT AMH              ,9160,PARTNERSHIP CONTRACTS         ,05/10/2012,3340582,TL/12-13/214             ,"8,960.00",SACMHA                                  ,342787,Unclassified Non Trade,CHARITIES & VOLUNTARY ORGANISA
TRANSPORT FLEET MANAGEMENT    ,8070,STOCKS AND STORES             ,05/10/2012,3340370,8338871,"25,527.76",CARLTON FUELS                           ,466741,Vehicles Not Buses,FUEL DEALERS                  
TRANSPORT FLEET MANAGEMENT    ,8070,STOCKS AND STORES             ,05/10/2012,3340373,8333333,"6,840.60",CARLTON FUELS                           ,466741,Vehicles Not Buses,FUEL DEALERS                  
OLIVE GROVE WORKSHOPS         ,7010,ROUTINE VEHICLE REPAIR & MTCE ,05/10/2012,3340407,4247,"1,232.14","A & B CRANES, CRANE & ELECTRICAL SERVICE",545508,Vehicles Not Buses,"CRANE HIRE, SALES & SERVICE   "
MFDS                          ,8370,MFD CHARGES                   ,05/10/2012,3340408,1104835104,"2,525.69",KONICA MINOLTA BUSINESS SOLUTIONS EAST  ,206267,ICT,OFFICE EQUIPMENT MNFRS & DISTR
ASYLUM SEEKER CONTRACT        ,6160,GAS                           ,05/10/2012,3340426,7713123215,"1,064.56",SWALEC                                  ,311218,Utilities,ELECTRICITY COMPANIES         
UTILITIES                     ,6160,GAS                           ,05/10/2012,3340434,A3765838/S1869876        ,"3,460.38",BRITISH GAS BUSINESS                    ,370790,Utilities,GAS COMPANIES                 
MFDS                          ,8370,MFD CHARGES                   ,05/10/2012,3340436,1104835846,"7,250.42",KONICA MINOLTA BUSINESS SOLUTIONS EAST  ,206267,ICT,OFFICE EQUIPMENT MNFRS & DISTR
STANIFORTH ROAD WORKSHOPS     ,8070,STOCKS AND STORES             ,05/10/2012,3340445,14492366,536.16,LOOKERS FORD                            ,474939,Vehicles Not Buses,CAR DEALERS                   
NORTON NURSERY                ,6150,ELECTRICITY                   ,05/10/2012,3340453,27140471,"1,696.28",NPOWER NORTHERN LTD                     ,207191,Utilities,ELECTRICITY COMPANIES         
STANIFORTH ROAD WORKSHOPS     ,7010,ROUTINE VEHICLE REPAIR & MTCE ,05/10/2012,3340485,14490106,"1,118.15",LOOKERS FORD                            ,474939,Vehicles Not Buses,CAR DEALERS                   
CONTRACTOR PAYMENTS - AMEY    ,6150,ELECTRICITY                   ,05/10/2012,3340492,11659150930,"5,635.19",E.ON                                    ,479524,Utilities,ELECTRICITY COMPANIES         
PURCHASING LEARNING DISABILITI,9180,OTHER CLIENT EXPENDITURE      ,05/10/2012,3339558,J531506 071012           ,649.68,REDACTED PERSONAL DATA,328070,Social Community Care,HOME CARE SERVICES            
PURCHASING                    ,9250,INDEPENDENT DAY CARE          ,05/10/2012,3339604,TL/1213/219B             ,936,SACMHA                                  ,342787,Unclassified Non Trade,CHARITIES & VOLUNTARY ORGANISA
INDEPENDENT FOSTERING PLACEMEN,9270,INDEPENDENT FOSTERING         ,05/10/2012,3339588,2200004345,"2,059.57",REDACTED PERSONAL DATA,328618,Social Community Care,ADOPTION & FOSTERING          
INDEPENDENT FOSTERING PLACEMEN,9270,INDEPENDENT FOSTERING         ,05/10/2012,3339589,2200004348,"1,415.95",REDACTED PERSONAL DATA,328618,Social Community Care,ADOPTION & FOSTERING          
INDEPENDENT FOSTERING PLACEMEN,9270,INDEPENDENT FOSTERING         ,05/10/2012,3339590,630036235,787.78,REDACTED PERSONAL DATA,328618,Social Community Care,ADOPTION & FOSTERING          
INDEPENDENT RES BLOCK PLACEMEN,9270,INDEPENDENT RESIDENTIAL PMENT ,05/10/2012,3339591,786,"6,272.19",REDACTED PERSONAL DATA,405951,Social Community Care,CHILDCARE SERVICES            
LEAVING CARE                  ,9270,CARELEAVERS ACCOMMODATION     ,05/10/2012,3339594,199,"1,041.30",IMPACT PROPERTY SERVICES                ,546813,Social Community Care,SHELTERED HOUSING             
LEAVING CARE                  ,9270,CARELEAVERS ACCOMMODATION     ,05/10/2012,3339595,KIMOVA1                  ,675,EARL MARSHALL GUEST HOUSE               ,391589,Facilities Management,GUEST HOUSES                  
CWD INDEPENDENT PLACEMENTS    ,9270,CARELEAVERS ACCOMMODATION     ,05/10/2012,3339596,SRO1126068               ,588,THE NATIONAL AUTISTIC SOCIETY           ,334778,Unclassified Non Trade,CHARITIES & VOLUNTARY ORGANISA
PURCHASING LEARNING DISABILITI,9200,CONTINUING RESIDENTIAL CARE   ,05/10/2012,3339575,J526643 141012           ,"23,352.68",142 WENSLEY STREET                      ,361819,Unclassified Non Trade,"HOUSING ASSOCIATIONS, SOCIETIE"
ADULT SOCIAL CARE PURCHASING  ,9200,CONTINUING RESIDENTIAL CARE   ,05/10/2012,3339575,J526643 141012           ,"13,440.64",142 WENSLEY STREET                      ,361819,Unclassified Non Trade,"HOUSING ASSOCIATIONS, SOCIETIE"
ADULT SOCIAL CARE PURCHASING  ,9200,CONTINUING RESIDENTIAL CARE   ,05/10/2012,3339576,J533950 141012           ,"6,302.57",KNOWLE HILL                             ,361798,Social Community Care,RESIDENTIAL CARE HOMES        
ADULT SOCIAL CARE PURCHASING  ,9210,CONTINUING NURSING CARE       ,05/10/2012,3339577,J533954 141012           ,"28,023.85",ROSEBERRY CARE CENTRES GB LTD           ,361953,Social Community Care,NURSING HOMES                 
ADULT SOCIAL CARE PURCHASING  ,9200,CONTINUING RESIDENTIAL CARE   ,05/10/2012,3339578,J533955 141012           ,"3,591.00",SANCTUARY CARE LIMITED                  ,560422,Social Community Care,NURSING HOMES                 
ADULT SOCIAL CARE PURCHASING  ,9200,SHORT TERM RESIDENTIAL CARE   ,05/10/2012,3339579,J526225 190812           ,"1,713.86",CASTELAYN                               ,361796,Social Community Care,RESIDENTIAL CARE HOMES        
ADULT SOCIAL CARE PURCHASING  ,9200,SHORT TERM RESIDENTIAL CARE   ,05/10/2012,3339581,J531424 160912           ,"2,328.63",CASTELAYN                               ,361796,Social Community Care,RESIDENTIAL CARE HOMES        
ADULT SOCIAL CARE PURCHASING  ,9200,SHORT TERM RESIDENTIAL CARE   ,05/10/2012,3339582,J533924 160912           ,840.43,BURNT TREE CROFT                        ,361793,Social Community Care,RESIDENTIAL CARE HOMES        
ADULT SOCIAL CARE PURCHASING  ,9200,SHORT TERM RESIDENTIAL CARE   ,05/10/2012,3339583,J533925 160912           ,"3,021.00",COTLEIGH                                ,361811,Social Community Care,RESIDENTIAL CARE HOMES        
ADULT SOCIAL CARE PURCHASING  ,9200,SHORT TERM RESIDENTIAL CARE   ,05/10/2012,3339584,J533926 160912           ,706,DEERLANDS                               ,361836,Social Community Care,RESIDENTIAL CARE HOMES        
ADULT SOCIAL CARE PURCHASING  ,9200,SHORT TERM RESIDENTIAL CARE   ,05/10/2012,3339586,J533928 160912           ,"1,159.86",PADDOCK HILL                            ,361797,Social Community Care,RESIDENTIAL CARE HOMES        
ADULT SOCIAL CARE PURCHASING  ,9200,SHORT TERM RESIDENTIAL CARE   ,05/10/2012,3339587,J533930 160912           ,855,ROSEBERRY CARE CENTRES GB LTD           ,361904,Social Community Care,NURSING HOMES                 
CARE PROCEEDINGS (LEGAL FEES) ,8470,LEGAL FEES                    ,08/10/2012,3339138,807602,600,MR A M WYNNE                            ,487888,Legal Services,BARRISTERS                    
PAY & GRADING                 ,8440,FEE EXPENSES                  ,08/10/2012,3341043,ERS INVOICE73411         ,"24,735.00",REDACTED PERSONAL DATA,572198,Unclassified Non Trade,OUT OF SCOPE FOR SIC MONITORIN
PRIVATE SECTOR RENEWAL TEAM   ,8270,SUBSCRIPTIONS                 ,08/10/2012,3341044,ERS INVOICE73412         ,"7,500.00",HOME IMPROVEMENT TRUST                  ,346002,Unclassified Non Trade,CHARITIES & VOLUNTARY ORGANISA
DISABLED GRANTS               ,1165,NC&A OTHER                    ,08/10/2012,3341046,ERS INVOICE73414         ,"3,725.00",REDACTED PERSONAL DATA,505403,Unclassified Non Trade,OUT OF SCOPE FOR SIC MONITORIN
DISABLED GRANTS               ,1165,NC&A OTHER                    ,08/10/2012,3341047,ERS INVOICE73415         ,"3,450.00",PAUL BEATSON BUILDING CONTRACTORS LTD   ,207418,Construction,BUILDERS                      
DISABLED GRANTS               ,1165,NC&A OTHER                    ,08/10/2012,3341048,ERS INVOICE73416         ,"4,096.00",STANNAH LIFT SERVICES LTD.              ,208625,Social Community Care,STAIRLIFTS - MNFRS & INSTALLER
